Workbook

Sheet Topics
A1: Continuous Probability Distribution
A2: Uniform Probability Distribution
A3: Normal Probability Distribution
A4: Standard Normal Probability Distribution
A5: NORM.DIST Excel function
A6: NORM.INV Excel function
A7: NORM.S.DIST Excel function
A8: NORM.S.INV Excel function
A9: Exponential Probability Distribution
A10: EXPON.DIST Excel function
A11: Relationship between Poisson and Exponential Probability Distributions

Sheet B
A1: n | B1: 10 | D1: ="Binomial Distribution, n = "&B1&" p = "&B2&" "&C8 -> Binomial Distribution, n = 10 p = 0.5 P(X<=4)
A2: p | B2: 0.5 | D2: =C8&" = "&TEXT(B6,"0.0000") -> P(X<=4) = 0.3770
A3: X | B3: 4
A4: Comparative Operator | B4: <=
A5: Result | B5: =B4&B3 -> <=4
A6: BINOMDIST | B6: =_xlfn.BINOM.DIST(B3,B1,B2,1) -> 0.376953125
A8: X | B8: p(x) | C8: ="P(X"&B5&")" -> P(X<=4)
A9: 0 | B9: =_xlfn.BINOM.DIST(A9,$B$1,$B$2,0) -> 0.0009765625 | C9: =IF(A9<=$B$3,B9,"") -> 0.0009765625
A10: 1 | B10: =_xlfn.BINOM.DIST(A10,$B$1,$B$2,0) -> 0.009765625 | C10: =IF(A10<=$B$3,B10,"") -> 0.009765625
A11: 2 | B11: 0.0439453125 | C11: 0.0439453125
A12: 3 | B12: 0.1171875 | C12: 0.1171875
A13: 4 | B13: 0.205078125 | C13: 0.205078125
A14: 5 | B14: 0.24609375
A15: 6 | B15: 0.205078125
A16: 7 | B16: 0.1171875
A17: 8 | B17: 0.0439453125
A18: 9 | B18: 0.009765625
A19: 10 | B19: 0.0009765625

Sheet CPD Notes

Sheet Uniform(1)
C1: Test Score Category | D1: Frequency
A2: 0 | B2: 10 | C2: =A2&" up to "&B2 -> 0 up to 10 | D2: 1
A3: =B2 -> 10 | B3: =B2+10 -> 20 | C3: 10 up to 20 | D3: 2
A4: =B3 -> 20 | B4: 30 | C4: 20 up to 30 | D4: 3
A5: 30 | B5: 40 | C5: 30 up to 40 | D5: 10
A6: 40 | B6: 50 | C6: 40 up to 50 | D6: 12
A7: 50 | B7: 60 | C7: 50 up to 60 | D7: 15
A8: =B7 -> 60 | B8: 70 | C8: 60 up to 70 | D8: 18
A9: 70 | B9: 80 | C9: 70 up to 80 | D9: 22
A10: 80 | B10: 90 | C10: 80 up to 90 | D10: 15
A11: =B10 -> 90 | B11: 100 | C11: 90 up to 100 | D11: 2
D12: =SUM(D2:D11) -> 100
C23: Test Score Category | D23: Frequency
A24: 0 | B24: 10 | C24: =A24&" up to "&B24 -> 0 up to 10 | D24: 10
A25: =B24 -> 10 | B25: =B24+10 -> 20 | C25: 10 up to 20 | D25: 10
A26: =B25 -> 20 | B26: 30 | C26: 20 up to 30 | D26: 10
A27: 30 | B27: 40 | C27: 30 up to 40 | D27: 10
A28: 40 | B28: 50 | C28: 40 up to 50 | D28: 10
A29: 50 | B29: 60 | C29: 50 up to 60 | D29: 10
A30: =B29 -> 60 | B30: 70 | C30: 60 up to 70 | D30: 10
A31: 70 | B31: 80 | C31: 70 up to 80 | D31: 10
A32: 80 | B32: 90 | C32: 80 up to 90 | D32: 10
A33: =B32 -> 90 | B33: 100 | C33: 90 up to 100 | D33: 10
D34: =SUM(D24:D33) -> 100

Sheet Uniform(2)
A1: Driving Distance for the top 100 golfers on the PGA tour (2003) | D1: f(x) = height
A2: Distribution is Uniform | D2: =1/(B4-B3) -> 0.03861003861
A3: Lower | B3: 284.7 | C3: yards
A4: Upper | B4: 310.6 | C4: yards
A5: Difference = width | B5: =B4-B3 -> 25.9 | C5: yards
E6: =B3 -> 284.7 | J6: =B4 -> 310.6 | L6: x
A7: Probability Density function of driving distances: | F7: ="b - a = width = "&J6&" - "&E6&" = "&J6-E6 -> b - a = width = 310.6 - 284.7 = 25.9
A8: =IF(AND(B3:B4=""),"","F(x) = 1/("&B4&"-"&B3&")"&" = 1/"&B4-B3&CHAR(10)&"for interval "&B3&" <= x <= "&B4&" and 0 elsewhere.") -> F(x) = 1/(310.6-284.7) = 1/25.9 for interval 284.7 <= x <= 310.6 and 0 elsewhere.
A9: height = f(x) = 1/(b-a) | B9: =1/(B4-B3) -> 0.03861003861 | F9: Formulas:
F10: Area = Probability
F11: All probability = 1
F12: Area = width * height
F13: 1 = width * height
F14: height = 1/width
F15: height = Probability Density function = f(x) = 1/(b-a)
F16: P(x1<=x<=x2 ) = (x2-x1)*1/(b-a)
F17: P(x1<=x<=x2 ) = P(x1<x<x2 ) because lines have no area
F18: Mean = (a+ b)/2
F19: SD = SQRT((b-a)^2/12)

Sheet Uniform (3)
A1: Driving Distance for the top 100 golfers on the PGA tour (2003)
A2: Distribution is Uniform
A3: Lower | B3: 284.7 | C3: yards
A4: Upper | B4: 310.6 | C4: yards
A5: Difference = width | C5: yards
A7: Probability Density function of driving distances:
A8: =IF(AND(B3:B4=""),"","F(x) = 1/("&B4&"-"&B3&")"&" = 1/"&B4-B3&CHAR(10)&"for interval "&B3&" <= x <= "&B4&" and 0 elsewhere.") -> F(x) = 1/(310.6-284.7) = 1/25.9 for interval 284.7 <= x <= 310.6 and 0 elsewhere.
A9: height = f(x) = 1/(b-a)
A11: What is probability of one of the golfers driving less than 290 yards? | D11: f(x) = height
A12: X1 | B12: =B3 -> 284.7 | D12: =1/(B4-B3) -> 0.03861003861
A13: X2 | B13: 290
A14: area = width * height = (X2-X1)*1/(b-a) =
A15: ="P(X<"&B13&") = ("&B13&" - "&B12&")*1/("&$B$4&" - "&$B$3&")" -> P(X<290) = (290 - 284.7)*1/(310.6 - 284.7)
E16: =B3 -> 284.7 | G16: =B13 -> 290 | J16: =B4 -> 310.6 | L16: x
A18: What is probability of one of the golfers driving more than 290 yards? | D18: f(x) = height
A19: X1 | B19: 290 | D19: =D12 -> 0.03861003861
A20: X2 | B20: =B4 -> 310.6
A21: area = width * height = (X2-X1)*1/(b-a) =
A22: ="P(X>"&B20&") = ("&B20&" - "&B19&")*1/("&$B$4&" - "&$B$3&")" -> P(X>310.6) = (310.6 - 290)*1/(310.6 - 284.7)
E23: =$E$16 -> 284.7 | G23: =$G$16 -> 290 | J23: =$J$16 -> 310.6 | L23: x
A25: What is probability of one of the golfers driving between 290 and 300? | D25: f(x) = height
A26: X1 | B26: 290 | D26: =D19 -> 0.03861003861
A27: X2 | B27: 300
A28: area = width * height = (X2-X1)*1/(b-a) =
A29: ="P(X>"&B27&") = ("&B27&" - "&B26&")*1/("&$B$4&" - "&$B$3&")" -> P(X>300) = (300 - 290)*1/(310.6 - 284.7)
E30: =$E$16 -> 284.7 | G30: =$G$16 -> 290 | I30: 300 | L30: x

Sheet Uniform (3)an
A1: Driving Distance for the top 100 golfers on the PGA tour (2003)
A2: Distribution is Uniform
A3: Lower | B3: 284.7 | C3: yards | E3: f(x)
A4: Upper | B4: 310.6 | C4: yards | E4: 1/25.9
A5: Difference = width | B5: =B4-B3 -> 25.9 | C5: yards
A7: Probability Density function of driving distances:
A8: =IF(AND(B3:B4=""),"","F(x) = 1/("&B4&"-"&B3&")"&" = 1/"&B4-B3&CHAR(10)&"for interval "&B3&" <= x <= "&B4&" and 0 elsewhere.") -> F(x) = 1/(310.6-284.7) = 1/25.9 for interval 284.7 <= x <= 310.6 and 0 elsewhere. | G8: =B3 -> 284.7 | H8: 290 | J8: =B4 -> 310.6 | L8: x
A9: height = f(x) = 1/(b-a) | B9: =1/B5 -> 0.03861003861
A11: What is probability of one of the golfers driving less than 290 yards? | D11: f(x) = height
A12: X1 | B12: =B3 -> 284.7 | D12: =1/(B4-B3) -> 0.03861003861
A13: X2 | B13: 290
A14: area = width * height = (X2-X1)*1/(b-a) = | B14: =(B13-B12)*B9 -> 0.2046332046
A15: ="P(X<"&B13&") = ("&B13&" - "&B12&")*1/("&$B$4&" - "&$B$3&")" -> P(X<290) = (290 - 284.7)*1/(310.6 - 284.7)
E16: =B3 -> 284.7 | G16: =B13 -> 290 | J16: =B4 -> 310.6 | L16: x
A18: What is probability of one of the golfers driving more than 290 yards? | D18: f(x) = height
A19: X1 | B19: 290 | D19: =D12 -> 0.03861003861
A20: X2 | B20: =B4 -> 310.6
A21: area = width * height = (X2-X1)*1/(b-a) = | B21: =(B20-B19)*$B$9 -> 0.7953667954
A22: ="P(X>"&B20&") = ("&B20&" - "&B19&")*1/("&$B$4&" - "&$B$3&")" -> P(X>310.6) = (310.6 - 290)*1/(310.6 - 284.7)
E23: =$E$16 -> 284.7 | G23: =$G$16 -> 290 | J23: =$J$16 -> 310.6 | L23: x
A25: What is probability of one of the golfers driving between 290 and 300? | D25: f(x) = height
A26: X1 | B26: 290 | D26: =D19 -> 0.03861003861
A27: X2 | B27: 300
A28: area = width * height = (X2-X1)*1/(b-a) = | B28: =(B27-B26)*$B$9 -> 0.3861003861
A29: ="P(X>"&B27&") = ("&B27&" - "&B26&")*1/("&$B$4&" - "&$B$3&")" -> P(X>300) = (300 - 290)*1/(310.6 - 284.7)
E30: =$E$16 -> 284.7 | G30: =$G$16 -> 290 | I30: 300 | L30: x

Sheet PSQS
A1: Past Quiz Results (Population Data) for Chapter 5 (Probability) | C1: Mean = mu = | D1: =ROUND(AVERAGE(A2:A166),0) -> 12 | G1: label | H1: X = Score | I1: Frequency | J1: Relative Frequency | K1: YforLine | L1: XforLine | N1: mean | O1: =SUMPRODUCT(H2:H21,J2:J21) -> 12 | AB1: X = Score | AC1: Relative Frequency
A2: 12 | C2: Median | D2: =ROUND(MEDIAN(A2:A166),0) -> 12 | G2: =(ROWS(H$2:H2)-1)&" up to "&ROWS(H$2:H2) -> 0 up to 1 | H2: 1 | I2: =COUNTIF($A$2:$A$166,H2) -> 0 | J2: =I2/$I$22 -> 0 | K2: 0 | L2: 0 | N2: SD | O2: =SQRT(SUMPRODUCT((H2:H21-O1)^2,J2:J21)) -> 2.083121201 | AB2: 0 | AC2: =IF(ISNA(VLOOKUP(ROUND(AB2,0),$H$2:$J$21,3)),0,VLOOKUP(ROUND(AB2,0),$H$2:$J$21,3)) -> 0
A3: 14 | C3: Mode | D3: =ROUND(MODE(A2:A166),0) -> 12 | G3: =(ROWS(H$2:H3)-1)&" up to "&ROWS(H$2:H3) -> 1 up to 2 | H3: 2 | I3: 0 | J3: 0 | K3: =J2 -> 0 | L3: 3.5 | AB3: 0.1 | AC3: 0
A4: 14 | C4: Skew | D4: =ROUND(SKEW(A2:A166),0) -> 0 | G4: =(ROWS(H$2:H4)-1)&" up to "&ROWS(H$2:H4) -> 2 up to 3 | H4: 3 | I4: 0 | J4: 0 | K4: 0 | L4: 4.5 | AB4: 0.2 | AC4: 0
A5: 12 | C5: SD = sigma = | D5: =ROUND(STDEVP(A2:A166),0) -> 2 | G5: =(ROWS(H$2:H5)-1)&" up to "&ROWS(H$2:H5) -> 3 up to 4 | H5: 4 | I5: 0 | J5: 0 | K5: 0 | L5: 5.5 | AB5: 0.3 | AC5: 0
A6: 18 | G6: =(ROWS(H$2:H6)-1)&" up to "&ROWS(H$2:H6) -> 4 up to 5 | H6: 5 | I6: 0 | J6: 0 | K6: 0 | L6: 6.5 | AB6: 0.4 | AC6: 0
A7: 17 | D7: =C1&" = "&D1 -> Mean = mu = = 12 | G7: =(ROWS(H$2:H7)-1)&" up to "&ROWS(H$2:H7) -> 5 up to 6 | H7: 6 | I7: 1 | J7: 0.006060606061 | K7: 0 | L7: 7.5 | AB7: 0.5 | AC7: 0
A8: 17 | D8: =C2&" = "&D2 -> Median = 12 | G8: =(ROWS(H$2:H8)-1)&" up to "&ROWS(H$2:H8) -> 6 up to 7 | H8: 7 | I8: 2 | J8: 0.01212121212 | K8: 0.006060606061 | L8: 8.5 | AB8: 0.6 | AC8: 0
A9: 12 | D9: =C3&" = "&D3 -> Mode = 12 | G9: =(ROWS(H$2:H9)-1)&" up to "&ROWS(H$2:H9) -> 7 up to 8 | H9: 8 | I9: 3 | J9: 0.01818181818 | K9: 0.01212121212 | L9: 9.5 | AB9: 0.7 | AC9: 0
A10: 11 | D10: =C4&" = "&D4 -> Skew = 0 | G10: =(ROWS(H$2:H10)-1)&" up to "&ROWS(H$2:H10) -> 8 up to 9 | H10: 9 | I10: 14 | J10: 0.08484848485 | K10: 0.01818181818 | L10: 10.5 | AB10: 0.8 | AC10: 0
A11: 12 | D11: =C5&" = "&D5 -> SD = sigma = = 2 | G11: =(ROWS(H$2:H11)-1)&" up to "&ROWS(H$2:H11) -> 9 up to 10 | H11: 10 | I11: 18 | J11: 0.1090909091 | K11: 0.08484848485 | L11: 11.5 | AB11: 0.9 | AC11: 0
A12: 13 | D12: Mean = mu = = 12 Median = 12 Mode = 12 Skew = 0 SD = sigma = = 2 | G12: =(ROWS(H$2:H12)-1)&" up to "&ROWS(H$2:H12) -> 10 up to 11 | H12: 11 | I12: 26 | J12: 0.1575757576 | K12: 0.1090909091 | L12: 12.5 | AB12: 1 | AC12: 0
A13: 12 | G13: =(ROWS(H$2:H13)-1)&" up to "&ROWS(H$2:H13) -> 11 up to 12 | H13: 12 | I13: 37 | J13: 0.2242424242 | K13: 0.1575757576 | L13: 13.5 | AB13: 1.1 | AC13: 0
A14: 10 | G14: =(ROWS(H$2:H14)-1)&" up to "&ROWS(H$2:H14) -> 12 up to 13 | H14: 13 | I14: 26 | J14: 0.1575757576 | K14: 0.2242424242 | L14: 14.5 | AB14: 1.2 | AC14: 0
A15: 12 | G15: =(ROWS(H$2:H15)-1)&" up to "&ROWS(H$2:H15) -> 13 up to 14 | H15: 14 | I15: 18 | J15: 0.1090909091 | K15: 0.1575757576 | L15: 15.5 | AB15: 1.3 | AC15: 0
A16: 14 | G16: =(ROWS(H$2:H16)-1)&" up to "&ROWS(H$2:H16) -> 14 up to 15 | H16: 15 | I16: 14 | J16: 0.08484848485 | K16: 0.1090909091 | L16: 16.5 | AB16: 1.4 | AC16: 0
A17: 12 | G17: =(ROWS(H$2:H17)-1)&" up to "&ROWS(H$2:H17) -> 15 up to 16 | H17: 16 | I17: 3 | J17: 0.01818181818 | K17: 0.08484848485 | L17: 17.5 | AB17: 1.5 | AC17: 0
A18: 6 | G18: =(ROWS(H$2:H18)-1)&" up to "&ROWS(H$2:H18) -> 16 up to 17 | H18: 17 | I18: 2 | J18: 0.01212121212 | K18: 0.01818181818 | L18: 18.5 | AB18: 1.6 | AC18: 0
A19: 13 | G19: =(ROWS(H$2:H19)-1)&" up to "&ROWS(H$2:H19) -> 17 up to 18 | H19: 18 | I19: 1 | J19: 0.006060606061 | K19: 0.01212121212 | L19: 19.5 | AB19: 1.7 | AC19: 0
A20: 11 | G20: =(ROWS(H$2:H20)-1)&" up to "&ROWS(H$2:H20) -> 18 up to 19 | H20: 19 | I20: 0 | J20: 0 | K20: 0.006060606061 | L20: 20.5 | AB20: 1.8 | AC20: 0
A21: 13 | G21: =(ROWS(H$2:H21)-1)&" up to "&ROWS(H$2:H21) -> 19 up to 20 | H21: 20 | I21: 0 | J21: 0 | K21: 0 | L21: 21.5 | AB21: 1.9 | AC21: 0
A22: 12 | I22: =SUM(I2:I21) -> 165 | K22: 0 | L22: 22.5 | AB22: 2 | AC22: 0
A23: 7 | K23: 0 | L23: 23.5 | AB23: 2.1 | AC23: 0
A24: 11 | AB24: 2.2 | AC24: 0
A25: 16 | AB25: 2.3 | AC25: 0
A26: 14 | AB26: 2.4 | AC26: 0
A27: 15 | AB27: 2.5 | AC27: 0
A28: 14 | AB28: 2.6 | AC28: 0
A29: 15 | AB29: 2.7 | AC29: 0
A30: 14 | AB30: 2.8 | AC30: 0
A31: 15 | AB31: 2.9 | AC31: 0
A32: 14 | AB32: 3 | AC32: 0
A33: 15 | AB33: 3.1 | AC33: 0
A34: 14 | AB34: 3.2 | AC34: 0
A35: 12 | AB35: 3.3 | AC35: 0
A36: 14 | AB36: 3.4 | AC36: 0
A37: 15 | AB37: 3.5 | AC37: 0
A38: 15 | AB38: 3.6 | AC38: 0
A39: 14 | AB39: 3.7 | AC39: 0
A40: 15 | AB40: 3.8 | AC40: 0
A41: 15 | AB41: 3.9 | AC41: 0
A42: 14 | AB42: 4 | AC42: 0
A43: 14 | AB43: 4.1 | AC43: 0
A44: 8 | AB44: 4.2 | AC44: 0
A45: 12 | AB45: 4.3 | AC45: 0
A46: 8 | AB46: 4.4 | AC46: 0
A47: 13 | AB47: 4.5 | AC47: 0
A48: 13 | AB48: 4.6 | AC48: 0
A49: 12 | AB49: 4.7 | AC49: 0
A50: 10 | AB50: 4.8 | AC50: 0
A51: 13 | AB51: 4.9 | AC51: 0
A52: 10 | AB52: 5 | AC52: 0
A53: 13 | AB53: 5.1 | AC53: 0
A54: 12 | AB54: 5.2 | AC54: 0
A55: 12 | AB55: 5.3 | AC55: 0
A56: 15 | AB56: 5.4 | AC56: 0
A57: 13 | AB57: 5.5 | AC57: 0.006060606061
A58: 7 | AB58: 5.6 | AC58: 0.006060606061
A59: 11 | AB59: 5.7 | AC59: 0.006060606061
A60: 12 | AB60: 5.8 | AC60: 0.006060606061
A61: 15 | AB61: 5.9 | AC61: 0.006060606061
A62: 13 | AB62: 6 | AC62: 0.006060606061
A63: 12 | AB63: 6.1 | AC63: 0.006060606061
A64: 16 | AB64: 6.2 | AC64: 0.006060606061
A65: 12 | AB65: 6.3 | AC65: 0.006060606061
A66: 12 | AB66: 6.4 | AC66: =IF(ISNA(VLOOKUP(ROUND(AB66,0),$H$2:$J$21,3)),0,VLOOKUP(ROUND(AB66,0),$H$2:$J$21,3)) -> 0.006060606061
A67: 9 | AB67: 6.5 | AC67: 0.01212121212
A68: 13 | AB68: 6.6 | AC68: 0.01212121212
A69: 12 | AB69: 6.7 | AC69: 0.01212121212
A70: 13 | AB70: 6.8 | AC70: 0.01212121212
A71: 10 | AB71: 6.9 | AC71: 0.01212121212
A72: 14 | AB72: 7 | AC72: 0.01212121212
A73: 13 | AB73: 7.1 | AC73: 0.01212121212
A74: 12 | AB74: 7.2 | AC74: 0.01212121212
A75: 14 | AB75: 7.3 | AC75: 0.01212121212
A76: 12 | AB76: 7.4 | AC76: 0.01212121212
A77: 15 | AB77: 7.5 | AC77: 0.01818181818
A78: 11 | AB78: 7.6 | AC78: 0.01818181818
A79: 11 | AB79: 7.7 | AC79: 0.01818181818
A80: 12 | AB80: 7.8 | AC80: 0.01818181818
A81: 13 | AB81: 7.9 | AC81: 0.01818181818
A82: 14 | AB82: 8 | AC82: 0.01818181818
A83: 15 | AB83: 8.1 | AC83: 0.01818181818
A84: 11 | AB84: 8.2 | AC84: 0.01818181818
A85: 11 | AB85: 8.3 | AC85: 0.01818181818
A86: 9 | AB86: 8.4 | AC86: 0.01818181818
A87: 11 | AB87: 8.5 | AC87: 0.08484848485
A88: 13 | AB88: 8.6 | AC88: 0.08484848485
A89: 10 | AB89: 8.7 | AC89: 0.08484848485
A90: 10 | AB90: 8.8 | AC90: 0.08484848485
A91: 12 | AB91: 8.9 | AC91: 0.08484848485
A92: 10 | AB92: 9 | AC92: 0.08484848485
A93: 12 | AB93: 9.1 | AC93: 0.08484848485
A94: 13 | AB94: 9.2 | AC94: 0.08484848485
A95: 14 | AB95: 9.3 | AC95: 0.08484848485
A96: 16 | AB96: 9.4 | AC96: 0.08484848485
A97: 14 | AB97: 9.5 | AC97: 0.1090909091
A98: 11 | AB98: 9.6 | AC98: 0.1090909091
A99: 10 | AB99: 9.7 | AC99: 0.1090909091
A100: 9 | AB100: 9.8 | AC100: 0.1090909091
A101: 10 | AB101: 9.9 | AC101: 0.1090909091
A102: 11 | AB102: 10 | AC102: 0.1090909091
A103: 11 | AB103: 10.1 | AC103: 0.1090909091
A104: 13 | AB104: 10.2 | AC104: 0.1090909091
A105: 12 | AB105: 10.3 | AC105: 0.1090909091
A106: 9 | AB106: 10.4 | AC106: 0.1090909091
A107: 10 | AB107: 10.5 | AC107: 0.1575757576
A108: 15 | AB108: 10.6 | AC108: 0.1575757576
A109: 11 | AB109: 10.7 | AC109: 0.1575757576
A110: 13 | AB110: 10.8 | AC110: 0.1575757576
A111: 9 | AB111: 10.9 | AC111: 0.1575757576
A112: 13 | AB112: 11 | AC112: 0.1575757576
A113: 13 | AB113: 11.1 | AC113: 0.1575757576
A114: 11 | AB114: 11.2 | AC114: 0.1575757576
A115: 9 | AB115: 11.3 | AC115: 0.1575757576
A116: 12 | AB116: 11.4 | AC116: 0.1575757576
A117: 13 | AB117: 11.5 | AC117: 0.2242424242
A118: 12 | AB118: 11.6 | AC118: 0.2242424242
A119: 10 | AB119: 11.7 | AC119: 0.2242424242
A120: 11 | AB120: 11.8 | AC120: 0.2242424242
A121: 12 | AB121: 11.9 | AC121: 0.2242424242
A122: 12 | AB122: 12 | AC122: 0.2242424242
A123: 11 | AB123: 12.1 | AC123: 0.2242424242
A124: 9 | AB124: 12.2 | AC124: 0.2242424242
A125: 13 | AB125: 12.3 | AC125: 0.2242424242
A126: 10 | AB126: 12.4 | AC126: 0.2242424242
A127: 13 | AB127: 12.5 | AC127: 0.1575757576
A128: 15 | AB128: 12.6 | AC128: 0.1575757576
A129: 11 | AB129: 12.7 | AC129: 0.1575757576
A130: 8 | AB130: 12.8 | AC130: =IF(ISNA(VLOOKUP(ROUND(AB130,0),$H$2:$J$21,3)),0,VLOOKUP(ROUND(AB130,0),$H$2:$J$21,3)) -> 0.1575757576
A131: 13 | AB131: 12.9 | AC131: 0.1575757576
A132: 14 | AB132: 13 | AC132: 0.1575757576
A133: 12 | AB133: 13.1 | AC133: 0.1575757576
A134: 12 | AB134: 13.2 | AC134: 0.1575757576
A135: 9 | AB135: 13.3 | AC135: 0.1575757576
A136: 12 | AB136: 13.4 | AC136: 0.1575757576
A137: 9 | AB137: 13.5 | AC137: 0.1090909091
A138: 9 | AB138: 13.6 | AC138: 0.1090909091
A139: 9 | AB139: 13.7 | AC139: 0.1090909091
A140: 11 | AB140: 13.8 | AC140: 0.1090909091
A141: 12 | AB141: 13.9 | AC141: 0.1090909091
A142: 12 | AB142: 14 | AC142: 0.1090909091
A143: 12 | AB143: 14.1 | AC143: 0.1090909091
A144: 12 | AB144: 14.2 | AC144: 0.1090909091
A145: 12 | AB145: 14.3 | AC145: 0.1090909091
A146: 10 | AB146: 14.4 | AC146: 0.1090909091
A147: 11 | AB147: 14.5 | AC147: 0.08484848485
A148: 13 | AB148: 14.6 | AC148: 0.08484848485
A149: 13 | AB149: 14.7 | AC149: 0.08484848485
A150: 10 | AB150: 14.8 | AC150: 0.08484848485
A151: 12 | AB151: 14.9 | AC151: 0.08484848485
A152: 9 | AB152: 15 | AC152: 0.08484848485
A153: 11 | AB153: 15.1 | AC153: 0.08484848485
A154: 11 | AB154: 15.2 | AC154: 0.08484848485
A155: 10 | AB155: 15.3 | AC155: 0.08484848485
A156: 9 | AB156: 15.4 | AC156: 0.08484848485
A157: 9 | AB157: 15.5 | AC157: 0.01818181818
A158: 11 | AB158: 15.6 | AC158: 0.01818181818
A159: 10 | AB159: 15.7 | AC159: 0.01818181818
A160: 13 | AB160: 15.8 | AC160: 0.01818181818
A161: 11 | AB161: 15.9 | AC161: 0.01818181818
A162: 10 | AB162: 16 | AC162: 0.01818181818
A163: 11 | AB163: 16.1 | AC163: 0.01818181818
A164: 11 | AB164: 16.2 | AC164: 0.01818181818
A165: 11 | AB165: 16.3 | AC165: 0.01818181818
A166: 10 | AB166: 16.4 | AC166: 0.01818181818
AB167: 16.5 | AC167: 0.01212121212
AB168: 16.6 | AC168: 0.01212121212
AB169: 16.7 | AC169: 0.01212121212
AB170: 16.8 | AC170: 0.01212121212
AB171: 16.9 | AC171: 0.01212121212
AB172: 17 | AC172: 0.01212121212
AB173: 17.1 | AC173: 0.01212121212
AB174: 17.2 | AC174: 0.01212121212
AB175: 17.3 | AC175: 0.01212121212
AB176: 17.4 | AC176: 0.01212121212
AB177: 17.5 | AC177: 0.006060606061
AB178: 17.6 | AC178: 0.006060606061
AB179: 17.7 | AC179: 0.006060606061
AB180: 17.8 | AC180: 0.006060606061
AB181: 17.9 | AC181: 0.006060606061
AB182: 18 | AC182: 0.006060606061
AB183: 18.1 | AC183: 0.006060606061
AB184: 18.2 | AC184: 0.006060606061
AB185: 18.3 | AC185: 0.006060606061
AB186: 18.4 | AC186: 0.006060606061
AB187: 18.5 | AC187: 0
AB188: 18.6 | AC188: 0
AB189: 18.7 | AC189: 0
AB190: 18.8 | AC190: 0
AB191: 18.9 | AC191: 0
AB192: 19 | AC192: 0
AB193: 19.1 | AC193: 0
AB194: 19.2 | AC194: =IF(ISNA(VLOOKUP(ROUND(AB194,0),$H$2:$J$21,3)),0,VLOOKUP(ROUND(AB194,0),$H$2:$J$21,3)) -> 0
AB195: 19.3 | AC195: 0
AB196: 19.4 | AC196: 0
AB197: 19.5 | AC197: 0
AB198: 19.6 | AC198: 0
AB199: 19.7 | AC199: 0
AB200: 19.8 | AC200: 0
... 42 more rows

Sheet N Notes

Sheet Normal
A1: x = Test Scores | B1: 13 | H1: X | I1: z | J1: Height | K1: ="X<"&B1 -> X<13
A2: mean = μ | B2: 12 | H2: =I2*$B$3+$B$2 -> 7 | I2: -5 | J2: =_xlfn.NORM.DIST(H2,$B$2,$B$3,0) -> 1.486719515e-06 | K2: =IF(H2<$B$1,J2,"") -> 1.486719515e-06
A3: SD = σ | B3: 1 | H3: 7.1 | I3: =I2+0.1 -> -4.9 | J3: =_xlfn.NORM.DIST(H3,$B$2,$B$3,0) -> 2.438960746e-06 | K3: 2.438960746e-06
A4: =A2&" = "&B2&". "&A3&" = "&B3&"." -> mean = μ = 12. SD = σ = 1. | H4: 7.2 | I4: -4.8 | J4: 3.961299091e-06 | K4: 3.961299091e-06
A5: # SD | B5: 5 | H5: 7.3 | I5: -4.7 | J5: 6.369825179e-06 | K5: 6.369825179e-06
A6: =$B$2&" - "&$B$5&"*"&$B$3 -> 12 - 5*1 | B6: =$B$2-$B$5*$B$3 -> 7 | H6: 7.4 | I6: -4.6 | J6: 1.014085207e-05 | K6: 1.014085207e-05
A7: =$B$2&" + "&$B$5&"*"&$B$3 -> 12 + 5*1 | B7: =$B$2+$B$5*$B$3 -> 17 | H7: 7.5 | I7: -4.5 | J7: 1.598374111e-05 | K7: 1.598374111e-05
A8: ="Position of "&B6&" in list" -> Position of 7 in list | B8: =IF(ISNA(MATCH(B6,$A$13:$A$4084,0)),1,MATCH(B6,$A$13:$A$4084,0)) -> 71 | H8: 7.6 | I8: -4.4 | J8: 2.494247129e-05 | K8: 2.494247129e-05
A9: ="Position of "&B7&" in list" -> Position of 17 in list | B9: =MATCH(B7,$A$13:$A$4084,0) -> 171 | H9: 7.7 | I9: -4.3 | J9: 3.853519674e-05 | K9: 3.853519674e-05
H10: 7.8 | I10: -4.2 | J10: 5.894306776e-05 | K10: 5.894306776e-05
B11: Height of curve | H11: 7.9 | I11: -4.1 | J11: 8.926165718e-05 | K11: 8.926165718e-05
A12: x = Test Score | B12: ="Remaining Area = "&TEXT(1-NORMDIST(B1,B2,B3,1),"0.0000%") -> Remaining Area = 15.8655% | C12: ="X<="&B1&" area = "&TEXT(NORMDIST(B1,B2,B3,1),"0.0000%") -> X<=13 area = 84.1345% | H12: 8 | I12: -4 | J12: 0.0001338302258 | K12: 0.0001338302258
A13: =IF(AND((ROWS(A$13:A13)-1)/10<=$B$7,(ROWS(A$13:A13)-1)/10>=$B$6),(ROWS(A$13:A13)-1)/10,"") ->  | B13: =IF(A13="","",_xlfn.NORM.DIST(A13,$B$2,$B$3,0)) ->  | C13: =IF(AND(A13<=$B$1,A13<>""),B13,"") ->  | H13: 8.1 | I13: -3.9 | J13: 0.0001986554714 | K13: 0.0001986554714
A14: =IF(AND((ROWS(A$13:A14)-1)/10<=$B$7,(ROWS(A$13:A14)-1)/10>=$B$6),(ROWS(A$13:A14)-1)/10,"") ->  | B14: =IF(A14="","",_xlfn.NORM.DIST(A14,$B$2,$B$3,0)) ->  | H14: 8.2 | I14: -3.8 | J14: 0.0002919469258 | K14: 0.0002919469258
A15: =IF(AND((ROWS(A$13:A15)-1)/10<=$B$7,(ROWS(A$13:A15)-1)/10>=$B$6),(ROWS(A$13:A15)-1)/10,"") ->  | H15: 8.3 | I15: -3.7 | J15: 0.0004247802706 | K15: 0.0004247802706
A16: =IF(AND((ROWS(A$13:A16)-1)/10<=$B$7,(ROWS(A$13:A16)-1)/10>=$B$6),(ROWS(A$13:A16)-1)/10,"") ->  | H16: 8.4 | I16: -3.6 | J16: 0.0006119019301 | K16: 0.0006119019301
A17: =IF(AND((ROWS(A$13:A17)-1)/10<=$B$7,(ROWS(A$13:A17)-1)/10>=$B$6),(ROWS(A$13:A17)-1)/10,"") ->  | H17: 8.5 | I17: -3.5 | J17: 0.000872682695 | K17: 0.000872682695
A18: =IF(AND((ROWS(A$13:A18)-1)/10<=$B$7,(ROWS(A$13:A18)-1)/10>=$B$6),(ROWS(A$13:A18)-1)/10,"") ->  | H18: 8.6 | I18: -3.4 | J18: 0.001232219168 | K18: 0.001232219168
A19: =IF(AND((ROWS(A$13:A19)-1)/10<=$B$7,(ROWS(A$13:A19)-1)/10>=$B$6),(ROWS(A$13:A19)-1)/10,"") ->  | H19: 8.7 | I19: -3.3 | J19: 0.001722568939 | K19: 0.001722568939
A20: =IF(AND((ROWS(A$13:A20)-1)/10<=$B$7,(ROWS(A$13:A20)-1)/10>=$B$6),(ROWS(A$13:A20)-1)/10,"") ->  | H20: 8.8 | I20: -3.2 | J20: 0.002384088201 | K20: 0.002384088201
A21: =IF(AND((ROWS(A$13:A21)-1)/10<=$B$7,(ROWS(A$13:A21)-1)/10>=$B$6),(ROWS(A$13:A21)-1)/10,"") ->  | H21: 8.9 | I21: -3.1 | J21: 0.003266819056 | K21: 0.003266819056
A22: =IF(AND((ROWS(A$13:A22)-1)/10<=$B$7,(ROWS(A$13:A22)-1)/10>=$B$6),(ROWS(A$13:A22)-1)/10,"") ->  | H22: 9 | I22: -3 | J22: 0.004431848412 | K22: 0.004431848412
A23: =IF(AND((ROWS(A$13:A23)-1)/10<=$B$7,(ROWS(A$13:A23)-1)/10>=$B$6),(ROWS(A$13:A23)-1)/10,"") ->  | H23: 9.1 | I23: -2.9 | J23: 0.00595253242 | K23: 0.00595253242
A24: =IF(AND((ROWS(A$13:A24)-1)/10<=$B$7,(ROWS(A$13:A24)-1)/10>=$B$6),(ROWS(A$13:A24)-1)/10,"") ->  | H24: 9.2 | I24: -2.8 | J24: 0.007915451583 | K24: 0.007915451583
A25: =IF(AND((ROWS(A$13:A25)-1)/10<=$B$7,(ROWS(A$13:A25)-1)/10>=$B$6),(ROWS(A$13:A25)-1)/10,"") ->  | H25: 9.3 | I25: -2.7 | J25: 0.01042093481 | K25: 0.01042093481
A26: =IF(AND((ROWS(A$13:A26)-1)/10<=$B$7,(ROWS(A$13:A26)-1)/10>=$B$6),(ROWS(A$13:A26)-1)/10,"") ->  | H26: 9.4 | I26: -2.6 | J26: 0.01358296923 | K26: 0.01358296923
A27: =IF(AND((ROWS(A$13:A27)-1)/10<=$B$7,(ROWS(A$13:A27)-1)/10>=$B$6),(ROWS(A$13:A27)-1)/10,"") ->  | H27: 9.5 | I27: -2.5 | J27: 0.01752830049 | K27: 0.01752830049
A28: =IF(AND((ROWS(A$13:A28)-1)/10<=$B$7,(ROWS(A$13:A28)-1)/10>=$B$6),(ROWS(A$13:A28)-1)/10,"") ->  | H28: 9.6 | I28: -2.4 | J28: 0.02239453029 | K28: 0.02239453029
A29: =IF(AND((ROWS(A$13:A29)-1)/10<=$B$7,(ROWS(A$13:A29)-1)/10>=$B$6),(ROWS(A$13:A29)-1)/10,"") ->  | H29: 9.7 | I29: -2.3 | J29: 0.02832703774 | K29: 0.02832703774
A30: =IF(AND((ROWS(A$13:A30)-1)/10<=$B$7,(ROWS(A$13:A30)-1)/10>=$B$6),(ROWS(A$13:A30)-1)/10,"") ->  | H30: 9.8 | I30: -2.2 | J30: 0.03547459285 | K30: 0.03547459285
A31: =IF(AND((ROWS(A$13:A31)-1)/10<=$B$7,(ROWS(A$13:A31)-1)/10>=$B$6),(ROWS(A$13:A31)-1)/10,"") ->  | H31: 9.9 | I31: -2.1 | J31: 0.04398359598 | K31: 0.04398359598
A32: =IF(AND((ROWS(A$13:A32)-1)/10<=$B$7,(ROWS(A$13:A32)-1)/10>=$B$6),(ROWS(A$13:A32)-1)/10,"") ->  | H32: 10 | I32: -2 | J32: 0.05399096651 | K32: 0.05399096651
A33: =IF(AND((ROWS(A$13:A33)-1)/10<=$B$7,(ROWS(A$13:A33)-1)/10>=$B$6),(ROWS(A$13:A33)-1)/10,"") ->  | H33: 10.1 | I33: -1.9 | J33: 0.06561581477 | K33: 0.06561581477
A34: =IF(AND((ROWS(A$13:A34)-1)/10<=$B$7,(ROWS(A$13:A34)-1)/10>=$B$6),(ROWS(A$13:A34)-1)/10,"") ->  | H34: =I34*$B$3+$B$2 -> 10.2 | I34: -1.8 | J34: 0.0789501583 | K34: =IF(H34<$B$1,J34,"") -> 0.0789501583
A35: =IF(AND((ROWS(A$13:A35)-1)/10<=$B$7,(ROWS(A$13:A35)-1)/10>=$B$6),(ROWS(A$13:A35)-1)/10,"") ->  | H35: 10.3 | I35: =I34+0.1 -> -1.7 | J35: 0.09404907738 | K35: 0.09404907738
A36: =IF(AND((ROWS(A$13:A36)-1)/10<=$B$7,(ROWS(A$13:A36)-1)/10>=$B$6),(ROWS(A$13:A36)-1)/10,"") ->  | H36: 10.4 | I36: -1.6 | J36: 0.1109208347 | K36: 0.1109208347
A37: =IF(AND((ROWS(A$13:A37)-1)/10<=$B$7,(ROWS(A$13:A37)-1)/10>=$B$6),(ROWS(A$13:A37)-1)/10,"") ->  | H37: 10.5 | I37: -1.5 | J37: 0.1295175957 | K37: 0.1295175957
A38: =IF(AND((ROWS(A$13:A38)-1)/10<=$B$7,(ROWS(A$13:A38)-1)/10>=$B$6),(ROWS(A$13:A38)-1)/10,"") ->  | H38: 10.6 | I38: -1.4 | J38: 0.1497274656 | K38: 0.1497274656
A39: =IF(AND((ROWS(A$13:A39)-1)/10<=$B$7,(ROWS(A$13:A39)-1)/10>=$B$6),(ROWS(A$13:A39)-1)/10,"") ->  | H39: 10.7 | I39: -1.3 | J39: 0.171368592 | K39: 0.171368592
A40: =IF(AND((ROWS(A$13:A40)-1)/10<=$B$7,(ROWS(A$13:A40)-1)/10>=$B$6),(ROWS(A$13:A40)-1)/10,"") ->  | H40: 10.8 | I40: -1.2 | J40: 0.194186055 | K40: 0.194186055
A41: =IF(AND((ROWS(A$13:A41)-1)/10<=$B$7,(ROWS(A$13:A41)-1)/10>=$B$6),(ROWS(A$13:A41)-1)/10,"") ->  | H41: 10.9 | I41: -1.1 | J41: 0.217852177 | K41: 0.217852177
A42: =IF(AND((ROWS(A$13:A42)-1)/10<=$B$7,(ROWS(A$13:A42)-1)/10>=$B$6),(ROWS(A$13:A42)-1)/10,"") ->  | H42: 11 | I42: -1 | J42: 0.2419707245 | K42: 0.2419707245
A43: =IF(AND((ROWS(A$13:A43)-1)/10<=$B$7,(ROWS(A$13:A43)-1)/10>=$B$6),(ROWS(A$13:A43)-1)/10,"") ->  | H43: 11.1 | I43: -0.9 | J43: 0.2660852499 | K43: 0.2660852499
A44: =IF(AND((ROWS(A$13:A44)-1)/10<=$B$7,(ROWS(A$13:A44)-1)/10>=$B$6),(ROWS(A$13:A44)-1)/10,"") ->  | H44: 11.2 | I44: -0.8 | J44: 0.2896915528 | K44: 0.2896915528
A45: =IF(AND((ROWS(A$13:A45)-1)/10<=$B$7,(ROWS(A$13:A45)-1)/10>=$B$6),(ROWS(A$13:A45)-1)/10,"") ->  | H45: 11.3 | I45: -0.7 | J45: 0.3122539334 | K45: 0.3122539334
A46: =IF(AND((ROWS(A$13:A46)-1)/10<=$B$7,(ROWS(A$13:A46)-1)/10>=$B$6),(ROWS(A$13:A46)-1)/10,"") ->  | H46: 11.4 | I46: -0.6 | J46: 0.3332246029 | K46: 0.3332246029
A47: =IF(AND((ROWS(A$13:A47)-1)/10<=$B$7,(ROWS(A$13:A47)-1)/10>=$B$6),(ROWS(A$13:A47)-1)/10,"") ->  | H47: 11.5 | I47: -0.5 | J47: 0.3520653268 | K47: 0.3520653268
A48: =IF(AND((ROWS(A$13:A48)-1)/10<=$B$7,(ROWS(A$13:A48)-1)/10>=$B$6),(ROWS(A$13:A48)-1)/10,"") ->  | H48: 11.6 | I48: -0.4 | J48: 0.3682701403 | K48: 0.3682701403
A49: =IF(AND((ROWS(A$13:A49)-1)/10<=$B$7,(ROWS(A$13:A49)-1)/10>=$B$6),(ROWS(A$13:A49)-1)/10,"") ->  | H49: 11.7 | I49: -0.3 | J49: 0.3813878155 | K49: 0.3813878155
A50: =IF(AND((ROWS(A$13:A50)-1)/10<=$B$7,(ROWS(A$13:A50)-1)/10>=$B$6),(ROWS(A$13:A50)-1)/10,"") ->  | H50: 11.8 | I50: -0.2 | J50: 0.391042694 | K50: 0.391042694
A51: =IF(AND((ROWS(A$13:A51)-1)/10<=$B$7,(ROWS(A$13:A51)-1)/10>=$B$6),(ROWS(A$13:A51)-1)/10,"") ->  | H51: 11.9 | I51: -0.1 | J51: 0.3969525475 | K51: 0.3969525475
A52: =IF(AND((ROWS(A$13:A52)-1)/10<=$B$7,(ROWS(A$13:A52)-1)/10>=$B$6),(ROWS(A$13:A52)-1)/10,"") ->  | H52: 12 | I52: 0 | J52: 0.3989422804 | K52: 0.3989422804
A53: =IF(AND((ROWS(A$13:A53)-1)/10<=$B$7,(ROWS(A$13:A53)-1)/10>=$B$6),(ROWS(A$13:A53)-1)/10,"") ->  | H53: 12.1 | I53: =I52+0.1 -> 0.1 | J53: 0.3969525475 | K53: 0.3969525475
A54: =IF(AND((ROWS(A$13:A54)-1)/10<=$B$7,(ROWS(A$13:A54)-1)/10>=$B$6),(ROWS(A$13:A54)-1)/10,"") ->  | H54: 12.2 | I54: 0.2 | J54: 0.391042694 | K54: 0.391042694
A55: =IF(AND((ROWS(A$13:A55)-1)/10<=$B$7,(ROWS(A$13:A55)-1)/10>=$B$6),(ROWS(A$13:A55)-1)/10,"") ->  | H55: 12.3 | I55: 0.3 | J55: 0.3813878155 | K55: 0.3813878155
A56: =IF(AND((ROWS(A$13:A56)-1)/10<=$B$7,(ROWS(A$13:A56)-1)/10>=$B$6),(ROWS(A$13:A56)-1)/10,"") ->  | H56: 12.4 | I56: 0.4 | J56: 0.3682701403 | K56: 0.3682701403
A57: =IF(AND((ROWS(A$13:A57)-1)/10<=$B$7,(ROWS(A$13:A57)-1)/10>=$B$6),(ROWS(A$13:A57)-1)/10,"") ->  | H57: 12.5 | I57: 0.5 | J57: 0.3520653268 | K57: 0.3520653268
A58: =IF(AND((ROWS(A$13:A58)-1)/10<=$B$7,(ROWS(A$13:A58)-1)/10>=$B$6),(ROWS(A$13:A58)-1)/10,"") ->  | H58: 12.6 | I58: 0.6 | J58: 0.3332246029 | K58: 0.3332246029
A59: =IF(AND((ROWS(A$13:A59)-1)/10<=$B$7,(ROWS(A$13:A59)-1)/10>=$B$6),(ROWS(A$13:A59)-1)/10,"") ->  | H59: 12.7 | I59: 0.7 | J59: 0.3122539334 | K59: 0.3122539334
A60: =IF(AND((ROWS(A$13:A60)-1)/10<=$B$7,(ROWS(A$13:A60)-1)/10>=$B$6),(ROWS(A$13:A60)-1)/10,"") ->  | H60: 12.8 | I60: 0.8 | J60: 0.2896915528 | K60: 0.2896915528
A61: =IF(AND((ROWS(A$13:A61)-1)/10<=$B$7,(ROWS(A$13:A61)-1)/10>=$B$6),(ROWS(A$13:A61)-1)/10,"") ->  | H61: 12.9 | I61: 0.9 | J61: 0.2660852499 | K61: 0.2660852499
A62: =IF(AND((ROWS(A$13:A62)-1)/10<=$B$7,(ROWS(A$13:A62)-1)/10>=$B$6),(ROWS(A$13:A62)-1)/10,"") ->  | H62: 13 | I62: 1 | J62: 0.2419707245
A63: =IF(AND((ROWS(A$13:A63)-1)/10<=$B$7,(ROWS(A$13:A63)-1)/10>=$B$6),(ROWS(A$13:A63)-1)/10,"") ->  | H63: 13.1 | I63: 1.1 | J63: 0.217852177
A64: =IF(AND((ROWS(A$13:A64)-1)/10<=$B$7,(ROWS(A$13:A64)-1)/10>=$B$6),(ROWS(A$13:A64)-1)/10,"") ->  | H64: 13.2 | I64: 1.2 | J64: 0.194186055
A65: =IF(AND((ROWS(A$13:A65)-1)/10<=$B$7,(ROWS(A$13:A65)-1)/10>=$B$6),(ROWS(A$13:A65)-1)/10,"") ->  | H65: 13.3 | I65: 1.3 | J65: 0.171368592
A66: =IF(AND((ROWS(A$13:A66)-1)/10<=$B$7,(ROWS(A$13:A66)-1)/10>=$B$6),(ROWS(A$13:A66)-1)/10,"") ->  | H66: =I66*$B$3+$B$2 -> 13.4 | I66: 1.4 | J66: 0.1497274656 | K66: =IF(H66<$B$1,J66,"") -> 
A67: =IF(AND((ROWS(A$13:A67)-1)/10<=$B$7,(ROWS(A$13:A67)-1)/10>=$B$6),(ROWS(A$13:A67)-1)/10,"") ->  | H67: 13.5 | I67: 1.5 | J67: =_xlfn.NORM.DIST(H67,$B$2,$B$3,0) -> 0.1295175957
A68: =IF(AND((ROWS(A$13:A68)-1)/10<=$B$7,(ROWS(A$13:A68)-1)/10>=$B$6),(ROWS(A$13:A68)-1)/10,"") ->  | H68: 13.6 | I68: 1.6 | J68: 0.1109208347
A69: =IF(AND((ROWS(A$13:A69)-1)/10<=$B$7,(ROWS(A$13:A69)-1)/10>=$B$6),(ROWS(A$13:A69)-1)/10,"") ->  | H69: 13.7 | I69: 1.7 | J69: 0.09404907738
A70: =IF(AND((ROWS(A$13:A70)-1)/10<=$B$7,(ROWS(A$13:A70)-1)/10>=$B$6),(ROWS(A$13:A70)-1)/10,"") ->  | H70: 13.8 | I70: 1.8 | J70: 0.0789501583
A71: =IF(AND((ROWS(A$13:A71)-1)/10<=$B$7,(ROWS(A$13:A71)-1)/10>=$B$6),(ROWS(A$13:A71)-1)/10,"") ->  | H71: 13.9 | I71: 1.9 | J71: 0.06561581477
A72: =IF(AND((ROWS(A$13:A72)-1)/10<=$B$7,(ROWS(A$13:A72)-1)/10>=$B$6),(ROWS(A$13:A72)-1)/10,"") ->  | H72: 14 | I72: 2 | J72: 0.05399096651
A73: =IF(AND((ROWS(A$13:A73)-1)/10<=$B$7,(ROWS(A$13:A73)-1)/10>=$B$6),(ROWS(A$13:A73)-1)/10,"") ->  | H73: 14.1 | I73: 2.1 | J73: 0.04398359598
A74: =IF(AND((ROWS(A$13:A74)-1)/10<=$B$7,(ROWS(A$13:A74)-1)/10>=$B$6),(ROWS(A$13:A74)-1)/10,"") ->  | H74: 14.2 | I74: 2.2 | J74: 0.03547459285
A75: =IF(AND((ROWS(A$13:A75)-1)/10<=$B$7,(ROWS(A$13:A75)-1)/10>=$B$6),(ROWS(A$13:A75)-1)/10,"") ->  | H75: 14.3 | I75: 2.3 | J75: 0.02832703774
A76: =IF(AND((ROWS(A$13:A76)-1)/10<=$B$7,(ROWS(A$13:A76)-1)/10>=$B$6),(ROWS(A$13:A76)-1)/10,"") ->  | H76: 14.4 | I76: 2.4 | J76: 0.02239453029
A77: =IF(AND((ROWS(A$13:A77)-1)/10<=$B$7,(ROWS(A$13:A77)-1)/10>=$B$6),(ROWS(A$13:A77)-1)/10,"") ->  | C77: =IF(AND(A77<=$B$1,A77<>""),B77,"") ->  | H77: 14.5 | I77: 2.5 | J77: 0.01752830049
A78: =IF(AND((ROWS(A$13:A78)-1)/10<=$B$7,(ROWS(A$13:A78)-1)/10>=$B$6),(ROWS(A$13:A78)-1)/10,"") ->  | B78: =IF(A78="","",_xlfn.NORM.DIST(A78,$B$2,$B$3,0)) ->  | H78: 14.6 | I78: 2.6 | J78: 0.01358296923
A79: =IF(AND((ROWS(A$13:A79)-1)/10<=$B$7,(ROWS(A$13:A79)-1)/10>=$B$6),(ROWS(A$13:A79)-1)/10,"") ->  | H79: 14.7 | I79: 2.7 | J79: 0.01042093481
A80: =IF(AND((ROWS(A$13:A80)-1)/10<=$B$7,(ROWS(A$13:A80)-1)/10>=$B$6),(ROWS(A$13:A80)-1)/10,"") ->  | H80: 14.8 | I80: 2.8 | J80: 0.007915451583
A81: =IF(AND((ROWS(A$13:A81)-1)/10<=$B$7,(ROWS(A$13:A81)-1)/10>=$B$6),(ROWS(A$13:A81)-1)/10,"") ->  | H81: 14.9 | I81: 2.9 | J81: 0.00595253242
A82: =IF(AND((ROWS(A$13:A82)-1)/10<=$B$7,(ROWS(A$13:A82)-1)/10>=$B$6),(ROWS(A$13:A82)-1)/10,"") ->  | H82: 15 | I82: 3 | J82: 0.004431848412
A83: =IF(AND((ROWS(A$13:A83)-1)/10<=$B$7,(ROWS(A$13:A83)-1)/10>=$B$6),(ROWS(A$13:A83)-1)/10,"") -> 7 | B83: 1.486719515e-06 | C83: 1.486719515e-06 | H83: 15.1 | I83: 3.1 | J83: 0.003266819056
A84: =IF(AND((ROWS(A$13:A84)-1)/10<=$B$7,(ROWS(A$13:A84)-1)/10>=$B$6),(ROWS(A$13:A84)-1)/10,"") -> 7.1 | B84: 2.438960746e-06 | C84: 2.438960746e-06 | H84: 15.2 | I84: 3.2 | J84: 0.002384088201
A85: =IF(AND((ROWS(A$13:A85)-1)/10<=$B$7,(ROWS(A$13:A85)-1)/10>=$B$6),(ROWS(A$13:A85)-1)/10,"") -> 7.2 | B85: 3.961299091e-06 | C85: 3.961299091e-06 | H85: 15.3 | I85: =I84+0.1 -> 3.3 | J85: 0.001722568939
A86: =IF(AND((ROWS(A$13:A86)-1)/10<=$B$7,(ROWS(A$13:A86)-1)/10>=$B$6),(ROWS(A$13:A86)-1)/10,"") -> 7.3 | B86: 6.369825179e-06 | C86: 6.369825179e-06 | H86: 15.4 | I86: 3.4 | J86: 0.001232219168
A87: =IF(AND((ROWS(A$13:A87)-1)/10<=$B$7,(ROWS(A$13:A87)-1)/10>=$B$6),(ROWS(A$13:A87)-1)/10,"") -> 7.4 | B87: 1.014085207e-05 | C87: 1.014085207e-05 | H87: 15.5 | I87: 3.5 | J87: 0.000872682695
A88: =IF(AND((ROWS(A$13:A88)-1)/10<=$B$7,(ROWS(A$13:A88)-1)/10>=$B$6),(ROWS(A$13:A88)-1)/10,"") -> 7.5 | B88: 1.598374111e-05 | C88: 1.598374111e-05 | H88: 15.6 | I88: 3.6 | J88: 0.0006119019301
A89: =IF(AND((ROWS(A$13:A89)-1)/10<=$B$7,(ROWS(A$13:A89)-1)/10>=$B$6),(ROWS(A$13:A89)-1)/10,"") -> 7.6 | B89: 2.494247129e-05 | C89: 2.494247129e-05 | H89: 15.7 | I89: 3.7 | J89: 0.0004247802706
A90: =IF(AND((ROWS(A$13:A90)-1)/10<=$B$7,(ROWS(A$13:A90)-1)/10>=$B$6),(ROWS(A$13:A90)-1)/10,"") -> 7.7 | B90: 3.853519674e-05 | C90: 3.853519674e-05 | H90: 15.8 | I90: 3.8 | J90: 0.0002919469258
A91: =IF(AND((ROWS(A$13:A91)-1)/10<=$B$7,(ROWS(A$13:A91)-1)/10>=$B$6),(ROWS(A$13:A91)-1)/10,"") -> 7.8 | B91: 5.894306776e-05 | C91: 5.894306776e-05 | H91: 15.9 | I91: 3.9 | J91: 0.0001986554714
A92: =IF(AND((ROWS(A$13:A92)-1)/10<=$B$7,(ROWS(A$13:A92)-1)/10>=$B$6),(ROWS(A$13:A92)-1)/10,"") -> 7.9 | B92: 8.926165718e-05 | C92: 8.926165718e-05 | H92: 16 | I92: 4 | J92: 0.0001338302258
A93: =IF(AND((ROWS(A$13:A93)-1)/10<=$B$7,(ROWS(A$13:A93)-1)/10>=$B$6),(ROWS(A$13:A93)-1)/10,"") -> 8 | B93: 0.0001338302258 | C93: 0.0001338302258 | H93: 16.1 | I93: 4.1 | J93: 8.926165718e-05
A94: =IF(AND((ROWS(A$13:A94)-1)/10<=$B$7,(ROWS(A$13:A94)-1)/10>=$B$6),(ROWS(A$13:A94)-1)/10,"") -> 8.1 | B94: 0.0001986554714 | C94: 0.0001986554714 | H94: 16.2 | I94: 4.2 | J94: 5.894306776e-05
A95: =IF(AND((ROWS(A$13:A95)-1)/10<=$B$7,(ROWS(A$13:A95)-1)/10>=$B$6),(ROWS(A$13:A95)-1)/10,"") -> 8.2 | B95: 0.0002919469258 | C95: 0.0002919469258 | H95: 16.3 | I95: 4.3 | J95: 3.853519674e-05
A96: =IF(AND((ROWS(A$13:A96)-1)/10<=$B$7,(ROWS(A$13:A96)-1)/10>=$B$6),(ROWS(A$13:A96)-1)/10,"") -> 8.3 | B96: 0.0004247802706 | C96: 0.0004247802706 | H96: 16.4 | I96: 4.4 | J96: 2.494247129e-05
A97: =IF(AND((ROWS(A$13:A97)-1)/10<=$B$7,(ROWS(A$13:A97)-1)/10>=$B$6),(ROWS(A$13:A97)-1)/10,"") -> 8.4 | B97: 0.0006119019301 | C97: 0.0006119019301 | H97: 16.5 | I97: 4.5 | J97: 1.598374111e-05
A98: =IF(AND((ROWS(A$13:A98)-1)/10<=$B$7,(ROWS(A$13:A98)-1)/10>=$B$6),(ROWS(A$13:A98)-1)/10,"") -> 8.5 | B98: 0.000872682695 | C98: 0.000872682695 | H98: =I98*$B$3+$B$2 -> 16.6 | I98: 4.6 | J98: 1.014085207e-05 | K98: =IF(H98<$B$1,J98,"") -> 
A99: =IF(AND((ROWS(A$13:A99)-1)/10<=$B$7,(ROWS(A$13:A99)-1)/10>=$B$6),(ROWS(A$13:A99)-1)/10,"") -> 8.6 | B99: 0.001232219168 | C99: 0.001232219168 | H99: =I99*$B$3+$B$2 -> 16.7 | I99: 4.7 | J99: 6.369825179e-06 | K99: =IF(H99<$B$1,J99,"") -> 
A100: =IF(AND((ROWS(A$13:A100)-1)/10<=$B$7,(ROWS(A$13:A100)-1)/10>=$B$6),(ROWS(A$13:A100)-1)/10,"") -> 8.7 | B100: 0.001722568939 | C100: 0.001722568939 | H100: =I100*$B$3+$B$2 -> 16.8 | I100: 4.8 | J100: 3.961299091e-06 | K100: =IF(H100<$B$1,J100,"") -> 
A101: =IF(AND((ROWS(A$13:A101)-1)/10<=$B$7,(ROWS(A$13:A101)-1)/10>=$B$6),(ROWS(A$13:A101)-1)/10,"") -> 8.8 | B101: 0.002384088201 | C101: 0.002384088201 | H101: =I101*$B$3+$B$2 -> 16.9 | I101: 4.9 | J101: 2.438960746e-06 | K101: =IF(H101<$B$1,J101,"") -> 
A102: =IF(AND((ROWS(A$13:A102)-1)/10<=$B$7,(ROWS(A$13:A102)-1)/10>=$B$6),(ROWS(A$13:A102)-1)/10,"") -> 8.9 | B102: 0.003266819056 | C102: 0.003266819056 | H102: =I102*$B$3+$B$2 -> 17 | I102: 5 | J102: 1.486719515e-06 | K102: =IF(H102<$B$1,J102,"") -> 
A103: =IF(AND((ROWS(A$13:A103)-1)/10<=$B$7,(ROWS(A$13:A103)-1)/10>=$B$6),(ROWS(A$13:A103)-1)/10,"") -> 9 | B103: 0.004431848412 | C103: 0.004431848412
A104: =IF(AND((ROWS(A$13:A104)-1)/10<=$B$7,(ROWS(A$13:A104)-1)/10>=$B$6),(ROWS(A$13:A104)-1)/10,"") -> 9.1 | B104: 0.00595253242 | C104: 0.00595253242
A105: =IF(AND((ROWS(A$13:A105)-1)/10<=$B$7,(ROWS(A$13:A105)-1)/10>=$B$6),(ROWS(A$13:A105)-1)/10,"") -> 9.2 | B105: 0.007915451583 | C105: 0.007915451583
A106: =IF(AND((ROWS(A$13:A106)-1)/10<=$B$7,(ROWS(A$13:A106)-1)/10>=$B$6),(ROWS(A$13:A106)-1)/10,"") -> 9.3 | B106: 0.01042093481 | C106: 0.01042093481
A107: =IF(AND((ROWS(A$13:A107)-1)/10<=$B$7,(ROWS(A$13:A107)-1)/10>=$B$6),(ROWS(A$13:A107)-1)/10,"") -> 9.4 | B107: 0.01358296923 | C107: 0.01358296923
A108: =IF(AND((ROWS(A$13:A108)-1)/10<=$B$7,(ROWS(A$13:A108)-1)/10>=$B$6),(ROWS(A$13:A108)-1)/10,"") -> 9.5 | B108: 0.01752830049 | C108: 0.01752830049
A109: =IF(AND((ROWS(A$13:A109)-1)/10<=$B$7,(ROWS(A$13:A109)-1)/10>=$B$6),(ROWS(A$13:A109)-1)/10,"") -> 9.6 | B109: 0.02239453029 | C109: 0.02239453029
A110: =IF(AND((ROWS(A$13:A110)-1)/10<=$B$7,(ROWS(A$13:A110)-1)/10>=$B$6),(ROWS(A$13:A110)-1)/10,"") -> 9.7 | B110: 0.02832703774 | C110: 0.02832703774
A111: =IF(AND((ROWS(A$13:A111)-1)/10<=$B$7,(ROWS(A$13:A111)-1)/10>=$B$6),(ROWS(A$13:A111)-1)/10,"") -> 9.8 | B111: 0.03547459285 | C111: 0.03547459285
A112: =IF(AND((ROWS(A$13:A112)-1)/10<=$B$7,(ROWS(A$13:A112)-1)/10>=$B$6),(ROWS(A$13:A112)-1)/10,"") -> 9.9 | B112: 0.04398359598 | C112: 0.04398359598
A113: =IF(AND((ROWS(A$13:A113)-1)/10<=$B$7,(ROWS(A$13:A113)-1)/10>=$B$6),(ROWS(A$13:A113)-1)/10,"") -> 10 | B113: 0.05399096651 | C113: 0.05399096651
A114: =IF(AND((ROWS(A$13:A114)-1)/10<=$B$7,(ROWS(A$13:A114)-1)/10>=$B$6),(ROWS(A$13:A114)-1)/10,"") -> 10.1 | B114: 0.06561581477 | C114: 0.06561581477
A115: =IF(AND((ROWS(A$13:A115)-1)/10<=$B$7,(ROWS(A$13:A115)-1)/10>=$B$6),(ROWS(A$13:A115)-1)/10,"") -> 10.2 | B115: 0.0789501583 | C115: 0.0789501583
A116: =IF(AND((ROWS(A$13:A116)-1)/10<=$B$7,(ROWS(A$13:A116)-1)/10>=$B$6),(ROWS(A$13:A116)-1)/10,"") -> 10.3 | B116: 0.09404907738 | C116: 0.09404907738
A117: =IF(AND((ROWS(A$13:A117)-1)/10<=$B$7,(ROWS(A$13:A117)-1)/10>=$B$6),(ROWS(A$13:A117)-1)/10,"") -> 10.4 | B117: 0.1109208347 | C117: 0.1109208347
A118: =IF(AND((ROWS(A$13:A118)-1)/10<=$B$7,(ROWS(A$13:A118)-1)/10>=$B$6),(ROWS(A$13:A118)-1)/10,"") -> 10.5 | B118: 0.1295175957 | C118: 0.1295175957
A119: =IF(AND((ROWS(A$13:A119)-1)/10<=$B$7,(ROWS(A$13:A119)-1)/10>=$B$6),(ROWS(A$13:A119)-1)/10,"") -> 10.6 | B119: 0.1497274656 | C119: 0.1497274656
A120: =IF(AND((ROWS(A$13:A120)-1)/10<=$B$7,(ROWS(A$13:A120)-1)/10>=$B$6),(ROWS(A$13:A120)-1)/10,"") -> 10.7 | B120: 0.171368592 | C120: 0.171368592
A121: =IF(AND((ROWS(A$13:A121)-1)/10<=$B$7,(ROWS(A$13:A121)-1)/10>=$B$6),(ROWS(A$13:A121)-1)/10,"") -> 10.8 | B121: 0.194186055 | C121: 0.194186055
A122: =IF(AND((ROWS(A$13:A122)-1)/10<=$B$7,(ROWS(A$13:A122)-1)/10>=$B$6),(ROWS(A$13:A122)-1)/10,"") -> 10.9 | B122: 0.217852177 | C122: 0.217852177
A123: =IF(AND((ROWS(A$13:A123)-1)/10<=$B$7,(ROWS(A$13:A123)-1)/10>=$B$6),(ROWS(A$13:A123)-1)/10,"") -> 11 | B123: 0.2419707245 | C123: 0.2419707245
A124: =IF(AND((ROWS(A$13:A124)-1)/10<=$B$7,(ROWS(A$13:A124)-1)/10>=$B$6),(ROWS(A$13:A124)-1)/10,"") -> 11.1 | B124: 0.2660852499 | C124: 0.2660852499
A125: =IF(AND((ROWS(A$13:A125)-1)/10<=$B$7,(ROWS(A$13:A125)-1)/10>=$B$6),(ROWS(A$13:A125)-1)/10,"") -> 11.2 | B125: 0.2896915528 | C125: 0.2896915528
A126: =IF(AND((ROWS(A$13:A126)-1)/10<=$B$7,(ROWS(A$13:A126)-1)/10>=$B$6),(ROWS(A$13:A126)-1)/10,"") -> 11.3 | B126: 0.3122539334 | C126: 0.3122539334
A127: =IF(AND((ROWS(A$13:A127)-1)/10<=$B$7,(ROWS(A$13:A127)-1)/10>=$B$6),(ROWS(A$13:A127)-1)/10,"") -> 11.4 | B127: 0.3332246029 | C127: 0.3332246029
A128: =IF(AND((ROWS(A$13:A128)-1)/10<=$B$7,(ROWS(A$13:A128)-1)/10>=$B$6),(ROWS(A$13:A128)-1)/10,"") -> 11.5 | B128: 0.3520653268 | C128: 0.3520653268
A129: =IF(AND((ROWS(A$13:A129)-1)/10<=$B$7,(ROWS(A$13:A129)-1)/10>=$B$6),(ROWS(A$13:A129)-1)/10,"") -> 11.6 | B129: 0.3682701403 | C129: 0.3682701403
A130: =IF(AND((ROWS(A$13:A130)-1)/10<=$B$7,(ROWS(A$13:A130)-1)/10>=$B$6),(ROWS(A$13:A130)-1)/10,"") -> 11.7 | B130: 0.3813878155 | C130: 0.3813878155
A131: =IF(AND((ROWS(A$13:A131)-1)/10<=$B$7,(ROWS(A$13:A131)-1)/10>=$B$6),(ROWS(A$13:A131)-1)/10,"") -> 11.8 | B131: 0.391042694 | C131: 0.391042694
A132: =IF(AND((ROWS(A$13:A132)-1)/10<=$B$7,(ROWS(A$13:A132)-1)/10>=$B$6),(ROWS(A$13:A132)-1)/10,"") -> 11.9 | B132: 0.3969525475 | C132: 0.3969525475
A133: =IF(AND((ROWS(A$13:A133)-1)/10<=$B$7,(ROWS(A$13:A133)-1)/10>=$B$6),(ROWS(A$13:A133)-1)/10,"") -> 12 | B133: 0.3989422804 | C133: 0.3989422804
A134: =IF(AND((ROWS(A$13:A134)-1)/10<=$B$7,(ROWS(A$13:A134)-1)/10>=$B$6),(ROWS(A$13:A134)-1)/10,"") -> 12.1 | B134: 0.3969525475 | C134: 0.3969525475
A135: =IF(AND((ROWS(A$13:A135)-1)/10<=$B$7,(ROWS(A$13:A135)-1)/10>=$B$6),(ROWS(A$13:A135)-1)/10,"") -> 12.2 | B135: 0.391042694 | C135: 0.391042694
A136: =IF(AND((ROWS(A$13:A136)-1)/10<=$B$7,(ROWS(A$13:A136)-1)/10>=$B$6),(ROWS(A$13:A136)-1)/10,"") -> 12.3 | B136: 0.3813878155 | C136: 0.3813878155
A137: =IF(AND((ROWS(A$13:A137)-1)/10<=$B$7,(ROWS(A$13:A137)-1)/10>=$B$6),(ROWS(A$13:A137)-1)/10,"") -> 12.4 | B137: 0.3682701403 | C137: 0.3682701403
A138: =IF(AND((ROWS(A$13:A138)-1)/10<=$B$7,(ROWS(A$13:A138)-1)/10>=$B$6),(ROWS(A$13:A138)-1)/10,"") -> 12.5 | B138: 0.3520653268 | C138: 0.3520653268
A139: =IF(AND((ROWS(A$13:A139)-1)/10<=$B$7,(ROWS(A$13:A139)-1)/10>=$B$6),(ROWS(A$13:A139)-1)/10,"") -> 12.6 | B139: 0.3332246029 | C139: 0.3332246029
A140: =IF(AND((ROWS(A$13:A140)-1)/10<=$B$7,(ROWS(A$13:A140)-1)/10>=$B$6),(ROWS(A$13:A140)-1)/10,"") -> 12.7 | B140: 0.3122539334 | C140: 0.3122539334
A141: =IF(AND((ROWS(A$13:A141)-1)/10<=$B$7,(ROWS(A$13:A141)-1)/10>=$B$6),(ROWS(A$13:A141)-1)/10,"") -> 12.8 | B141: 0.2896915528 | C141: =IF(AND(A141<=$B$1,A141<>""),B141,"") -> 0.2896915528
A142: =IF(AND((ROWS(A$13:A142)-1)/10<=$B$7,(ROWS(A$13:A142)-1)/10>=$B$6),(ROWS(A$13:A142)-1)/10,"") -> 12.9 | B142: =IF(A142="","",_xlfn.NORM.DIST(A142,$B$2,$B$3,0)) -> 0.2660852499 | C142: 0.2660852499
A143: =IF(AND((ROWS(A$13:A143)-1)/10<=$B$7,(ROWS(A$13:A143)-1)/10>=$B$6),(ROWS(A$13:A143)-1)/10,"") -> 13 | B143: 0.2419707245 | C143: 0.2419707245
A144: =IF(AND((ROWS(A$13:A144)-1)/10<=$B$7,(ROWS(A$13:A144)-1)/10>=$B$6),(ROWS(A$13:A144)-1)/10,"") -> 13.1 | B144: 0.217852177
A145: =IF(AND((ROWS(A$13:A145)-1)/10<=$B$7,(ROWS(A$13:A145)-1)/10>=$B$6),(ROWS(A$13:A145)-1)/10,"") -> 13.2 | B145: 0.194186055
A146: =IF(AND((ROWS(A$13:A146)-1)/10<=$B$7,(ROWS(A$13:A146)-1)/10>=$B$6),(ROWS(A$13:A146)-1)/10,"") -> 13.3 | B146: 0.171368592
A147: =IF(AND((ROWS(A$13:A147)-1)/10<=$B$7,(ROWS(A$13:A147)-1)/10>=$B$6),(ROWS(A$13:A147)-1)/10,"") -> 13.4 | B147: 0.1497274656
A148: =IF(AND((ROWS(A$13:A148)-1)/10<=$B$7,(ROWS(A$13:A148)-1)/10>=$B$6),(ROWS(A$13:A148)-1)/10,"") -> 13.5 | B148: 0.1295175957
A149: =IF(AND((ROWS(A$13:A149)-1)/10<=$B$7,(ROWS(A$13:A149)-1)/10>=$B$6),(ROWS(A$13:A149)-1)/10,"") -> 13.6 | B149: 0.1109208347
A150: =IF(AND((ROWS(A$13:A150)-1)/10<=$B$7,(ROWS(A$13:A150)-1)/10>=$B$6),(ROWS(A$13:A150)-1)/10,"") -> 13.7 | B150: 0.09404907738
A151: =IF(AND((ROWS(A$13:A151)-1)/10<=$B$7,(ROWS(A$13:A151)-1)/10>=$B$6),(ROWS(A$13:A151)-1)/10,"") -> 13.8 | B151: 0.0789501583
A152: =IF(AND((ROWS(A$13:A152)-1)/10<=$B$7,(ROWS(A$13:A152)-1)/10>=$B$6),(ROWS(A$13:A152)-1)/10,"") -> 13.9 | B152: 0.06561581477
A153: =IF(AND((ROWS(A$13:A153)-1)/10<=$B$7,(ROWS(A$13:A153)-1)/10>=$B$6),(ROWS(A$13:A153)-1)/10,"") -> 14 | B153: 0.05399096651
A154: =IF(AND((ROWS(A$13:A154)-1)/10<=$B$7,(ROWS(A$13:A154)-1)/10>=$B$6),(ROWS(A$13:A154)-1)/10,"") -> 14.1 | B154: 0.04398359598
A155: =IF(AND((ROWS(A$13:A155)-1)/10<=$B$7,(ROWS(A$13:A155)-1)/10>=$B$6),(ROWS(A$13:A155)-1)/10,"") -> 14.2 | B155: 0.03547459285
A156: =IF(AND((ROWS(A$13:A156)-1)/10<=$B$7,(ROWS(A$13:A156)-1)/10>=$B$6),(ROWS(A$13:A156)-1)/10,"") -> 14.3 | B156: 0.02832703774
A157: =IF(AND((ROWS(A$13:A157)-1)/10<=$B$7,(ROWS(A$13:A157)-1)/10>=$B$6),(ROWS(A$13:A157)-1)/10,"") -> 14.4 | B157: 0.02239453029
A158: =IF(AND((ROWS(A$13:A158)-1)/10<=$B$7,(ROWS(A$13:A158)-1)/10>=$B$6),(ROWS(A$13:A158)-1)/10,"") -> 14.5 | B158: 0.01752830049
A159: =IF(AND((ROWS(A$13:A159)-1)/10<=$B$7,(ROWS(A$13:A159)-1)/10>=$B$6),(ROWS(A$13:A159)-1)/10,"") -> 14.6 | B159: 0.01358296923
A160: =IF(AND((ROWS(A$13:A160)-1)/10<=$B$7,(ROWS(A$13:A160)-1)/10>=$B$6),(ROWS(A$13:A160)-1)/10,"") -> 14.7 | B160: 0.01042093481
A161: =IF(AND((ROWS(A$13:A161)-1)/10<=$B$7,(ROWS(A$13:A161)-1)/10>=$B$6),(ROWS(A$13:A161)-1)/10,"") -> 14.8 | B161: 0.007915451583
A162: =IF(AND((ROWS(A$13:A162)-1)/10<=$B$7,(ROWS(A$13:A162)-1)/10>=$B$6),(ROWS(A$13:A162)-1)/10,"") -> 14.9 | B162: 0.00595253242
A163: =IF(AND((ROWS(A$13:A163)-1)/10<=$B$7,(ROWS(A$13:A163)-1)/10>=$B$6),(ROWS(A$13:A163)-1)/10,"") -> 15 | B163: 0.004431848412
A164: =IF(AND((ROWS(A$13:A164)-1)/10<=$B$7,(ROWS(A$13:A164)-1)/10>=$B$6),(ROWS(A$13:A164)-1)/10,"") -> 15.1 | B164: 0.003266819056
A165: =IF(AND((ROWS(A$13:A165)-1)/10<=$B$7,(ROWS(A$13:A165)-1)/10>=$B$6),(ROWS(A$13:A165)-1)/10,"") -> 15.2 | B165: 0.002384088201
A166: =IF(AND((ROWS(A$13:A166)-1)/10<=$B$7,(ROWS(A$13:A166)-1)/10>=$B$6),(ROWS(A$13:A166)-1)/10,"") -> 15.3 | B166: 0.001722568939
A167: =IF(AND((ROWS(A$13:A167)-1)/10<=$B$7,(ROWS(A$13:A167)-1)/10>=$B$6),(ROWS(A$13:A167)-1)/10,"") -> 15.4 | B167: 0.001232219168
A168: =IF(AND((ROWS(A$13:A168)-1)/10<=$B$7,(ROWS(A$13:A168)-1)/10>=$B$6),(ROWS(A$13:A168)-1)/10,"") -> 15.5 | B168: 0.000872682695
A169: =IF(AND((ROWS(A$13:A169)-1)/10<=$B$7,(ROWS(A$13:A169)-1)/10>=$B$6),(ROWS(A$13:A169)-1)/10,"") -> 15.6 | B169: 0.0006119019301
A170: =IF(AND((ROWS(A$13:A170)-1)/10<=$B$7,(ROWS(A$13:A170)-1)/10>=$B$6),(ROWS(A$13:A170)-1)/10,"") -> 15.7 | B170: 0.0004247802706
A171: =IF(AND((ROWS(A$13:A171)-1)/10<=$B$7,(ROWS(A$13:A171)-1)/10>=$B$6),(ROWS(A$13:A171)-1)/10,"") -> 15.8 | B171: 0.0002919469258
A172: =IF(AND((ROWS(A$13:A172)-1)/10<=$B$7,(ROWS(A$13:A172)-1)/10>=$B$6),(ROWS(A$13:A172)-1)/10,"") -> 15.9 | B172: 0.0001986554714
A173: =IF(AND((ROWS(A$13:A173)-1)/10<=$B$7,(ROWS(A$13:A173)-1)/10>=$B$6),(ROWS(A$13:A173)-1)/10,"") -> 16 | B173: 0.0001338302258
A174: =IF(AND((ROWS(A$13:A174)-1)/10<=$B$7,(ROWS(A$13:A174)-1)/10>=$B$6),(ROWS(A$13:A174)-1)/10,"") -> 16.1 | B174: 8.926165718e-05
A175: =IF(AND((ROWS(A$13:A175)-1)/10<=$B$7,(ROWS(A$13:A175)-1)/10>=$B$6),(ROWS(A$13:A175)-1)/10,"") -> 16.2 | B175: 5.894306776e-05
A176: =IF(AND((ROWS(A$13:A176)-1)/10<=$B$7,(ROWS(A$13:A176)-1)/10>=$B$6),(ROWS(A$13:A176)-1)/10,"") -> 16.3 | B176: 3.853519674e-05
A177: =IF(AND((ROWS(A$13:A177)-1)/10<=$B$7,(ROWS(A$13:A177)-1)/10>=$B$6),(ROWS(A$13:A177)-1)/10,"") -> 16.4 | B177: 2.494247129e-05
A178: =IF(AND((ROWS(A$13:A178)-1)/10<=$B$7,(ROWS(A$13:A178)-1)/10>=$B$6),(ROWS(A$13:A178)-1)/10,"") -> 16.5 | B178: 1.598374111e-05
A179: =IF(AND((ROWS(A$13:A179)-1)/10<=$B$7,(ROWS(A$13:A179)-1)/10>=$B$6),(ROWS(A$13:A179)-1)/10,"") -> 16.6 | B179: 1.014085207e-05
A180: =IF(AND((ROWS(A$13:A180)-1)/10<=$B$7,(ROWS(A$13:A180)-1)/10>=$B$6),(ROWS(A$13:A180)-1)/10,"") -> 16.7 | B180: 6.369825179e-06
A181: =IF(AND((ROWS(A$13:A181)-1)/10<=$B$7,(ROWS(A$13:A181)-1)/10>=$B$6),(ROWS(A$13:A181)-1)/10,"") -> 16.8 | B181: 3.961299091e-06
A182: =IF(AND((ROWS(A$13:A182)-1)/10<=$B$7,(ROWS(A$13:A182)-1)/10>=$B$6),(ROWS(A$13:A182)-1)/10,"") -> 16.9 | B182: 2.438960746e-06
A183: =IF(AND((ROWS(A$13:A183)-1)/10<=$B$7,(ROWS(A$13:A183)-1)/10>=$B$6),(ROWS(A$13:A183)-1)/10,"") -> 17 | B183: 1.486719515e-06
A184: =IF(AND((ROWS(A$13:A184)-1)/10<=$B$7,(ROWS(A$13:A184)-1)/10>=$B$6),(ROWS(A$13:A184)-1)/10,"") -> 
A185: =IF(AND((ROWS(A$13:A185)-1)/10<=$B$7,(ROWS(A$13:A185)-1)/10>=$B$6),(ROWS(A$13:A185)-1)/10,"") -> 
A186: =IF(AND((ROWS(A$13:A186)-1)/10<=$B$7,(ROWS(A$13:A186)-1)/10>=$B$6),(ROWS(A$13:A186)-1)/10,"") -> 
A187: =IF(AND((ROWS(A$13:A187)-1)/10<=$B$7,(ROWS(A$13:A187)-1)/10>=$B$6),(ROWS(A$13:A187)-1)/10,"") -> 
A188: =IF(AND((ROWS(A$13:A188)-1)/10<=$B$7,(ROWS(A$13:A188)-1)/10>=$B$6),(ROWS(A$13:A188)-1)/10,"") -> 
A189: =IF(AND((ROWS(A$13:A189)-1)/10<=$B$7,(ROWS(A$13:A189)-1)/10>=$B$6),(ROWS(A$13:A189)-1)/10,"") -> 
A190: =IF(AND((ROWS(A$13:A190)-1)/10<=$B$7,(ROWS(A$13:A190)-1)/10>=$B$6),(ROWS(A$13:A190)-1)/10,"") -> 
A191: =IF(AND((ROWS(A$13:A191)-1)/10<=$B$7,(ROWS(A$13:A191)-1)/10>=$B$6),(ROWS(A$13:A191)-1)/10,"") -> 
A192: =IF(AND((ROWS(A$13:A192)-1)/10<=$B$7,(ROWS(A$13:A192)-1)/10>=$B$6),(ROWS(A$13:A192)-1)/10,"") -> 
A193: =IF(AND((ROWS(A$13:A193)-1)/10<=$B$7,(ROWS(A$13:A193)-1)/10>=$B$6),(ROWS(A$13:A193)-1)/10,"") -> 
A194: =IF(AND((ROWS(A$13:A194)-1)/10<=$B$7,(ROWS(A$13:A194)-1)/10>=$B$6),(ROWS(A$13:A194)-1)/10,"") -> 
A195: =IF(AND((ROWS(A$13:A195)-1)/10<=$B$7,(ROWS(A$13:A195)-1)/10>=$B$6),(ROWS(A$13:A195)-1)/10,"") -> 
A196: =IF(AND((ROWS(A$13:A196)-1)/10<=$B$7,(ROWS(A$13:A196)-1)/10>=$B$6),(ROWS(A$13:A196)-1)/10,"") -> 
A197: =IF(AND((ROWS(A$13:A197)-1)/10<=$B$7,(ROWS(A$13:A197)-1)/10>=$B$6),(ROWS(A$13:A197)-1)/10,"") -> 
A198: =IF(AND((ROWS(A$13:A198)-1)/10<=$B$7,(ROWS(A$13:A198)-1)/10>=$B$6),(ROWS(A$13:A198)-1)/10,"") -> 
A199: =IF(AND((ROWS(A$13:A199)-1)/10<=$B$7,(ROWS(A$13:A199)-1)/10>=$B$6),(ROWS(A$13:A199)-1)/10,"") -> 
A200: =IF(AND((ROWS(A$13:A200)-1)/10<=$B$7,(ROWS(A$13:A200)-1)/10>=$B$6),(ROWS(A$13:A200)-1)/10,"") -> 
... 3884 more rows

Sheet SNormal
A1: x = Test Scores | B1: 10 | C1: X | D1: z | E1: Height | F1: ="X<"&B1 -> X<10
A2: mean = μ | B2: 12 | C2: =D2*$B$3+$B$2 -> 2 | D2: -5 | E2: =_xlfn.NORM.DIST(C2,$B$2,$B$3,0) -> 7.433597574e-07 | F2: =IF(C2<$B$1,E2,"") -> 7.433597574e-07
A3: SD = σ | B3: 2 | C3: 2.2 | D3: =D2+0.1 -> -4.9 | E3: =_xlfn.NORM.DIST(C3,$B$2,$B$3,0) -> 1.219480373e-06 | F3: 1.219480373e-06
C4: 2.4 | D4: -4.8 | E4: 1.980649546e-06 | F4: 1.980649546e-06
C5: 2.6 | D5: -4.7 | E5: 3.184912589e-06 | F5: 3.184912589e-06
C6: 2.8 | D6: -4.6 | E6: 5.070426033e-06 | F6: 5.070426033e-06
C7: 3 | D7: -4.5 | E7: 7.991870553e-06 | F7: 7.991870553e-06
C8: 3.2 | D8: -4.4 | E8: 1.247123565e-05 | F8: 1.247123565e-05
C9: 3.4 | D9: -4.3 | E9: 1.926759837e-05 | F9: 1.926759837e-05
C10: 3.6 | D10: -4.2 | E10: 2.947153388e-05 | F10: 2.947153388e-05 | I10: x = actual test score
C11: 3.8 | D11: -4.1 | E11: 4.463082859e-05 | F11: 4.463082859e-05
C12: 4 | D12: -4 | E12: 6.691511288e-05 | F12: 6.691511288e-05 | I12: z = Standard Normal Random Variable = # of
C13: 4.2 | D13: -3.9 | E13: 9.93277357e-05 | F13: 9.93277357e-05 | I13: standard Deviations away from mean
C14: 4.4 | D14: -3.8 | E14: 0.0001459734629 | F14: 0.0001459734629
C15: 4.6 | D15: -3.7 | E15: 0.0002123901353 | F15: 0.0002123901353
C16: 4.8 | D16: -3.6 | E16: 0.0003059509651 | F16: 0.0003059509651
C17: 5 | D17: -3.5 | E17: 0.0004363413475 | F17: 0.0004363413475
C18: 5.2 | D18: -3.4 | E18: 0.0006161095842 | F18: 0.0006161095842
C19: 5.4 | D19: -3.3 | E19: 0.0008612844695 | F19: 0.0008612844695
C20: 5.6 | D20: -3.2 | E20: 0.001192044101 | F20: 0.001192044101
C21: 5.8 | D21: -3.1 | E21: 0.001633409528 | F21: 0.001633409528
C22: 6 | D22: -3 | E22: 0.002215924206 | F22: 0.002215924206
C23: 6.2 | D23: -2.9 | E23: 0.00297626621 | F23: 0.00297626621
C24: 6.4 | D24: -2.8 | E24: 0.003957725791 | F24: 0.003957725791
C25: 6.6 | D25: -2.7 | E25: 0.005210467407 | F25: 0.005210467407
C26: 6.8 | D26: -2.6 | E26: 0.006791484617 | F26: 0.006791484617
C27: 7 | D27: -2.5 | E27: 0.008764150247 | F27: 0.008764150247
C28: 7.2 | D28: -2.4 | E28: 0.01119726515 | F28: 0.01119726515
C29: 7.4 | D29: -2.3 | E29: 0.01416351887 | F29: 0.01416351887
C30: 7.6 | D30: -2.2 | E30: 0.01773729642 | F30: 0.01773729642
C31: 7.8 | D31: -2.1 | E31: 0.02199179799 | F31: 0.02199179799
C32: 8 | D32: -2 | E32: 0.02699548326 | F32: 0.02699548326
C33: 8.2 | D33: -1.9 | E33: 0.03280790739 | F33: 0.03280790739
C34: =D34*$B$3+$B$2 -> 8.4 | D34: -1.8 | E34: 0.03947507915 | F34: =IF(C34<$B$1,E34,"") -> 0.03947507915
C35: 8.6 | D35: =D34+0.1 -> -1.7 | E35: 0.04702453869 | F35: 0.04702453869
C36: 8.8 | D36: -1.6 | E36: 0.05546041734 | F36: 0.05546041734
C37: 9 | D37: -1.5 | E37: 0.06475879783 | F37: 0.06475879783
C38: 9.2 | D38: -1.4 | E38: 0.07486373282 | F38: 0.07486373282
C39: 9.4 | D39: -1.3 | E39: 0.08568429602 | F39: 0.08568429602
C40: 9.6 | D40: -1.2 | E40: 0.09709302749 | F40: 0.09709302749
C41: 9.8 | D41: -1.1 | E41: 0.1089260885 | F41: 0.1089260885
C42: 10 | D42: -1 | E42: 0.1209853623
C43: 10.2 | D43: -0.9 | E43: 0.1330426249
C44: 10.4 | D44: -0.8 | E44: 0.1448457764
C45: 10.6 | D45: -0.7 | E45: 0.1561269667
C46: 10.8 | D46: -0.6 | E46: 0.1666123014
C47: 11 | D47: -0.5 | E47: 0.1760326634
C48: 11.2 | D48: -0.4 | E48: 0.1841350702
C49: 11.4 | D49: -0.3 | E49: 0.1906939077
C50: 11.6 | D50: -0.2 | E50: 0.195521347
C51: 11.8 | D51: -0.1 | E51: 0.1984762737
C52: 12 | D52: 0 | E52: 0.1994711402
C53: 12.2 | D53: =D52+0.1 -> 0.1 | E53: 0.1984762737
C54: 12.4 | D54: 0.2 | E54: 0.195521347
C55: 12.6 | D55: 0.3 | E55: 0.1906939077
C56: 12.8 | D56: 0.4 | E56: 0.1841350702
C57: 13 | D57: 0.5 | E57: 0.1760326634
C58: 13.2 | D58: 0.6 | E58: 0.1666123014
C59: 13.4 | D59: 0.7 | E59: 0.1561269667
C60: 13.6 | D60: 0.8 | E60: 0.1448457764
C61: 13.8 | D61: 0.9 | E61: 0.1330426249
C62: 14 | D62: 1 | E62: 0.1209853623
C63: 14.2 | D63: 1.1 | E63: 0.1089260885
C64: 14.4 | D64: 1.2 | E64: 0.09709302749
C65: 14.6 | D65: 1.3 | E65: 0.08568429602
C66: =D66*$B$3+$B$2 -> 14.8 | D66: 1.4 | E66: 0.07486373282 | F66: =IF(C66<$B$1,E66,"") -> 
C67: 15 | D67: 1.5 | E67: =_xlfn.NORM.DIST(C67,$B$2,$B$3,0) -> 0.06475879783
C68: 15.2 | D68: 1.6 | E68: 0.05546041734
C69: 15.4 | D69: 1.7 | E69: 0.04702453869
C70: 15.6 | D70: 1.8 | E70: 0.03947507915
C71: 15.8 | D71: 1.9 | E71: 0.03280790739
C72: 16 | D72: 2 | E72: 0.02699548326
C73: 16.2 | D73: 2.1 | E73: 0.02199179799
C74: 16.4 | D74: 2.2 | E74: 0.01773729642
C75: 16.6 | D75: 2.3 | E75: 0.01416351887
C76: 16.8 | D76: 2.4 | E76: 0.01119726515
C77: 17 | D77: 2.5 | E77: 0.008764150247
C78: 17.2 | D78: 2.6 | E78: 0.006791484617
C79: 17.4 | D79: 2.7 | E79: 0.005210467407
C80: 17.6 | D80: 2.8 | E80: 0.003957725791
C81: 17.8 | D81: 2.9 | E81: 0.00297626621
C82: 18 | D82: 3 | E82: 0.002215924206
C83: 18.2 | D83: 3.1 | E83: 0.001633409528
C84: 18.4 | D84: 3.2 | E84: 0.001192044101
C85: 18.6 | D85: =D84+0.1 -> 3.3 | E85: 0.0008612844695
C86: 18.8 | D86: 3.4 | E86: 0.0006161095842
C87: 19 | D87: 3.5 | E87: 0.0004363413475
C88: 19.2 | D88: 3.6 | E88: 0.0003059509651
C89: 19.4 | D89: 3.7 | E89: 0.0002123901353
C90: 19.6 | D90: 3.8 | E90: 0.0001459734629
C91: 19.8 | D91: 3.9 | E91: 9.93277357e-05
C92: 20 | D92: 4 | E92: 6.691511288e-05
C93: 20.2 | D93: 4.1 | E93: 4.463082859e-05
C94: 20.4 | D94: 4.2 | E94: 2.947153388e-05
C95: 20.6 | D95: 4.3 | E95: 1.926759837e-05
C96: 20.8 | D96: 4.4 | E96: 1.247123565e-05
C97: 21 | D97: 4.5 | E97: 7.991870553e-06
C98: =D98*$B$3+$B$2 -> 21.2 | D98: 4.6 | E98: 5.070426033e-06 | F98: =IF(C98<$B$1,E98,"") -> 
C99: =D99*$B$3+$B$2 -> 21.4 | D99: 4.7 | E99: 3.184912589e-06 | F99: =IF(C99<$B$1,E99,"") -> 
C100: =D100*$B$3+$B$2 -> 21.6 | D100: 4.8 | E100: 1.980649546e-06 | F100: =IF(C100<$B$1,E100,"") -> 
C101: =D101*$B$3+$B$2 -> 21.8 | D101: 4.9 | E101: 1.219480373e-06 | F101: =IF(C101<$B$1,E101,"") -> 
C102: =D102*$B$3+$B$2 -> 22 | D102: 5 | E102: 7.433597574e-07 | F102: =IF(C102<$B$1,E102,"") -> 

Sheet <= Prob
A1: Because we have looked at past data for test scores for a particular instructor and have seen that the distribution (histogram chart) is approximately bell shaped, we can use the bell curve to estimate probabilities
A2: In chapter 6, we know population mean and standard deviation (mew and sigma). Later we will see how to do similar calculations for sample data (after we learn Central Limit Theorem).
A3: Based on past data, estimate the percentage of scores on the next statistics test that will be 10 points or less.
A4: Test Score | B4: x | C4: 10
B5: Operator 1 | C5: <=
B6: Operator 2
B7: mean = mew = μ = | C7: 12
B8: standard deviation = sigma = σ = | C8: 2
B9: Z | E9: Sum of Heights | F9: old functions
B10: ="p(X "&$C$5&" "&C4&")" -> p(X <= 10)
B11: ="p(Z "&C5&" "&C9&")" -> p(Z <= ) | E11: **Not allowed
B12: What is x given cumulative Probability?
B13: What is z given cumulative Probability?
A14: 0.1 | B14: ="What score do you need to be in to be top "&TEXT(A14,"0%")&"?" -> What score do you need to be in to be top 10%?
B15: P(X>=10) | E15: Where should we start? | G15: x = low | H15: =C7-C8*6 -> 0 | J15: 0.99 | K15: + / - 3 SD
B16: =IF(C10<>"","Based on past data it would be reasonable to assume that on the next test there is a "&TEXT(C10,"0.00%")&" chance that a score selected at random would be "&C4&" or less, or that "&TEXT(C10,"0.00%")&" of all the scores on the next test will be "&C4&" or less.","") ->  | E16: Where should we end? | G16: x = high | H16: =C7+C8*6 -> 24
E17: Chart Label | F17: ="Test Scores with a mew of "&C7&", and sigma of "&C8 -> Test Scores with a mew of 12, and sigma of 2
G18: Height of curve
E19: z | F19: =B4&" = "&A4 -> x = Test Score | G19: =B15&" = "&ROUND(C15,4) -> P(X>=10) = 0 | H19: ="P(x<="&C4&") = "&ROUND(C10,4) -> P(x<=10) = 0
E20: =(F20-$C$7)/$C$8 -> -6 | F20: 0 | G20: =_xlfn.NORM.DIST(F20,$C$7,$C$8,0) -> 3.037941425e-09 | H20: =IF(F20<=$C$4,G20,"") -> 3.037941425e-09 | J20: F17 has the formula: =NORM.DIST(E20,$C$7,$C$8,0) G17 has the formula: =IF(E20<=$C$4,F20,"")
E21: =(F21-$C$7)/$C$8 -> -5.95 | F21: 0.1 | G21: =_xlfn.NORM.DIST(F21,$C$7,$C$8,0) -> 4.095669202e-09 | H21: =IF(F21<=$C$4,G21,"") -> 4.095669202e-09
E22: -5.9 | F22: 0.2 | G22: 5.507881812e-09 | H22: 5.507881812e-09
E23: -5.85 | F23: 0.3 | G23: 7.388539793e-09 | H23: 7.388539793e-09
B24: ="Note: Because we are dealing with continuous random variables and we are calculating probability from area and because the area of a line is zero, P("&C5&C4&") = P("&LEFT(C5,1)&C4&")" -> Note: Because we are dealing with continuous random variables and we are calculating probability from area and because the area of a line is zero, P(<=10) = P(<10) | E24: -5.8 | F24: 0.4 | G24: 9.886598203e-09 | H24: 9.886598203e-09
E25: -5.75 | F25: 0.5 | G25: 1.319621602e-08 | H25: 1.319621602e-08
E26: -5.7 | F26: 0.6 | G26: 1.756977547e-08 | H26: 1.756977547e-08
E27: -5.65 | F27: 0.7 | G27: 2.333443399e-08 | H27: 2.333443399e-08 | J27: Chart Steps:
E28: -5.6 | F28: 0.8 | G28: 3.09131025e-08 | H28: 3.09131025e-08 | J28: Create Chart Label in cell F17: ="Bell Curve For Test Scores, mew = "&C7&", sigma = "&C8
E29: -5.55 | F29: 0.9 | G29: 4.085095189e-08 | H29: 4.085095189e-08 | J29: Create series label in cell G19: ="Remaining Area = "&ROUND(1-C10,4)
E30: -5.5 | F30: 1 | G30: 5.384880021e-08 | H30: 5.384880021e-08 | J30: Create series label in cell H19: ="P(x<="&C4&") = "&ROUND(C10,4)
E31: -5.45 | F31: 1.1 | G31: 7.080503565e-08 | H31: 7.080503565e-08 | J31: Create x values (type 0, right-click fill handle, Series, Columns, Step .01, End = 24, Ok)
E32: -5.4 | F32: 1.2 | G32: 9.286809223e-08 | H32: 9.286809223e-08 | J32: Create z values
E33: -5.35 | F33: 1.3 | G33: 1.215019271e-07 | H33: 1.215019271e-07 | J33: Plot Height Values with Area Chart
E34: -5.3 | F34: 1.4 | G34: 1.585674608e-07 | H34: 1.585674608e-07 | J34: Edit horizontal Axis (ChartTools Design tab Ribbon, Select Data button)
E35: -5.25 | F35: 1.5 | G35: 2.064235494e-07 | H35: 2.064235494e-07 | J35: Plot Secondary Heights
E36: -5.2 | F36: 1.6 | G36: 2.680517672e-07 | H36: 2.680517672e-07 | J36: Right-click secondary Heights on chart and Ctrl + 1 to open Format Chart Element dialog box, change series to secondary axis.
E37: -5.15 | F37: 1.7 | G37: 3.472101177e-07 | H37: 3.472101177e-07 | J37: Delete Vertical Axis on right
E38: -5.1 | F38: 1.8 | G38: 4.486217581e-07 | H38: 4.486217581e-07 | J38: ChartTools Layout tab Ribbon, "Axes" button in Axes group, Secondary Horizontal Axis, Show Left to Right Axis
E39: -5.05 | F39: 1.9 | G39: 5.782059518e-07 | H39: 5.782059518e-07 | J39: Click on Axis, Ctrl + 1, Axis Options, Axis Labels = Low
E40: -5 | F40: 2 | G40: 7.433597574e-07 | H40: 7.433597574e-07 | J40: Move Legend
E41: -4.95 | F41: 2.1 | G41: 9.533004516e-07 | H41: 9.533004516e-07 | J41: Add Chart Title linked to cell
E42: -4.9 | F42: 2.2 | G42: 1.219480373e-06 | H42: 1.219480373e-06
E43: -4.85 | F43: 2.3 | G43: 1.55608779e-06 | H43: 1.55608779e-06
E44: -4.8 | F44: 2.4 | G44: 1.980649546e-06 | H44: 1.980649546e-06
E45: -4.75 | F45: 2.5 | G45: 2.514753644e-06 | H45: 2.514753644e-06
E46: -4.7 | F46: 2.6 | G46: 3.184912589e-06 | H46: 3.184912589e-06
E47: -4.65 | F47: 2.7 | G47: 4.023591228e-06 | H47: 4.023591228e-06
E48: -4.6 | F48: 2.8 | G48: 5.070426033e-06 | H48: 5.070426033e-06
E49: -4.55 | F49: 2.9 | G49: 6.373666191e-06 | H49: 6.373666191e-06
E50: -4.5 | F50: 3 | G50: 7.991870553e-06 | H50: 7.991870553e-06
E51: -4.45 | F51: 3.1 | G51: 9.995898353e-06 | H51: 9.995898353e-06
E52: -4.4 | F52: 3.2 | G52: 1.247123565e-05 | H52: 1.247123565e-05
E53: -4.35 | F53: 3.3 | G53: 1.552070353e-05 | H53: 1.552070353e-05
E54: -4.3 | F54: 3.4 | G54: 1.926759837e-05 | H54: 1.926759837e-05
E55: -4.25 | F55: 3.5 | G55: 2.385931827e-05 | H55: 2.385931827e-05
E56: -4.2 | F56: 3.6 | G56: 2.947153388e-05 | H56: 2.947153388e-05
E57: -4.15 | F57: 3.7 | G57: 3.631296515e-05 | H57: 3.631296515e-05
E58: -4.1 | F58: 3.8 | G58: 4.463082859e-05 | H58: 4.463082859e-05
E59: -4.05 | F59: 3.9 | G59: 5.471702172e-05 | H59: 5.471702172e-05
E60: -4 | F60: 4 | G60: 6.691511288e-05 | H60: 6.691511288e-05
E61: -3.95 | F61: 4.1 | G61: 8.162820438e-05 | H61: 8.162820438e-05
E62: -3.9 | F62: 4.2 | G62: 9.93277357e-05 | H62: 9.93277357e-05
E63: -3.85 | F63: 4.3 | G63: 0.0001205632901 | H63: 0.0001205632901
E64: -3.8 | F64: 4.4 | G64: 0.0001459734629 | H64: 0.0001459734629
E65: -3.75 | F65: 4.5 | G65: 0.0001762978412 | H65: 0.0001762978412
E66: -3.7 | F66: 4.6 | G66: 0.0002123901353 | H66: 0.0002123901353
E67: -3.65 | F67: 4.7 | G67: 0.0002552324872 | H67: 0.0002552324872
E68: -3.6 | F68: 4.8 | G68: 0.0003059509651 | H68: 0.0003059509651
E69: -3.55 | F69: 4.9 | G69: 0.0003658322314 | H69: 0.0003658322314
E70: -3.5 | F70: 5 | G70: 0.0004363413475 | H70: 0.0004363413475
E71: -3.45 | F71: 5.1 | G71: 0.0005191406478 | H71: 0.0005191406478
E72: -3.4 | F72: 5.2 | G72: 0.0006161095842 | H72: 0.0006161095842
E73: -3.35 | F73: 5.3 | G73: 0.0007293654023 | H73: 0.0007293654023
E74: -3.3 | F74: 5.4 | G74: 0.0008612844695 | H74: 0.0008612844695
E75: -3.25 | F75: 5.5 | G75: 0.001014524029 | H75: 0.001014524029
E76: -3.2 | F76: 5.6 | G76: 0.001192044101 | H76: 0.001192044101
E77: -3.15 | F77: 5.7 | G77: 0.001397129207 | H77: 0.001397129207
E78: -3.1 | F78: 5.8 | G78: 0.001633409528 | H78: 0.001633409528
E79: -3.05 | F79: 5.9 | G79: 0.001904881049 | H79: 0.001904881049
E80: -3 | F80: 6 | G80: 0.002215924206 | H80: 0.002215924206
E81: -2.95 | F81: 6.1 | G81: 0.002571320462 | H81: 0.002571320462
E82: -2.9 | F82: 6.2 | G82: 0.00297626621 | H82: 0.00297626621
E83: -2.85 | F83: 6.3 | G83: 0.003436383345 | H83: 0.003436383345
E84: -2.8 | F84: 6.4 | G84: 0.003957725791 | H84: 0.003957725791
E85: =(F85-$C$7)/$C$8 -> -2.75 | F85: 6.5 | G85: =_xlfn.NORM.DIST(F85,$C$7,$C$8,0) -> 0.004546781251 | H85: =IF(F85<=$C$4,G85,"") -> 0.004546781251
E86: -2.7 | F86: 6.6 | G86: 0.005210467407 | H86: 0.005210467407
E87: -2.65 | F87: 6.7 | G87: 0.005956121804 | H87: 0.005956121804
E88: -2.6 | F88: 6.8 | G88: 0.006791484617 | H88: 0.006791484617
E89: -2.55 | F89: 6.9 | G89: 0.007724673567 | H89: 0.007724673567
E90: -2.5 | F90: 7 | G90: 0.008764150247 | H90: 0.008764150247
E91: -2.45 | F91: 7.1 | G91: 0.009918677196 | H91: 0.009918677196
E92: -2.4 | F92: 7.2 | G92: 0.01119726515 | H92: 0.01119726515
E93: -2.35 | F93: 7.3 | G93: 0.01260910996 | H93: 0.01260910996
E94: -2.3 | F94: 7.4 | G94: 0.01416351887 | H94: 0.01416351887
E95: -2.25 | F95: 7.5 | G95: 0.01586982592 | H95: 0.01586982592
E96: -2.2 | F96: 7.6 | G96: 0.01773729642 | H96: 0.01773729642
E97: -2.15 | F97: 7.7 | G97: 0.01977502079 | H97: 0.01977502079
E98: -2.1 | F98: 7.8 | G98: 0.02199179799 | H98: 0.02199179799
E99: -2.05 | F99: 7.9 | G99: 0.02439600929 | H99: 0.02439600929
E100: -2 | F100: 8 | G100: 0.02699548326 | H100: 0.02699548326
E101: -1.95 | F101: 8.1 | G101: 0.02979735303 | H101: 0.02979735303
E102: -1.9 | F102: 8.2 | G102: 0.03280790739 | H102: 0.03280790739
E103: -1.85 | F103: 8.3 | G103: 0.03603243717 | H103: 0.03603243717
E104: -1.8 | F104: 8.4 | G104: 0.03947507915 | H104: 0.03947507915
E105: -1.75 | F105: 8.5 | G105: 0.04313865941 | H105: 0.04313865941
E106: -1.7 | F106: 8.6 | G106: 0.04702453869 | H106: 0.04702453869
E107: -1.65 | F107: 8.7 | G107: 0.05113246228 | H107: 0.05113246228
E108: -1.6 | F108: 8.8 | G108: 0.05546041734 | H108: 0.05546041734
E109: -1.55 | F109: 8.9 | G109: 0.06000450035 | H109: 0.06000450035
E110: -1.5 | F110: 9 | G110: 0.06475879783 | H110: 0.06475879783
E111: -1.45 | F111: 9.1 | G111: 0.06971528322 | H111: 0.06971528322
E112: -1.4 | F112: 9.2 | G112: 0.07486373282 | H112: 0.07486373282
E113: -1.35 | F113: 9.3 | G113: 0.08019166367 | H113: 0.08019166367
E114: -1.3 | F114: 9.4 | G114: 0.08568429602 | H114: 0.08568429602
E115: -1.25 | F115: 9.5 | G115: 0.09132454269 | H115: 0.09132454269
E116: -1.2 | F116: 9.6 | G116: 0.09709302749 | H116: 0.09709302749
E117: -1.15 | F117: 9.7 | G117: 0.1029681344 | H117: 0.1029681344
E118: -1.1 | F118: 9.8 | G118: 0.1089260885 | H118: 0.1089260885
E119: -1.05 | F119: 9.9 | G119: 0.1149410703 | H119: 0.1149410703
E120: -1 | F120: 10 | G120: 0.1209853623 | H120: 0.1209853623
E121: -0.95 | F121: 10.1 | G121: 0.1270295282
E122: -0.9 | F122: 10.2 | G122: 0.1330426249
E123: -0.85 | F123: 10.3 | G123: 0.1389924431
E124: -0.8 | F124: 10.4 | G124: 0.1448457764
E125: -0.75 | F125: 10.5 | G125: 0.1505687161
E126: -0.7 | F126: 10.6 | G126: 0.1561269667
E127: -0.65 | F127: 10.7 | G127: 0.1614861798
E128: -0.6 | F128: 10.8 | G128: 0.1666123014
E129: -0.55 | F129: 10.9 | G129: 0.1714719275
E130: -0.5 | F130: 11 | G130: 0.1760326634
E131: -0.45 | F131: 11.1 | G131: 0.1802634812
E132: -0.4 | F132: 11.2 | G132: 0.1841350702
E133: -0.35 | F133: 11.3 | G133: 0.1876201735
E134: -0.3 | F134: 11.4 | G134: 0.1906939077
E135: -0.25 | F135: 11.5 | G135: 0.1933340584
E136: -0.2 | F136: 11.6 | G136: 0.195521347
E137: -0.15 | F137: 11.7 | G137: 0.1972396655
E138: -0.1 | F138: 11.8 | G138: 0.1984762737
E139: -0.05 | F139: 11.9 | G139: 0.199221957
E140: 0 | F140: 12 | G140: 0.1994711402
E141: 0.05 | F141: 12.1 | G141: 0.199221957
E142: 0.1 | F142: 12.2 | G142: 0.1984762737
E143: 0.15 | F143: 12.3 | G143: 0.1972396655
E144: 0.2 | F144: 12.4 | G144: 0.195521347
E145: 0.25 | F145: 12.5 | G145: 0.1933340584
E146: 0.3 | F146: 12.6 | G146: 0.1906939077
E147: 0.35 | F147: 12.7 | G147: 0.1876201735
E148: 0.4 | F148: 12.8 | G148: 0.1841350702
E149: =(F149-$C$7)/$C$8 -> 0.45 | F149: 12.9 | G149: =_xlfn.NORM.DIST(F149,$C$7,$C$8,0) -> 0.1802634812 | H149: =IF(F149<=$C$4,G149,"") -> 
E150: 0.5 | F150: 13 | G150: 0.1760326634
E151: 0.55 | F151: 13.1 | G151: 0.1714719275
E152: 0.6 | F152: 13.2 | G152: 0.1666123014
E153: 0.65 | F153: 13.3 | G153: 0.1614861798
E154: 0.7 | F154: 13.4 | G154: 0.1561269667
E155: 0.75 | F155: 13.5 | G155: 0.1505687161
E156: 0.8 | F156: 13.6 | G156: 0.1448457764
E157: 0.85 | F157: 13.7 | G157: 0.1389924431
E158: 0.9 | F158: 13.8 | G158: 0.1330426249
E159: 0.95 | F159: 13.9 | G159: 0.1270295282
E160: 1 | F160: 14 | G160: 0.1209853623
E161: 1.05 | F161: 14.1 | G161: 0.1149410703
E162: 1.1 | F162: 14.2 | G162: 0.1089260885
E163: 1.15 | F163: 14.3 | G163: 0.1029681344
E164: 1.2 | F164: 14.4 | G164: 0.09709302749
E165: 1.25 | F165: 14.5 | G165: 0.09132454269
E166: 1.3 | F166: 14.6 | G166: 0.08568429602
E167: 1.35 | F167: 14.7 | G167: 0.08019166367
E168: 1.4 | F168: 14.8 | G168: 0.07486373282
E169: 1.45 | F169: 14.9 | G169: 0.06971528322
E170: 1.5 | F170: 15 | G170: 0.06475879783
E171: 1.55 | F171: 15.1 | G171: 0.06000450035
E172: 1.6 | F172: 15.2 | G172: 0.05546041734
E173: 1.65 | F173: 15.3 | G173: 0.05113246228
E174: 1.7 | F174: 15.4 | G174: 0.04702453869
E175: 1.75 | F175: 15.5 | G175: 0.04313865941
E176: 1.8 | F176: 15.6 | G176: 0.03947507915
E177: 1.85 | F177: 15.7 | G177: 0.03603243717
E178: 1.9 | F178: 15.8 | G178: 0.03280790739
E179: 1.95 | F179: 15.9 | G179: 0.02979735303
E180: 2 | F180: 16 | G180: 0.02699548326
E181: 2.05 | F181: 16.1 | G181: 0.02439600929
E182: 2.1 | F182: 16.2 | G182: 0.02199179799
E183: 2.15 | F183: 16.3 | G183: 0.01977502079
E184: 2.2 | F184: 16.4 | G184: 0.01773729642
E185: 2.25 | F185: 16.5 | G185: 0.01586982592
E186: 2.3 | F186: 16.6 | G186: 0.01416351887
E187: 2.35 | F187: 16.7 | G187: 0.01260910996
E188: 2.4 | F188: 16.8 | G188: 0.01119726515
E189: 2.45 | F189: 16.9 | G189: 0.009918677196
E190: 2.5 | F190: 17 | G190: 0.008764150247
E191: 2.55 | F191: 17.1 | G191: 0.007724673567
E192: 2.6 | F192: 17.2 | G192: 0.006791484617
E193: 2.65 | F193: 17.3 | G193: 0.005956121804
E194: 2.7 | F194: 17.4 | G194: 0.005210467407
E195: 2.75 | F195: 17.5 | G195: 0.004546781251
E196: 2.8 | F196: 17.6 | G196: 0.003957725791
E197: 2.85 | F197: 17.7 | G197: 0.003436383345
E198: 2.9 | F198: 17.8 | G198: 0.00297626621
E199: 2.95 | F199: 17.9 | G199: 0.002571320462
E200: 3 | F200: 18 | G200: 0.002215924206
... 60 more rows

Sheet <= (an)-old (hidden)
A1: Because we have looked at past data for test scores for a particuklar instructor and have seen that the distribution (histogram chart) is aproximately bell shaped, we can use the bell curve to esimate probabilities
A2: In chapter 6, we know population mean and standard deviation (mew and sigma). Later we will see how to do similar calculations for sample data (after we learn Central Limit Theorem).
A3: Based on past data, estimate the percentage of scores on the next statistics test that will be 10 or less.
A4: Test Score | B4: x | C4: 10
B5: Operator 1 | C5: <=
B6: Operator 2
B7: mean = mu = μ = | C7: 12
B8: standard deviation = sigma = σ = | C8: 2
B9: Z | C9: =(C4-C7)/C8 -> -1 | F9: old functions
B10: ="p(X "&$C$5&" "&C4&")" -> p(X <= 10) | C10: =_xlfn.NORM.DIST(C4,C7,C8,1) -> 0.1586552539 | F10: =NORMDIST(C4,C7,C8,1) -> 0.1586552539 | G10: =F10=C10 -> TRUE
B11: ="p(Z "&C5&" "&C9&")" -> p(Z <= -1) | C11: =_xlfn.NORM.S.DIST(C9,1) -> 0.1586552539 | F11: =NORMSDIST(C9) -> 0.1586552539 | G11: =F11=C11 -> TRUE
B12: What is x given cumulative Probability? | C12: =_xlfn.NORM.INV(C10,C7,C8) -> 10 | F12: =NORMINV(C10,C7,C8) -> 10 | G12: =F12=C12 -> TRUE
B13: What is z given cumulative Probability? | C13: =_xlfn.NORM.S.INV(C11) -> -1 | F13: =NORMSINV(C11) -> -1 | G13: =F13=C13 -> TRUE
A14: 0.1 | B14: ="What score do you have to be in to be top "&TEXT(A14,"0%")&"?" -> What score do you have to be in to be top 10%? | C14: =_xlfn.NORM.INV(1-A14,C7,C8) -> 14.56310313
B15: remaining area | C15: =1-C10 -> 0.8413447461 | E15: Where should we start? | G15: x = | H15: =$C$7-$C$8*6 -> 0
B16: =IF(C10<>"","Based on past data it would be reasonable to assume that on the next test there is a "&TEXT(C10,"0.00%")&" chance that a score selected at random would be "&C4&" or less, or that "&TEXT(C10,"0.00%")&" of all the scores on the next test will be "&C4&" or less.","") -> Based on past data it would be reasonable to assume that on the next test there is a 15.87% chance that a score selected at random would be 10 or less, or that 15.87% of all the scores on the next test will be 10 or less. | E16: Where should we end? | G16: x = | H16: =$C$7+$C$8*6 -> 24
E17: Chart Label | F17: ="Bell Curve For Test Scores, mew = "&C7&", sigma = "&C8 -> Bell Curve For Test Scores, mew = 12, sigma = 2
G18: Height of curve
E19: z | F19: =B4&" = "&A4 -> x = Test Score | G19: ="P(x>="&C4&") = "&ROUND(1-C10,4) -> P(x>=10) = 0.8413 | H19: ="P(x<="&C4&") = "&ROUND(C10,4) -> P(x<=10) = 0.1587
E20: =(F20-$C$7)/$C$8 -> -6 | F20: 0 | G20: =_xlfn.NORM.DIST(F20,$C$7,$C$8,0) -> 3.037941425e-09 | H20: =IF(F20<=$C$4,G20,"") -> 3.037941425e-09 | J20: F17 has the formula: =NORM.DIST(E20,$C$7,$C$8,0) G17 has the formula: =IF(E20<=$C$4,F20,"")
E21: =(F21-$C$7)/$C$8 -> -5.95 | F21: 0.1 | G21: =_xlfn.NORM.DIST(F21,$C$7,$C$8,0) -> 4.095669202e-09 | H21: =IF(F21<=$C$4,G21,"") -> 4.095669202e-09
E22: -5.9 | F22: 0.2 | G22: 5.507881812e-09 | H22: 5.507881812e-09
E23: -5.85 | F23: 0.3 | G23: 7.388539793e-09 | H23: 7.388539793e-09
B24: ="Note: Because we are dealing with continuous random variables and we are calculating probability from area and because the area of a line is zero, P("&C5&C4&") = P("&LEFT(C5,1)&C4&")" -> Note: Because we are dealing with continuous random variables and we are calculating probability from area and because the area of a line is zero, P(<=10) = P(<10) | E24: -5.8 | F24: 0.4 | G24: 9.886598203e-09 | H24: 9.886598203e-09
E25: -5.75 | F25: 0.5 | G25: 1.319621602e-08 | H25: 1.319621602e-08
E26: -5.7 | F26: 0.6 | G26: 1.756977547e-08 | H26: 1.756977547e-08
E27: -5.65 | F27: 0.7 | G27: 2.333443399e-08 | H27: 2.333443399e-08 | J27: Chart Steps:
E28: -5.6 | F28: 0.8 | G28: 3.09131025e-08 | H28: 3.09131025e-08 | J28: Create Chart Label in cell F17: ="Bell Curve For Test Scores, mew = "&C7&", sigma = "&C8
E29: -5.55 | F29: 0.9 | G29: 4.085095189e-08 | H29: 4.085095189e-08 | J29: Create series label in cell G19: ="Remaining Area = "&ROUND(1-C10,4)
E30: -5.5 | F30: 1 | G30: 5.384880021e-08 | H30: 5.384880021e-08 | J30: Create series label in cell H19: ="P(x<="&C4&") = "&ROUND(C10,4)
E31: -5.45 | F31: 1.1 | G31: 7.080503565e-08 | H31: 7.080503565e-08 | J31: Create x values (type 0, right-click fill handle, Series, Columns, Step .01, End = 24, Ok)
E32: -5.4 | F32: 1.2 | G32: 9.286809223e-08 | H32: 9.286809223e-08 | J32: Create z values
E33: -5.35 | F33: 1.3 | G33: 1.215019271e-07 | H33: 1.215019271e-07 | J33: Plot Height Values with Area Chart
E34: -5.3 | F34: 1.4 | G34: 1.585674608e-07 | H34: 1.585674608e-07 | J34: Edit horizontal Axis (ChartTools Design tab Ribbon, Select Data button)
E35: -5.25 | F35: 1.5 | G35: 2.064235494e-07 | H35: 2.064235494e-07 | J35: Plot Secondary Heights
E36: -5.2 | F36: 1.6 | G36: 2.680517672e-07 | H36: 2.680517672e-07 | J36: Right-click secondary Heights on chart and Ctrl + 1 to open Format Chart Element dialog box, change series to secondary axis.
E37: -5.15 | F37: 1.7 | G37: 3.472101177e-07 | H37: 3.472101177e-07 | J37: Delete Vertical Axis on right
E38: -5.1 | F38: 1.8 | G38: 4.486217581e-07 | H38: 4.486217581e-07 | J38: ChartTools Layout tab Ribbon, "Axes" button in Axes group, Secondary Horizontal Axis, Show Left to Right Axis
E39: -5.05 | F39: 1.9 | G39: 5.782059518e-07 | H39: 5.782059518e-07 | J39: Click on Axis, Ctrl + 1, Axis Options, Axis Labels = Low
E40: -5 | F40: 2 | G40: 7.433597574e-07 | H40: 7.433597574e-07 | J40: Move Legend
E41: -4.95 | F41: 2.1 | G41: 9.533004516e-07 | H41: 9.533004516e-07 | J41: Add Chart Title linked to cell
E42: -4.9 | F42: 2.2 | G42: 1.219480373e-06 | H42: 1.219480373e-06
E43: -4.85 | F43: 2.3 | G43: 1.55608779e-06 | H43: 1.55608779e-06
E44: -4.8 | F44: 2.4 | G44: 1.980649546e-06 | H44: 1.980649546e-06
E45: -4.75 | F45: 2.5 | G45: 2.514753644e-06 | H45: 2.514753644e-06
E46: -4.7 | F46: 2.6 | G46: 3.184912589e-06 | H46: 3.184912589e-06
E47: -4.65 | F47: 2.7 | G47: 4.023591228e-06 | H47: 4.023591228e-06
E48: -4.6 | F48: 2.8 | G48: 5.070426033e-06 | H48: 5.070426033e-06
E49: -4.55 | F49: 2.9 | G49: 6.373666191e-06 | H49: 6.373666191e-06
E50: -4.5 | F50: 3 | G50: 7.991870553e-06 | H50: 7.991870553e-06
E51: -4.45 | F51: 3.1 | G51: 9.995898353e-06 | H51: 9.995898353e-06
E52: -4.4 | F52: 3.2 | G52: 1.247123565e-05 | H52: 1.247123565e-05
E53: -4.35 | F53: 3.3 | G53: 1.552070353e-05 | H53: 1.552070353e-05
E54: -4.3 | F54: 3.4 | G54: 1.926759837e-05 | H54: 1.926759837e-05
E55: -4.25 | F55: 3.5 | G55: 2.385931827e-05 | H55: 2.385931827e-05
E56: -4.2 | F56: 3.6 | G56: 2.947153388e-05 | H56: 2.947153388e-05
E57: -4.15 | F57: 3.7 | G57: 3.631296515e-05 | H57: 3.631296515e-05
E58: -4.1 | F58: 3.8 | G58: 4.463082859e-05 | H58: 4.463082859e-05
E59: -4.05 | F59: 3.9 | G59: 5.471702172e-05 | H59: 5.471702172e-05
E60: -4 | F60: 4 | G60: 6.691511288e-05 | H60: 6.691511288e-05
E61: -3.95 | F61: 4.1 | G61: 8.162820438e-05 | H61: 8.162820438e-05
E62: -3.9 | F62: 4.2 | G62: 9.93277357e-05 | H62: 9.93277357e-05
E63: -3.85 | F63: 4.3 | G63: 0.0001205632901 | H63: 0.0001205632901
E64: -3.8 | F64: 4.4 | G64: 0.0001459734629 | H64: 0.0001459734629
E65: -3.75 | F65: 4.5 | G65: 0.0001762978412 | H65: 0.0001762978412
E66: -3.7 | F66: 4.6 | G66: 0.0002123901353 | H66: 0.0002123901353
E67: -3.65 | F67: 4.7 | G67: 0.0002552324872 | H67: 0.0002552324872
E68: -3.6 | F68: 4.8 | G68: 0.0003059509651 | H68: 0.0003059509651
E69: -3.55 | F69: 4.9 | G69: 0.0003658322314 | H69: 0.0003658322314
E70: -3.5 | F70: 5 | G70: 0.0004363413475 | H70: 0.0004363413475
E71: -3.45 | F71: 5.1 | G71: 0.0005191406478 | H71: 0.0005191406478
E72: -3.4 | F72: 5.2 | G72: 0.0006161095842 | H72: 0.0006161095842
E73: -3.35 | F73: 5.3 | G73: 0.0007293654023 | H73: 0.0007293654023
E74: -3.3 | F74: 5.4 | G74: 0.0008612844695 | H74: 0.0008612844695
E75: -3.25 | F75: 5.5 | G75: 0.001014524029 | H75: 0.001014524029
E76: -3.2 | F76: 5.6 | G76: 0.001192044101 | H76: 0.001192044101
E77: -3.15 | F77: 5.7 | G77: 0.001397129207 | H77: 0.001397129207
E78: -3.1 | F78: 5.8 | G78: 0.001633409528 | H78: 0.001633409528
E79: -3.05 | F79: 5.9 | G79: 0.001904881049 | H79: 0.001904881049
E80: -3 | F80: 6 | G80: 0.002215924206 | H80: 0.002215924206
E81: -2.95 | F81: 6.1 | G81: 0.002571320462 | H81: 0.002571320462
E82: -2.9 | F82: 6.2 | G82: 0.00297626621 | H82: 0.00297626621
E83: -2.85 | F83: 6.3 | G83: 0.003436383345 | H83: 0.003436383345
E84: -2.8 | F84: 6.4 | G84: 0.003957725791 | H84: 0.003957725791
E85: =(F85-$C$7)/$C$8 -> -2.75 | F85: 6.5 | G85: =_xlfn.NORM.DIST(F85,$C$7,$C$8,0) -> 0.004546781251 | H85: =IF(F85<=$C$4,G85,"") -> 0.004546781251
E86: -2.7 | F86: 6.6 | G86: 0.005210467407 | H86: 0.005210467407
E87: -2.65 | F87: 6.7 | G87: 0.005956121804 | H87: 0.005956121804
E88: -2.6 | F88: 6.8 | G88: 0.006791484617 | H88: 0.006791484617
E89: -2.55 | F89: 6.9 | G89: 0.007724673567 | H89: 0.007724673567
E90: -2.5 | F90: 7 | G90: 0.008764150247 | H90: 0.008764150247
E91: -2.45 | F91: 7.1 | G91: 0.009918677196 | H91: 0.009918677196
E92: -2.4 | F92: 7.2 | G92: 0.01119726515 | H92: 0.01119726515
E93: -2.35 | F93: 7.3 | G93: 0.01260910996 | H93: 0.01260910996
E94: -2.3 | F94: 7.4 | G94: 0.01416351887 | H94: 0.01416351887
E95: -2.25 | F95: 7.5 | G95: 0.01586982592 | H95: 0.01586982592
E96: -2.2 | F96: 7.6 | G96: 0.01773729642 | H96: 0.01773729642
E97: -2.15 | F97: 7.7 | G97: 0.01977502079 | H97: 0.01977502079
E98: -2.1 | F98: 7.8 | G98: 0.02199179799 | H98: 0.02199179799
E99: -2.05 | F99: 7.9 | G99: 0.02439600929 | H99: 0.02439600929
E100: -2 | F100: 8 | G100: 0.02699548326 | H100: 0.02699548326
E101: -1.95 | F101: 8.1 | G101: 0.02979735303 | H101: 0.02979735303
E102: -1.9 | F102: 8.2 | G102: 0.03280790739 | H102: 0.03280790739
E103: -1.85 | F103: 8.3 | G103: 0.03603243717 | H103: 0.03603243717
E104: -1.8 | F104: 8.4 | G104: 0.03947507915 | H104: 0.03947507915
E105: -1.75 | F105: 8.5 | G105: 0.04313865941 | H105: 0.04313865941
E106: -1.7 | F106: 8.6 | G106: 0.04702453869 | H106: 0.04702453869
E107: -1.65 | F107: 8.7 | G107: 0.05113246228 | H107: 0.05113246228
E108: -1.6 | F108: 8.8 | G108: 0.05546041734 | H108: 0.05546041734
E109: -1.55 | F109: 8.9 | G109: 0.06000450035 | H109: 0.06000450035
E110: -1.5 | F110: 9 | G110: 0.06475879783 | H110: 0.06475879783
E111: -1.45 | F111: 9.1 | G111: 0.06971528322 | H111: 0.06971528322
E112: -1.4 | F112: 9.2 | G112: 0.07486373282 | H112: 0.07486373282
E113: -1.35 | F113: 9.3 | G113: 0.08019166367 | H113: 0.08019166367
E114: -1.3 | F114: 9.4 | G114: 0.08568429602 | H114: 0.08568429602
E115: -1.25 | F115: 9.5 | G115: 0.09132454269 | H115: 0.09132454269
E116: -1.2 | F116: 9.6 | G116: 0.09709302749 | H116: 0.09709302749
E117: -1.15 | F117: 9.7 | G117: 0.1029681344 | H117: 0.1029681344
E118: -1.1 | F118: 9.8 | G118: 0.1089260885 | H118: 0.1089260885
E119: -1.05 | F119: 9.9 | G119: 0.1149410703 | H119: 0.1149410703
E120: -1 | F120: 10 | G120: 0.1209853623 | H120: 0.1209853623
E121: -0.95 | F121: 10.1 | G121: 0.1270295282
E122: -0.9 | F122: 10.2 | G122: 0.1330426249
E123: -0.85 | F123: 10.3 | G123: 0.1389924431
E124: -0.8 | F124: 10.4 | G124: 0.1448457764
E125: -0.75 | F125: 10.5 | G125: 0.1505687161
E126: -0.7 | F126: 10.6 | G126: 0.1561269667
E127: -0.65 | F127: 10.7 | G127: 0.1614861798
E128: -0.6 | F128: 10.8 | G128: 0.1666123014
E129: -0.55 | F129: 10.9 | G129: 0.1714719275
E130: -0.5 | F130: 11 | G130: 0.1760326634
E131: -0.45 | F131: 11.1 | G131: 0.1802634812
E132: -0.4 | F132: 11.2 | G132: 0.1841350702
E133: -0.35 | F133: 11.3 | G133: 0.1876201735
E134: -0.3 | F134: 11.4 | G134: 0.1906939077
E135: -0.25 | F135: 11.5 | G135: 0.1933340584
E136: -0.2 | F136: 11.6 | G136: 0.195521347
E137: -0.15 | F137: 11.7 | G137: 0.1972396655
E138: -0.1 | F138: 11.8 | G138: 0.1984762737
E139: -0.05 | F139: 11.9 | G139: 0.199221957
E140: 0 | F140: 12 | G140: 0.1994711402
E141: 0.05 | F141: 12.1 | G141: 0.199221957
E142: 0.1 | F142: 12.2 | G142: 0.1984762737
E143: 0.15 | F143: 12.3 | G143: 0.1972396655
E144: 0.2 | F144: 12.4 | G144: 0.195521347
E145: 0.25 | F145: 12.5 | G145: 0.1933340584
E146: 0.3 | F146: 12.6 | G146: 0.1906939077
E147: 0.35 | F147: 12.7 | G147: 0.1876201735
E148: 0.4 | F148: 12.8 | G148: 0.1841350702
E149: =(F149-$C$7)/$C$8 -> 0.45 | F149: 12.9 | G149: =_xlfn.NORM.DIST(F149,$C$7,$C$8,0) -> 0.1802634812 | H149: =IF(F149<=$C$4,G149,"") -> 
E150: 0.5 | F150: 13 | G150: 0.1760326634
E151: 0.55 | F151: 13.1 | G151: 0.1714719275
E152: 0.6 | F152: 13.2 | G152: 0.1666123014
E153: 0.65 | F153: 13.3 | G153: 0.1614861798
E154: 0.7 | F154: 13.4 | G154: 0.1561269667
E155: 0.75 | F155: 13.5 | G155: 0.1505687161
E156: 0.8 | F156: 13.6 | G156: 0.1448457764
E157: 0.85 | F157: 13.7 | G157: 0.1389924431
E158: 0.9 | F158: 13.8 | G158: 0.1330426249
E159: 0.95 | F159: 13.9 | G159: 0.1270295282
E160: 1 | F160: 14 | G160: 0.1209853623
E161: 1.05 | F161: 14.1 | G161: 0.1149410703
E162: 1.1 | F162: 14.2 | G162: 0.1089260885
E163: 1.15 | F163: 14.3 | G163: 0.1029681344
E164: 1.2 | F164: 14.4 | G164: 0.09709302749
E165: 1.25 | F165: 14.5 | G165: 0.09132454269
E166: 1.3 | F166: 14.6 | G166: 0.08568429602
E167: 1.35 | F167: 14.7 | G167: 0.08019166367
E168: 1.4 | F168: 14.8 | G168: 0.07486373282
E169: 1.45 | F169: 14.9 | G169: 0.06971528322
E170: 1.5 | F170: 15 | G170: 0.06475879783
E171: 1.55 | F171: 15.1 | G171: 0.06000450035
E172: 1.6 | F172: 15.2 | G172: 0.05546041734
E173: 1.65 | F173: 15.3 | G173: 0.05113246228
E174: 1.7 | F174: 15.4 | G174: 0.04702453869
E175: 1.75 | F175: 15.5 | G175: 0.04313865941
E176: 1.8 | F176: 15.6 | G176: 0.03947507915
E177: 1.85 | F177: 15.7 | G177: 0.03603243717
E178: 1.9 | F178: 15.8 | G178: 0.03280790739
E179: 1.95 | F179: 15.9 | G179: 0.02979735303
E180: 2 | F180: 16 | G180: 0.02699548326
E181: 2.05 | F181: 16.1 | G181: 0.02439600929
E182: 2.1 | F182: 16.2 | G182: 0.02199179799
E183: 2.15 | F183: 16.3 | G183: 0.01977502079
E184: 2.2 | F184: 16.4 | G184: 0.01773729642
E185: 2.25 | F185: 16.5 | G185: 0.01586982592
E186: 2.3 | F186: 16.6 | G186: 0.01416351887
E187: 2.35 | F187: 16.7 | G187: 0.01260910996
E188: 2.4 | F188: 16.8 | G188: 0.01119726515
E189: 2.45 | F189: 16.9 | G189: 0.009918677196
E190: 2.5 | F190: 17 | G190: 0.008764150247
E191: 2.55 | F191: 17.1 | G191: 0.007724673567
E192: 2.6 | F192: 17.2 | G192: 0.006791484617
E193: 2.65 | F193: 17.3 | G193: 0.005956121804
E194: 2.7 | F194: 17.4 | G194: 0.005210467407
E195: 2.75 | F195: 17.5 | G195: 0.004546781251
E196: 2.8 | F196: 17.6 | G196: 0.003957725791
E197: 2.85 | F197: 17.7 | G197: 0.003436383345
E198: 2.9 | F198: 17.8 | G198: 0.00297626621
E199: 2.95 | F199: 17.9 | G199: 0.002571320462
E200: 3 | F200: 18 | G200: 0.002215924206
... 60 more rows

Sheet <= Chart
A1: Because we have looked at past data for test scores for a particular instructor and have seen that the distribution (histogram chart) is approximately bell shaped, we can use the bell curve to estimate probabilities
A2: In chapter 6, we know population mean and standard deviation (mew and sigma). Later we will see how to do similar calculations for sample data (after we learn Central Limit Theorem).
A3: Based on past data, estimate the percentage of scores on the next statistics test that will be 10 points or less.
A4: Test Score | B4: x | C4: 10
B5: Operator 1 | C5: <=
B6: Operator 2
B7: mean = mew = μ = | C7: 12
B8: standard deviation = sigma = σ = | C8: 2
B9: Z | C9: =(C4-C7)/C8 -> -1 | E9: Sum of Heights | F9: old functions
B10: ="P(X "&$C$5&" "&C4&")" -> P(X <= 10) | C10: =_xlfn.NORM.DIST(C4,C7,C8,1) -> 0.1586552539 | F10: =NORMDIST(C4,C7,C8,1) -> 0.1586552539 | G10: =F10=C10 -> TRUE
B11: ="p(Z "&C5&" "&C9&")" -> p(Z <= -1) | C11: =_xlfn.NORM.S.DIST(C9,1) -> 0.1586552539 | E11: **Not allowed | F11: =NORMSDIST(C9) -> 0.1586552539 | G11: =F11=C11 -> TRUE
B12: What is x given cumulative Probability? | C12: =_xlfn.NORM.INV(1-A14,C7,C8) -> 14.56310313 | F12: =NORMINV(1-A14,C7,C8) -> 14.56310313 | G12: =F12=C12 -> TRUE
B13: What is z given cumulative Probability? | C13: =_xlfn.NORM.S.INV(1-A14) -> 1.281551566 | F13: =NORMSINV(1-A14) -> 1.281551566 | G13: =F13=C13 -> TRUE
A14: 0.1 | B14: ="What score do you need to be in to be top "&TEXT(A14,"0%")&"?" -> What score do you need to be in to be top 10%? | C14: =C7+C8*C13 -> 14.56310313 | E14: Test Score sigma | F14: 2 | G14: Test Score mew | H14: =C7 -> 12
B15: ="P(X >= "&C4&")" -> P(X >= 10) | C15: =1-C10 -> 0.8413447461 | E15: Where should we start? | G15: x = low | J15: 0.99 | K15: + / - 3 SD
B16: =IF(C10<>"","Based on past data it would be reasonable to assume that on the next test there is a "&TEXT(C10,"0.00%")&" chance that a score selected at random would be "&C4&" or less, or that "&TEXT(C10,"0.00%")&" of all the scores on the next test will be "&C4&" or less.","") -> Based on past data it would be reasonable to assume that on the next test there is a 15.87% chance that a score selected at random would be 10 or less, or that 15.87% of all the scores on the next test will be 10 or less. | E16: Where should we end? | G16: x = high
E17: Chart Label | F17: ="Bell Curve For Test Scores With Mew = "&H14&" And Sigma = "&F14 -> Bell Curve For Test Scores With Mew = 12 And Sigma = 2
G18: Height of curve
E19: z | F19: =B4&" = "&A4 -> x = Test Score | G19: ="P(x>="&C4&") = "&ROUND(C15,4) -> P(x>=10) = 0.8413 | H19: ="P(x<="&C4&") = "&ROUND(C10,4) -> P(x<=10) = 0.1587
J20: F17 has the formula: =NORM.DIST(E20,$C$7,$C$8,0) G17 has the formula: =IF(E20<=$C$4,F20,"")
B24: ="Note: Because we are dealing with continuous random variables and we are calculating probability from area and because the area of a line is zero, P("&C5&C4&") = P("&LEFT(C5,1)&C4&")" -> Note: Because we are dealing with continuous random variables and we are calculating probability from area and because the area of a line is zero, P(<=10) = P(<10)
J27: Chart Steps:
J28: Create Chart Label in cell F17: ="Bell Curve For Test Scores, mew = "&C7&", sigma = "&C8
J29: Create series label in cell G19: ="Remaining Area = "&ROUND(1-C10,4)
J30: Create series label in cell H19: ="P(x<="&C4&") = "&ROUND(C10,4)
J31: Create x values (type 0, right-click fill handle, Series, Columns, Step .01, End = 24, Ok)
J32: Create z values
J33: Plot Height Values with Area Chart
J34: Edit horizontal Axis (ChartTools Design tab Ribbon, Select Data button)
J35: Plot Secondary Heights
J36: Right-click secondary Heights on chart and Ctrl + 1 to open Format Chart Element dialog box, change series to secondary axis.
J37: Delete Vertical Axis on right
J38: ChartTools Layout tab Ribbon, "Axes" button in Axes group, Secondary Horizontal Axis, Show Left to Right Axis
J39: Click on Axis, Ctrl + 1, Axis Options, Axis Labels = Low
J40: Move Legend
J41: Add Chart Title linked to cell
B222: Total is not 1 because not Probability

Sheet <= Prob Chart (an)
A1: Because we have looked at past data for test scores for a particular instructor and have seen that the distribution (histogram chart) is approximately bell shaped, we can use the bell curve to estimate probabilities
A2: In chapter 6, we know population mean and standard deviation (mew and sigma). Later we will see how to do similar calculations for sample data (after we learn Central Limit Theorem).
A3: Based on past data, estimate the percentage of scores on the next statistics test that will be 10 points or less.
A4: Test Score | B4: x | C4: 14
B5: Operator 1 | C5: <=
B6: Operator 2
B7: mean = mew = μ = | C7: 12 | F7: 0.99 | G7: + / - 3 SD
B8: standard deviation = sigma = σ = | C8: 2
B9: Z | C9: =(C4-C7)/C8 -> 1 | E9: Sum of Heights | F9: old functions
B10: ="p(X "&$C$5&" "&C4&")" -> p(X <= 14) | C10: =_xlfn.NORM.DIST(C4,C7,C8,1) -> 0.8413447461 | E10: =SUM(G20:G160) -> 8.473435986 | F10: =NORMDIST(C4,C7,C8,1) -> 0.8413447461 | G10: =F10=C10 -> TRUE
B11: ="p(Z "&C5&" "&C9&")" -> p(Z <= 1) | C11: =_xlfn.NORM.S.DIST(C9,1) -> 0.8413447461 | E11: **Not allowed | F11: =NORMSDIST(C9) -> 0.8413447461 | G11: =F11=C11 -> TRUE
B12: What is x given cumulative Probability? | C12: =_xlfn.NORM.INV(1-A14,C7,C8) -> 14.56310313 | F12: =NORMINV(1-A14,C7,C8) -> 14.56310313 | G12: =F12=C12 -> TRUE
B13: What is z given cumulative Probability? | C13: =_xlfn.NORM.S.INV(1-A14) -> 1.281551566 | F13: =NORMSINV(1-A14) -> 1.281551566 | G13: =F13=C13 -> TRUE
A14: 0.1 | B14: ="What score do you need to be in to be top "&TEXT(A14,"0%")&"?" -> What score do you need to be in to be top 10%? | C14: =C7+C8*C13 -> 14.56310313
B15: P(X>=10) | C15: =1-C10 -> 0.1586552539 | E15: Where should we start? | G15: x = low | H15: =C7-C8*6 -> 0
B16: =IF(C10<>"","Based on past data it would be reasonable to assume that on the next test there is a "&TEXT(C10,"0.00%")&" chance that a score selected at random would be "&C4&" or less, or that "&TEXT(C10,"0.00%")&" of all the scores on the next test will be "&C4&" or less.","") -> Based on past data it would be reasonable to assume that on the next test there is a 84.13% chance that a score selected at random would be 14 or less, or that 84.13% of all the scores on the next test will be 14 or less. | E16: Where should we end? | G16: x = high | H16: =C7+C8*6 -> 24
E17: Chart Label | F17: ="Test Scores with a mew of "&C7&", and sigma of "&C8 -> Test Scores with a mew of 12, and sigma of 2
G18: Height of curve
E19: z | F19: =B4&" = "&A4 -> x = Test Score | G19: =B15&" = "&ROUND(C15,4) -> P(X>=10) = 0.1587 | H19: ="P(x<="&C4&") = "&ROUND(C10,4) -> P(x<=14) = 0.8413
E20: =(F20-$C$7)/$C$8 -> -6 | F20: 0 | G20: =_xlfn.NORM.DIST(F20,$C$7,$C$8,0) -> 3.037941425e-09 | H20: =IF(F20<=$C$4,G20,"") -> 3.037941425e-09 | J20: F17 has the formula: =NORM.DIST(E20,$C$7,$C$8,0) G17 has the formula: =IF(E20<=$C$4,F20,"")
E21: =(F21-$C$7)/$C$8 -> -5.95 | F21: 0.1 | G21: =_xlfn.NORM.DIST(F21,$C$7,$C$8,0) -> 4.095669202e-09 | H21: =IF(F21<=$C$4,G21,"") -> 4.095669202e-09
E22: -5.9 | F22: 0.2 | G22: 5.507881812e-09 | H22: 5.507881812e-09
E23: -5.85 | F23: 0.3 | G23: 7.388539793e-09 | H23: 7.388539793e-09
B24: ="Note: Because we are dealing with continuous random variables and we are calculating probability from area and because the area of a line is zero, P("&C5&C4&") = P("&LEFT(C5,1)&C4&")" -> Note: Because we are dealing with continuous random variables and we are calculating probability from area and because the area of a line is zero, P(<=14) = P(<14) | E24: -5.8 | F24: 0.4 | G24: 9.886598203e-09 | H24: 9.886598203e-09
E25: -5.75 | F25: 0.5 | G25: 1.319621602e-08 | H25: 1.319621602e-08
E26: -5.7 | F26: 0.6 | G26: 1.756977547e-08 | H26: 1.756977547e-08
E27: -5.65 | F27: 0.7 | G27: 2.333443399e-08 | H27: 2.333443399e-08 | J27: Chart Steps:
E28: -5.6 | F28: 0.8 | G28: 3.09131025e-08 | H28: 3.09131025e-08 | J28: Create Chart Label in cell F17: ="Bell Curve For Test Scores, mew = "&C7&", sigma = "&C8
E29: -5.55 | F29: 0.9 | G29: 4.085095189e-08 | H29: 4.085095189e-08 | J29: Create series label in cell G19: ="Remaining Area = "&ROUND(1-C10,4)
E30: -5.5 | F30: 1 | G30: 5.384880021e-08 | H30: 5.384880021e-08 | J30: Create series label in cell H19: ="P(x<="&C4&") = "&ROUND(C10,4)
E31: -5.45 | F31: 1.1 | G31: 7.080503565e-08 | H31: 7.080503565e-08 | J31: Create x values (type 0, right-click fill handle, Series, Columns, Step .01, End = 24, Ok)
E32: -5.4 | F32: 1.2 | G32: 9.286809223e-08 | H32: 9.286809223e-08 | J32: Create z values
E33: -5.35 | F33: 1.3 | G33: 1.215019271e-07 | H33: 1.215019271e-07 | J33: Plot Height Values with Area Chart
E34: -5.3 | F34: 1.4 | G34: 1.585674608e-07 | H34: 1.585674608e-07 | J34: Edit horizontal Axis (ChartTools Design tab Ribbon, Select Data button)
E35: -5.25 | F35: 1.5 | G35: 2.064235494e-07 | H35: 2.064235494e-07 | J35: Plot Secondary Heights
E36: -5.2 | F36: 1.6 | G36: 2.680517672e-07 | H36: 2.680517672e-07 | J36: Right-click secondary Heights on chart and Ctrl + 1 to open Format Chart Element dialog box, change series to secondary axis.
E37: -5.15 | F37: 1.7 | G37: 3.472101177e-07 | H37: 3.472101177e-07 | J37: Delete Vertical Axis on right
E38: -5.1 | F38: 1.8 | G38: 4.486217581e-07 | H38: 4.486217581e-07 | J38: ChartTools Layout tab Ribbon, "Axes" button in Axes group, Secondary Horizontal Axis, Show Left to Right Axis
E39: -5.05 | F39: 1.9 | G39: 5.782059518e-07 | H39: 5.782059518e-07 | J39: Click on Axis, Ctrl + 1, Axis Options, Axis Labels = Low
E40: -5 | F40: 2 | G40: 7.433597574e-07 | H40: 7.433597574e-07 | J40: Move Legend
E41: -4.95 | F41: 2.1 | G41: 9.533004516e-07 | H41: 9.533004516e-07 | J41: Add Chart Title linked to cell
E42: -4.9 | F42: 2.2 | G42: 1.219480373e-06 | H42: 1.219480373e-06
E43: -4.85 | F43: 2.3 | G43: 1.55608779e-06 | H43: 1.55608779e-06
E44: -4.8 | F44: 2.4 | G44: 1.980649546e-06 | H44: 1.980649546e-06
E45: -4.75 | F45: 2.5 | G45: 2.514753644e-06 | H45: 2.514753644e-06
E46: -4.7 | F46: 2.6 | G46: 3.184912589e-06 | H46: 3.184912589e-06
E47: -4.65 | F47: 2.7 | G47: 4.023591228e-06 | H47: 4.023591228e-06
E48: -4.6 | F48: 2.8 | G48: 5.070426033e-06 | H48: 5.070426033e-06
E49: -4.55 | F49: 2.9 | G49: 6.373666191e-06 | H49: 6.373666191e-06
E50: -4.5 | F50: 3 | G50: 7.991870553e-06 | H50: 7.991870553e-06
E51: -4.45 | F51: 3.1 | G51: 9.995898353e-06 | H51: 9.995898353e-06
E52: -4.4 | F52: 3.2 | G52: 1.247123565e-05 | H52: 1.247123565e-05
E53: -4.35 | F53: 3.3 | G53: 1.552070353e-05 | H53: 1.552070353e-05
E54: -4.3 | F54: 3.4 | G54: 1.926759837e-05 | H54: 1.926759837e-05
E55: -4.25 | F55: 3.5 | G55: 2.385931827e-05 | H55: 2.385931827e-05
E56: -4.2 | F56: 3.6 | G56: 2.947153388e-05 | H56: 2.947153388e-05
E57: -4.15 | F57: 3.7 | G57: 3.631296515e-05 | H57: 3.631296515e-05
E58: -4.1 | F58: 3.8 | G58: 4.463082859e-05 | H58: 4.463082859e-05
E59: -4.05 | F59: 3.9 | G59: 5.471702172e-05 | H59: 5.471702172e-05
E60: -4 | F60: 4 | G60: 6.691511288e-05 | H60: 6.691511288e-05
E61: -3.95 | F61: 4.1 | G61: 8.162820438e-05 | H61: 8.162820438e-05
E62: -3.9 | F62: 4.2 | G62: 9.93277357e-05 | H62: 9.93277357e-05
E63: -3.85 | F63: 4.3 | G63: 0.0001205632901 | H63: 0.0001205632901
E64: -3.8 | F64: 4.4 | G64: 0.0001459734629 | H64: 0.0001459734629
E65: -3.75 | F65: 4.5 | G65: 0.0001762978412 | H65: 0.0001762978412
E66: -3.7 | F66: 4.6 | G66: 0.0002123901353 | H66: 0.0002123901353
E67: -3.65 | F67: 4.7 | G67: 0.0002552324872 | H67: 0.0002552324872
E68: -3.6 | F68: 4.8 | G68: 0.0003059509651 | H68: 0.0003059509651
E69: -3.55 | F69: 4.9 | G69: 0.0003658322314 | H69: 0.0003658322314
E70: -3.5 | F70: 5 | G70: 0.0004363413475 | H70: 0.0004363413475
E71: -3.45 | F71: 5.1 | G71: 0.0005191406478 | H71: 0.0005191406478
E72: -3.4 | F72: 5.2 | G72: 0.0006161095842 | H72: 0.0006161095842
E73: -3.35 | F73: 5.3 | G73: 0.0007293654023 | H73: 0.0007293654023
E74: -3.3 | F74: 5.4 | G74: 0.0008612844695 | H74: 0.0008612844695
E75: -3.25 | F75: 5.5 | G75: 0.001014524029 | H75: 0.001014524029
E76: -3.2 | F76: 5.6 | G76: 0.001192044101 | H76: 0.001192044101
E77: -3.15 | F77: 5.7 | G77: 0.001397129207 | H77: 0.001397129207
E78: -3.1 | F78: 5.8 | G78: 0.001633409528 | H78: 0.001633409528
E79: -3.05 | F79: 5.9 | G79: 0.001904881049 | H79: 0.001904881049
E80: -3 | F80: 6 | G80: 0.002215924206 | H80: 0.002215924206
E81: -2.95 | F81: 6.1 | G81: 0.002571320462 | H81: 0.002571320462
E82: -2.9 | F82: 6.2 | G82: 0.00297626621 | H82: 0.00297626621
E83: -2.85 | F83: 6.3 | G83: 0.003436383345 | H83: 0.003436383345
E84: -2.8 | F84: 6.4 | G84: 0.003957725791 | H84: 0.003957725791
E85: =(F85-$C$7)/$C$8 -> -2.75 | F85: 6.5 | G85: =_xlfn.NORM.DIST(F85,$C$7,$C$8,0) -> 0.004546781251 | H85: =IF(F85<=$C$4,G85,"") -> 0.004546781251
E86: -2.7 | F86: 6.6 | G86: 0.005210467407 | H86: 0.005210467407
E87: -2.65 | F87: 6.7 | G87: 0.005956121804 | H87: 0.005956121804
E88: -2.6 | F88: 6.8 | G88: 0.006791484617 | H88: 0.006791484617
E89: -2.55 | F89: 6.9 | G89: 0.007724673567 | H89: 0.007724673567
E90: -2.5 | F90: 7 | G90: 0.008764150247 | H90: 0.008764150247
E91: -2.45 | F91: 7.1 | G91: 0.009918677196 | H91: 0.009918677196
E92: -2.4 | F92: 7.2 | G92: 0.01119726515 | H92: 0.01119726515
E93: -2.35 | F93: 7.3 | G93: 0.01260910996 | H93: 0.01260910996
E94: -2.3 | F94: 7.4 | G94: 0.01416351887 | H94: 0.01416351887
E95: -2.25 | F95: 7.5 | G95: 0.01586982592 | H95: 0.01586982592
E96: -2.2 | F96: 7.6 | G96: 0.01773729642 | H96: 0.01773729642
E97: -2.15 | F97: 7.7 | G97: 0.01977502079 | H97: 0.01977502079
E98: -2.1 | F98: 7.8 | G98: 0.02199179799 | H98: 0.02199179799
E99: -2.05 | F99: 7.9 | G99: 0.02439600929 | H99: 0.02439600929
E100: -2 | F100: 8 | G100: 0.02699548326 | H100: 0.02699548326
E101: -1.95 | F101: 8.1 | G101: 0.02979735303 | H101: 0.02979735303
E102: -1.9 | F102: 8.2 | G102: 0.03280790739 | H102: 0.03280790739
E103: -1.85 | F103: 8.3 | G103: 0.03603243717 | H103: 0.03603243717
E104: -1.8 | F104: 8.4 | G104: 0.03947507915 | H104: 0.03947507915
E105: -1.75 | F105: 8.5 | G105: 0.04313865941 | H105: 0.04313865941
E106: -1.7 | F106: 8.6 | G106: 0.04702453869 | H106: 0.04702453869
E107: -1.65 | F107: 8.7 | G107: 0.05113246228 | H107: 0.05113246228
E108: -1.6 | F108: 8.8 | G108: 0.05546041734 | H108: 0.05546041734
E109: -1.55 | F109: 8.9 | G109: 0.06000450035 | H109: 0.06000450035
E110: -1.5 | F110: 9 | G110: 0.06475879783 | H110: 0.06475879783
E111: -1.45 | F111: 9.1 | G111: 0.06971528322 | H111: 0.06971528322
E112: -1.4 | F112: 9.2 | G112: 0.07486373282 | H112: 0.07486373282
E113: -1.35 | F113: 9.3 | G113: 0.08019166367 | H113: 0.08019166367
E114: -1.3 | F114: 9.4 | G114: 0.08568429602 | H114: 0.08568429602
E115: -1.25 | F115: 9.5 | G115: 0.09132454269 | H115: 0.09132454269
E116: -1.2 | F116: 9.6 | G116: 0.09709302749 | H116: 0.09709302749
E117: -1.15 | F117: 9.7 | G117: 0.1029681344 | H117: 0.1029681344
E118: -1.1 | F118: 9.8 | G118: 0.1089260885 | H118: 0.1089260885
E119: -1.05 | F119: 9.9 | G119: 0.1149410703 | H119: 0.1149410703
E120: -1 | F120: 10 | G120: 0.1209853623 | H120: 0.1209853623
E121: -0.95 | F121: 10.1 | G121: 0.1270295282 | H121: 0.1270295282
E122: -0.9 | F122: 10.2 | G122: 0.1330426249 | H122: 0.1330426249
E123: -0.85 | F123: 10.3 | G123: 0.1389924431 | H123: 0.1389924431
E124: -0.8 | F124: 10.4 | G124: 0.1448457764 | H124: 0.1448457764
E125: -0.75 | F125: 10.5 | G125: 0.1505687161 | H125: 0.1505687161
E126: -0.7 | F126: 10.6 | G126: 0.1561269667 | H126: 0.1561269667
E127: -0.65 | F127: 10.7 | G127: 0.1614861798 | H127: 0.1614861798
E128: -0.6 | F128: 10.8 | G128: 0.1666123014 | H128: 0.1666123014
E129: -0.55 | F129: 10.9 | G129: 0.1714719275 | H129: 0.1714719275
E130: -0.5 | F130: 11 | G130: 0.1760326634 | H130: 0.1760326634
E131: -0.45 | F131: 11.1 | G131: 0.1802634812 | H131: 0.1802634812
E132: -0.4 | F132: 11.2 | G132: 0.1841350702 | H132: 0.1841350702
E133: -0.35 | F133: 11.3 | G133: 0.1876201735 | H133: 0.1876201735
E134: -0.3 | F134: 11.4 | G134: 0.1906939077 | H134: 0.1906939077
E135: -0.25 | F135: 11.5 | G135: 0.1933340584 | H135: 0.1933340584
E136: -0.2 | F136: 11.6 | G136: 0.195521347 | H136: 0.195521347
E137: -0.15 | F137: 11.7 | G137: 0.1972396655 | H137: 0.1972396655
E138: -0.1 | F138: 11.8 | G138: 0.1984762737 | H138: 0.1984762737
E139: -0.05 | F139: 11.9 | G139: 0.199221957 | H139: 0.199221957
E140: 0 | F140: 12 | G140: 0.1994711402 | H140: 0.1994711402
E141: 0.05 | F141: 12.1 | G141: 0.199221957 | H141: 0.199221957
E142: 0.1 | F142: 12.2 | G142: 0.1984762737 | H142: 0.1984762737
E143: 0.15 | F143: 12.3 | G143: 0.1972396655 | H143: 0.1972396655
E144: 0.2 | F144: 12.4 | G144: 0.195521347 | H144: 0.195521347
E145: 0.25 | F145: 12.5 | G145: 0.1933340584 | H145: 0.1933340584
E146: 0.3 | F146: 12.6 | G146: 0.1906939077 | H146: 0.1906939077
E147: 0.35 | F147: 12.7 | G147: 0.1876201735 | H147: 0.1876201735
E148: 0.4 | F148: 12.8 | G148: 0.1841350702 | H148: 0.1841350702
E149: =(F149-$C$7)/$C$8 -> 0.45 | F149: 12.9 | G149: =_xlfn.NORM.DIST(F149,$C$7,$C$8,0) -> 0.1802634812 | H149: =IF(F149<=$C$4,G149,"") -> 0.1802634812
E150: 0.5 | F150: 13 | G150: 0.1760326634 | H150: 0.1760326634
E151: 0.55 | F151: 13.1 | G151: 0.1714719275 | H151: 0.1714719275
E152: 0.6 | F152: 13.2 | G152: 0.1666123014 | H152: 0.1666123014
E153: 0.65 | F153: 13.3 | G153: 0.1614861798 | H153: 0.1614861798
E154: 0.7 | F154: 13.4 | G154: 0.1561269667 | H154: 0.1561269667
E155: 0.75 | F155: 13.5 | G155: 0.1505687161 | H155: 0.1505687161
E156: 0.8 | F156: 13.6 | G156: 0.1448457764 | H156: 0.1448457764
E157: 0.85 | F157: 13.7 | G157: 0.1389924431 | H157: 0.1389924431
E158: 0.9 | F158: 13.8 | G158: 0.1330426249 | H158: 0.1330426249
E159: 0.95 | F159: 13.9 | G159: 0.1270295282 | H159: 0.1270295282
E160: 1 | F160: 14 | G160: 0.1209853623 | H160: 0.1209853623
E161: 1.05 | F161: 14.1 | G161: 0.1149410703
E162: 1.1 | F162: 14.2 | G162: 0.1089260885
E163: 1.15 | F163: 14.3 | G163: 0.1029681344
E164: 1.2 | F164: 14.4 | G164: 0.09709302749
E165: 1.25 | F165: 14.5 | G165: 0.09132454269
E166: 1.3 | F166: 14.6 | G166: 0.08568429602
E167: 1.35 | F167: 14.7 | G167: 0.08019166367
E168: 1.4 | F168: 14.8 | G168: 0.07486373282
E169: 1.45 | F169: 14.9 | G169: 0.06971528322
E170: 1.5 | F170: 15 | G170: 0.06475879783
E171: 1.55 | F171: 15.1 | G171: 0.06000450035
E172: 1.6 | F172: 15.2 | G172: 0.05546041734
E173: 1.65 | F173: 15.3 | G173: 0.05113246228
E174: 1.7 | F174: 15.4 | G174: 0.04702453869
E175: 1.75 | F175: 15.5 | G175: 0.04313865941
E176: 1.8 | F176: 15.6 | G176: 0.03947507915
E177: 1.85 | F177: 15.7 | G177: 0.03603243717
E178: 1.9 | F178: 15.8 | G178: 0.03280790739
E179: 1.95 | F179: 15.9 | G179: 0.02979735303
E180: 2 | F180: 16 | G180: 0.02699548326
E181: 2.05 | F181: 16.1 | G181: 0.02439600929
E182: 2.1 | F182: 16.2 | G182: 0.02199179799
E183: 2.15 | F183: 16.3 | G183: 0.01977502079
E184: 2.2 | F184: 16.4 | G184: 0.01773729642
E185: 2.25 | F185: 16.5 | G185: 0.01586982592
E186: 2.3 | F186: 16.6 | G186: 0.01416351887
E187: 2.35 | F187: 16.7 | G187: 0.01260910996
E188: 2.4 | F188: 16.8 | G188: 0.01119726515
E189: 2.45 | F189: 16.9 | G189: 0.009918677196
E190: 2.5 | F190: 17 | G190: 0.008764150247
E191: 2.55 | F191: 17.1 | G191: 0.007724673567
E192: 2.6 | F192: 17.2 | G192: 0.006791484617
E193: 2.65 | F193: 17.3 | G193: 0.005956121804
E194: 2.7 | F194: 17.4 | G194: 0.005210467407
E195: 2.75 | F195: 17.5 | G195: 0.004546781251
E196: 2.8 | F196: 17.6 | G196: 0.003957725791
E197: 2.85 | F197: 17.7 | G197: 0.003436383345
E198: 2.9 | F198: 17.8 | G198: 0.00297626621
E199: 2.95 | F199: 17.9 | G199: 0.002571320462
E200: 3 | F200: 18 | G200: 0.002215924206
... 60 more rows

Sheet >=
A1: Based on past data, estimate the percentage of scores on the next statistics test that will be 15 or more. What should we do if 37% get a score of 15 or more?
A2: Test Score | B2: x | C2: 15
B3: Operator 1 | C3: >= | E3: =B5&" "&C5&", "&B6&" "&C6 -> Test Score = mean = mew = μ = 12, standard deviation = sigma = σ = 2
B4: Operator 2
B5: Test Score = mean = mew = μ = | C5: 12
B6: standard deviation = sigma = σ = | C6: 2
B7: Z
B8: ="p(X "&$C$3&" "&C2&")" -> p(X >= 15)
B9: ="p(Z "&C3&" "&C7&")" -> p(Z >= )
B10: What is x given cumulative Probability?
B11: What is z given cumulative Probability?
B12: X from Z
B13: =IF(C8<>"","Based on past data it would be reasonable to assume that "&TEXT(C8,"0.00%")&" of all the scores on the next text will be "&C2&" or more. If we then run the test and "&TEXT(C8+0.3,"0%")&" of the tests are above "&C2&", we would need to investigate why.","") ->  | D13: upper | E13: 0.05
D14: Lower | E14: 0.05
F15: Height of curve
E16: =B2&" = "&A2 -> x = Test Score | F16: Remaining Area | G16: ="Area for"&C3&C2 -> Area for>=15
E17: 0 | I17: F17 has the formula: =NORM.DIST(E17,$C$5,$C$6,0) G17 has the formula: =IF(E17>=$C$2,F17,"")
E18: 0.1
E19: 0.2
E20: 0.3
B21: ="Note: Because we are dealing with continuous random variables and we are calculating probability from area and because the area of a line is zero, P("&C3&C2&") = P("&LEFT(C3,1)&C2&")" -> Note: Because we are dealing with continuous random variables and we are calculating probability from area and because the area of a line is zero, P(>=15) = P(>15) | E21: 0.4
E22: 0.5
E23: 0.6
E24: 0.7
E25: 0.8
E26: 0.9
E27: 1
E28: 1.1
E29: 1.2
E30: 1.3
E31: 1.4
E32: 1.5
E33: 1.6
E34: 1.7
E35: 1.8
E36: 1.9
E37: 2
E38: 2.1
E39: 2.2
E40: 2.3
E41: 2.4
E42: 2.5
E43: 2.6
E44: 2.7
E45: 2.8
E46: 2.9
E47: 3
E48: 3.1
E49: 3.2
E50: 3.3
E51: 3.4
E52: 3.5
E53: 3.6
E54: 3.7
E55: 3.8
E56: 3.9
E57: 4
E58: 4.1
E59: 4.2
E60: 4.3
E61: 4.4
E62: 4.5
E63: 4.6
E64: 4.7
E65: 4.8
E66: 4.9
E67: 5
E68: 5.1
E69: 5.2
E70: 5.3
E71: 5.4
E72: 5.5
E73: 5.6
E74: 5.7
E75: 5.8
E76: 5.9
E77: 6
E78: 6.1
E79: 6.2
E80: 6.3
E81: 6.4
E82: 6.5
E83: 6.6
E84: 6.7
E85: 6.8
E86: 6.9
E87: 7
E88: 7.1
E89: 7.2
E90: 7.3
E91: 7.4
E92: 7.5
E93: 7.6
E94: 7.7
E95: 7.8
E96: 7.9
E97: 8
E98: 8.1
E99: 8.2
E100: 8.3
E101: 8.4
E102: 8.5
E103: 8.6
E104: 8.7
E105: 8.8
E106: 8.9
E107: 9
E108: 9.1
E109: 9.2
E110: 9.3
E111: 9.4
E112: 9.5
E113: 9.6
E114: 9.7
E115: 9.8
E116: 9.9
E117: 10
E118: 10.1
E119: 10.2
E120: 10.3
E121: 10.4
E122: 10.5
E123: 10.6
E124: 10.7
E125: 10.8
E126: 10.9
E127: 11
E128: 11.1
E129: 11.2
E130: 11.3
E131: 11.4
E132: 11.5
E133: 11.6
E134: 11.7
E135: 11.8
E136: 11.9
E137: 12
E138: 12.1
E139: 12.2
E140: 12.3
E141: 12.4
E142: 12.5
E143: 12.6
E144: 12.7
E145: 12.8
E146: 12.9
E147: 13
E148: 13.1
E149: 13.2
E150: 13.3
E151: 13.4
E152: 13.5
E153: 13.6
E154: 13.7
E155: 13.8
E156: 13.9
E157: 14
E158: 14.1
E159: 14.2
E160: 14.3
E161: 14.4
E162: 14.5
E163: 14.6
E164: 14.7
E165: 14.8
E166: 14.9
E167: 15
E168: 15.1
E169: 15.2
E170: 15.3
E171: 15.4
E172: 15.5
E173: 15.6
E174: 15.7
E175: 15.8
E176: 15.9
E177: 16
E178: 16.1
E179: 16.2
E180: 16.3
E181: 16.4
E182: 16.5
E183: 16.6
E184: 16.7
E185: 16.8
E186: 16.9
E187: 17
E188: 17.1
E189: 17.2
E190: 17.3
E191: 17.4
E192: 17.5
E193: 17.6
E194: 17.7
E195: 17.8
E196: 17.9
E197: 18
E198: 18.1
E199: 18.2
E200: 18.3
... 58 more rows

Sheet >= (an)
A1: Based on past data, estimate the percentage of scores on the next statistics test that will be 15 or more. What should we do if 37% get a score of 15 or more?
A2: Test Score | B2: x | C2: 15
B3: Operator 1 | C3: >= | E3: =B5&" "&C5&", "&B6&" "&C6 -> Test Score = mean = mew = μ = 12, standard deviation = sigma = σ = 2
B4: Operator 2
B5: Test Score = mean = mew = μ = | C5: 12
B6: standard deviation = sigma = σ = | C6: 2
B7: Z | C7: =(C2-C5)/C6 -> 1.5
B8: ="p(X "&$C$3&" "&C2&")" -> p(X >= 15) | C8: =1-_xlfn.NORM.DIST(C2,C5,C6,1) -> 0.06680720127
B9: ="p(Z "&C3&" "&C7&")" -> p(Z >= 1.5) | C9: =1-_xlfn.NORM.S.DIST(C7,1) -> 0.06680720127
B10: What is x given cumulative Probability? | C10: =_xlfn.NORM.INV(1-C8,C5,C6) -> 15
B11: What is z given cumulative Probability? | C11: =_xlfn.NORM.S.INV(1-C9) -> 1.5
B12: X from Z | C12: =C5+C6*C11 -> 15
B13: =IF(C8<>"","Based on past data it would be reasonable to assume that "&TEXT(C8,"0.00%")&" of all the scores on the next text will be "&C2&" or more. If we then run the test and "&TEXT(C8+0.3,"0%")&" of the tests are above "&C2&", we would need to investigate why.","") -> Based on past data it would be reasonable to assume that 6.68% of all the scores on the next text will be 15 or more. If we then run the test and 37% of the tests are above 15, we would need to investigate why. | D13: upper | E13: 0.05 | F13: =_xlfn.NORM.INV(1-E13,C5,C6) -> 15.28970725
D14: Lower | E14: 0.05 | F14: =_xlfn.NORM.INV(E14,C5,C6) -> 8.710292746
F15: Height of curve
E16: =B2&" = "&A2 -> x = Test Score | F16: Remaining Area | G16: ="Area for"&C3&C2 -> Area for>=15
E17: 0 | F17: =_xlfn.NORM.DIST(E17,$C$5,$C$6,0) -> 3.037941425e-09 | G17: =IF(E17>=$C$2,F17,"") ->  | I17: F17 has the formula: =NORM.DIST(E17,$C$5,$C$6,0) G17 has the formula: =IF(E17>=$C$2,F17,"")
E18: 0.1 | F18: =_xlfn.NORM.DIST(E18,$C$5,$C$6,0) -> 4.095669202e-09 | G18: =IF(E18>=$C$2,F18,"") -> 
E19: 0.2 | F19: 5.507881812e-09
E20: 0.3 | F20: 7.388539793e-09
B21: ="Note: Because we are dealing with continuous random variables and we are calculating probability from area and because the area of a line is zero, P("&C3&C2&") = P("&LEFT(C3,1)&C2&")" -> Note: Because we are dealing with continuous random variables and we are calculating probability from area and because the area of a line is zero, P(>=15) = P(>15) | E21: 0.4 | F21: 9.886598203e-09
E22: 0.5 | F22: 1.319621602e-08
E23: 0.6 | F23: 1.756977547e-08
E24: 0.7 | F24: 2.333443399e-08
E25: 0.8 | F25: 3.09131025e-08
E26: 0.9 | F26: 4.085095189e-08
E27: 1 | F27: 5.384880021e-08
E28: 1.1 | F28: 7.080503565e-08
E29: 1.2 | F29: 9.286809223e-08
E30: 1.3 | F30: 1.215019271e-07
E31: 1.4 | F31: 1.585674608e-07
E32: 1.5 | F32: 2.064235494e-07
E33: 1.6 | F33: 2.680517672e-07
E34: 1.7 | F34: 3.472101177e-07
E35: 1.8 | F35: 4.486217581e-07
E36: 1.9 | F36: 5.782059518e-07
E37: 2 | F37: 7.433597574e-07
E38: 2.1 | F38: 9.533004516e-07
E39: 2.2 | F39: 1.219480373e-06
E40: 2.3 | F40: 1.55608779e-06
E41: 2.4 | F41: 1.980649546e-06
E42: 2.5 | F42: 2.514753644e-06
E43: 2.6 | F43: 3.184912589e-06
E44: 2.7 | F44: 4.023591228e-06
E45: 2.8 | F45: 5.070426033e-06
E46: 2.9 | F46: 6.373666191e-06
E47: 3 | F47: 7.991870553e-06
E48: 3.1 | F48: 9.995898353e-06
E49: 3.2 | F49: 1.247123565e-05
E50: 3.3 | F50: 1.552070353e-05
E51: 3.4 | F51: 1.926759837e-05
E52: 3.5 | F52: 2.385931827e-05
E53: 3.6 | F53: 2.947153388e-05
E54: 3.7 | F54: 3.631296515e-05
E55: 3.8 | F55: 4.463082859e-05
E56: 3.9 | F56: 5.471702172e-05
E57: 4 | F57: 6.691511288e-05
E58: 4.1 | F58: 8.162820438e-05
E59: 4.2 | F59: 9.93277357e-05
E60: 4.3 | F60: 0.0001205632901
E61: 4.4 | F61: 0.0001459734629
E62: 4.5 | F62: 0.0001762978412
E63: 4.6 | F63: 0.0002123901353
E64: 4.7 | F64: 0.0002552324872
E65: 4.8 | F65: 0.0003059509651
E66: 4.9 | F66: 0.0003658322314
E67: 5 | F67: 0.0004363413475
E68: 5.1 | F68: 0.0005191406478
E69: 5.2 | F69: 0.0006161095842
E70: 5.3 | F70: 0.0007293654023
E71: 5.4 | F71: 0.0008612844695
E72: 5.5 | F72: 0.001014524029
E73: 5.6 | F73: 0.001192044101
E74: 5.7 | F74: 0.001397129207
E75: 5.8 | F75: 0.001633409528
E76: 5.9 | F76: 0.001904881049
E77: 6 | F77: 0.002215924206
E78: 6.1 | F78: 0.002571320462
E79: 6.2 | F79: 0.00297626621
E80: 6.3 | F80: 0.003436383345
E81: 6.4 | F81: 0.003957725791
E82: 6.5 | F82: =_xlfn.NORM.DIST(E82,$C$5,$C$6,0) -> 0.004546781251 | G82: =IF(E82>=$C$2,F82,"") -> 
E83: 6.6 | F83: 0.005210467407
E84: 6.7 | F84: 0.005956121804
E85: 6.8 | F85: 0.006791484617
E86: 6.9 | F86: 0.007724673567
E87: 7 | F87: 0.008764150247
E88: 7.1 | F88: 0.009918677196
E89: 7.2 | F89: 0.01119726515
E90: 7.3 | F90: 0.01260910996
E91: 7.4 | F91: 0.01416351887
E92: 7.5 | F92: 0.01586982592
E93: 7.6 | F93: 0.01773729642
E94: 7.7 | F94: 0.01977502079
E95: 7.8 | F95: 0.02199179799
E96: 7.9 | F96: 0.02439600929
E97: 8 | F97: 0.02699548326
E98: 8.1 | F98: 0.02979735303
E99: 8.2 | F99: 0.03280790739
E100: 8.3 | F100: 0.03603243717
E101: 8.4 | F101: 0.03947507915
E102: 8.5 | F102: 0.04313865941
E103: 8.6 | F103: 0.04702453869
E104: 8.7 | F104: 0.05113246228
E105: 8.8 | F105: 0.05546041734
E106: 8.9 | F106: 0.06000450035
E107: 9 | F107: 0.06475879783
E108: 9.1 | F108: 0.06971528322
E109: 9.2 | F109: 0.07486373282
E110: 9.3 | F110: 0.08019166367
E111: 9.4 | F111: 0.08568429602
E112: 9.5 | F112: 0.09132454269
E113: 9.6 | F113: 0.09709302749
E114: 9.7 | F114: 0.1029681344
E115: 9.8 | F115: 0.1089260885
E116: 9.9 | F116: 0.1149410703
E117: 10 | F117: 0.1209853623
E118: 10.1 | F118: 0.1270295282
E119: 10.2 | F119: 0.1330426249
E120: 10.3 | F120: 0.1389924431
E121: 10.4 | F121: 0.1448457764
E122: 10.5 | F122: 0.1505687161
E123: 10.6 | F123: 0.1561269667
E124: 10.7 | F124: 0.1614861798
E125: 10.8 | F125: 0.1666123014
E126: 10.9 | F126: 0.1714719275
E127: 11 | F127: 0.1760326634
E128: 11.1 | F128: 0.1802634812
E129: 11.2 | F129: 0.1841350702
E130: 11.3 | F130: 0.1876201735
E131: 11.4 | F131: 0.1906939077
E132: 11.5 | F132: 0.1933340584
E133: 11.6 | F133: 0.195521347
E134: 11.7 | F134: 0.1972396655
E135: 11.8 | F135: 0.1984762737
E136: 11.9 | F136: 0.199221957
E137: 12 | F137: 0.1994711402
E138: 12.1 | F138: 0.199221957
E139: 12.2 | F139: 0.1984762737
E140: 12.3 | F140: 0.1972396655
E141: 12.4 | F141: 0.195521347
E142: 12.5 | F142: 0.1933340584
E143: 12.6 | F143: 0.1906939077
E144: 12.7 | F144: 0.1876201735
E145: 12.8 | F145: 0.1841350702
E146: 12.9 | F146: =_xlfn.NORM.DIST(E146,$C$5,$C$6,0) -> 0.1802634812 | G146: =IF(E146>=$C$2,F146,"") -> 
E147: 13 | F147: 0.1760326634
E148: 13.1 | F148: 0.1714719275
E149: 13.2 | F149: 0.1666123014
E150: 13.3 | F150: 0.1614861798
E151: 13.4 | F151: 0.1561269667
E152: 13.5 | F152: 0.1505687161
E153: 13.6 | F153: 0.1448457764
E154: 13.7 | F154: 0.1389924431
E155: 13.8 | F155: 0.1330426249
E156: 13.9 | F156: 0.1270295282
E157: 14 | F157: 0.1209853623
E158: 14.1 | F158: 0.1149410703
E159: 14.2 | F159: 0.1089260885
E160: 14.3 | F160: 0.1029681344
E161: 14.4 | F161: 0.09709302749
E162: 14.5 | F162: 0.09132454269
E163: 14.6 | F163: 0.08568429602
E164: 14.7 | F164: 0.08019166367
E165: 14.8 | F165: 0.07486373282
E166: 14.9 | F166: 0.06971528322
E167: 15 | F167: 0.06475879783 | G167: 0.06475879783
E168: 15.1 | F168: 0.06000450035 | G168: 0.06000450035
E169: 15.2 | F169: 0.05546041734 | G169: 0.05546041734
E170: 15.3 | F170: 0.05113246228 | G170: 0.05113246228
E171: 15.4 | F171: 0.04702453869 | G171: 0.04702453869
E172: 15.5 | F172: 0.04313865941 | G172: 0.04313865941
E173: 15.6 | F173: 0.03947507915 | G173: 0.03947507915
E174: 15.7 | F174: 0.03603243717 | G174: 0.03603243717
E175: 15.8 | F175: 0.03280790739 | G175: 0.03280790739
E176: 15.9 | F176: 0.02979735303 | G176: 0.02979735303
E177: 16 | F177: 0.02699548326 | G177: 0.02699548326
E178: 16.1 | F178: 0.02439600929 | G178: 0.02439600929
E179: 16.2 | F179: 0.02199179799 | G179: 0.02199179799
E180: 16.3 | F180: 0.01977502079 | G180: 0.01977502079
E181: 16.4 | F181: 0.01773729642 | G181: 0.01773729642
E182: 16.5 | F182: 0.01586982592 | G182: 0.01586982592
E183: 16.6 | F183: 0.01416351887 | G183: 0.01416351887
E184: 16.7 | F184: 0.01260910996 | G184: 0.01260910996
E185: 16.8 | F185: 0.01119726515 | G185: 0.01119726515
E186: 16.9 | F186: 0.009918677196 | G186: 0.009918677196
E187: 17 | F187: 0.008764150247 | G187: 0.008764150247
E188: 17.1 | F188: 0.007724673567 | G188: 0.007724673567
E189: 17.2 | F189: 0.006791484617 | G189: 0.006791484617
E190: 17.3 | F190: 0.005956121804 | G190: 0.005956121804
E191: 17.4 | F191: 0.005210467407 | G191: 0.005210467407
E192: 17.5 | F192: 0.004546781251 | G192: 0.004546781251
E193: 17.6 | F193: 0.003957725791 | G193: 0.003957725791
E194: 17.7 | F194: 0.003436383345 | G194: 0.003436383345
E195: 17.8 | F195: 0.00297626621 | G195: 0.00297626621
E196: 17.9 | F196: 0.002571320462 | G196: 0.002571320462
E197: 18 | F197: 0.002215924206 | G197: 0.002215924206
E198: 18.1 | F198: 0.001904881049 | G198: 0.001904881049
E199: 18.2 | F199: 0.001633409528 | G199: 0.001633409528
E200: 18.3 | F200: 0.001397129207 | G200: 0.001397129207
... 58 more rows

Sheet <=x<=
A1: ="Based on past data, estimate the percentage of scores on the next statistics test that will be between "&C2&" and "&C3&" if mew is "&C6&" and sigma is "&C7&"?" -> Based on past data, estimate the percentage of scores on the next statistics test that will be between 12 and 13.75 if mew is 12 and sigma is 2?
A2: Test Score | B2: x1 | C2: 12
B3: x2 | C3: 13.75
B4: Operator 1 | C4: >=
B5: Operator 2 | C5: <=
B6: mean = mew = μ = | C6: 12
B7: standard deviation = sigma = σ = | C7: 2
B8: z1
B9: z2
A10: AND | B10: ="P("&$C$2&$C$5&" x "&$C$5&$C$3&")" -> P(12<= x <=13.75)
A11: AND | B11: ="P("&($C$2-C6)/C7&$C$5&" z "&$C$5&($C$3-C6)/C7&")" -> P(0<= z <=0.875)
A12: OR | B12: ="P(x < "&C2&" OR x > "&C3&") = " -> P(x < 12 OR x > 13.75) =
B13: =IF(C10<>"","Based on past data it would be reasonable to assume that "&TEXT(C10,"0.00%")&" of all the scores on the next text will be between "&C2&" and "&C3&".","") -> 
H14: To see how to create charts with labels like seen in this video see video title "Excel 2010 Statistics 58: Normal Distribution Bell Curve Area Chart With X and Z Values – Many Tricks"
F15: Height of curve
E16: x = Test Score | F16: =B12&ROUND(C12,4) -> P(x < 12 OR x > 13.75) = 0 | G16: =B10&" = "&ROUND(C10,4) -> P(12<= x <=13.75) = 0
E17: 0 | I17: F17 has the formula: =NORM.DIST(E17,$C$6,$C$7,0) G17 has the formula: =IF(AND(E17>=$C$2,E17<=$C$3),F17,"")
B18: ="Note: Because we are dealing with continuous random variables and we are calculating probability from area and because the area of a line is zero, P("&C4&C2&") = P("&LEFT(C4,1)&C2&")" -> Note: Because we are dealing with continuous random variables and we are calculating probability from area and because the area of a line is zero, P(>=12) = P(>12) | E18: 0.1
E19: 0.2
E20: 0.3
E21: 0.4
E22: 0.5
E23: 0.6
E24: 0.7
E25: 0.8
E26: 0.9
E27: 1
E28: 1.1
E29: 1.2
E30: 1.3
E31: 1.4
E32: 1.5
E33: 1.6
E34: 1.7
E35: 1.8
E36: 1.9
E37: 2
E38: 2.1
E39: 2.2
E40: 2.3
E41: 2.4
E42: 2.5
E43: 2.6
E44: 2.7
E45: 2.8
E46: 2.9
E47: 3
E48: 3.1
E49: 3.2
E50: 3.3
E51: 3.4
E52: 3.5
E53: 3.6
E54: 3.7
E55: 3.8
E56: 3.9
E57: 4
E58: 4.1
E59: 4.2
E60: 4.3
E61: 4.4
E62: 4.5
E63: 4.6
E64: 4.7
E65: 4.8
E66: 4.9
E67: 5
E68: 5.1
E69: 5.2
E70: 5.3
E71: 5.4
E72: 5.5
E73: 5.6
E74: 5.7
E75: 5.8
E76: 5.9
E77: 6
E78: 6.1
E79: 6.2
E80: 6.3
E81: 6.4
E82: 6.5
E83: 6.6
E84: 6.7
E85: 6.8
E86: 6.9
E87: 7
E88: 7.1
E89: 7.2
E90: 7.3
E91: 7.4
E92: 7.5
E93: 7.6
E94: 7.7
E95: 7.8
E96: 7.9
E97: 8
E98: 8.1
E99: 8.2
E100: 8.3
E101: 8.4
E102: 8.5
E103: 8.6
E104: 8.7
E105: 8.8
E106: 8.9
E107: 9
E108: 9.1
E109: 9.2
E110: 9.3
E111: 9.4
E112: 9.5
E113: 9.6
E114: 9.7
E115: 9.8
E116: 9.9
E117: 10
E118: 10.1
E119: 10.2
E120: 10.3
E121: 10.4
E122: 10.5
E123: 10.6
E124: 10.7
E125: 10.8
E126: 10.9
E127: 11
E128: 11.1
E129: 11.2
E130: 11.3
E131: 11.4
E132: 11.5
E133: 11.6
E134: 11.7
E135: 11.8
E136: 11.9
E137: 12
E138: 12.1
E139: 12.2
E140: 12.3
E141: 12.4
E142: 12.5
E143: 12.6
E144: 12.7
E145: 12.8
E146: 12.9
E147: 13
E148: 13.1
E149: 13.2
E150: 13.3
E151: 13.4
E152: 13.5
E153: 13.6
E154: 13.7
E155: 13.8
E156: 13.9
E157: 14
E158: 14.1
E159: 14.2
E160: 14.3
E161: 14.4
E162: 14.5
E163: 14.6
E164: 14.7
E165: 14.8
E166: 14.9
E167: 15
E168: 15.1
E169: 15.2
E170: 15.3
E171: 15.4
E172: 15.5
E173: 15.6
E174: 15.7
E175: 15.8
E176: 15.9
E177: 16
E178: 16.1
E179: 16.2
E180: 16.3
E181: 16.4
E182: 16.5
E183: 16.6
E184: 16.7
E185: 16.8
E186: 16.9
E187: 17
E188: 17.1
E189: 17.2
E190: 17.3
E191: 17.4
E192: 17.5
E193: 17.6
E194: 17.7
E195: 17.8
E196: 17.9
E197: 18
E198: 18.1
E199: 18.2
E200: 18.3
... 57 more rows

Sheet <=x<= (an)
A1: ="Based on past data, estimate the percentage of scores on the next statistics test that will be between "&C2&" and "&C3&" if mew is "&C6&" and sigma is "&C7&"?" -> Based on past data, estimate the percentage of scores on the next statistics test that will be between 8 and 16 if mew is 12 and sigma is 2?
A2: Test Score | B2: x1 | C2: 8
B3: x2 | C3: 16
B4: Operator 1 | C4: >=
B5: Operator 2 | C5: <=
B6: mean = mew = μ = | C6: 12
B7: standard deviation = sigma = σ = | C7: 2
B8: z1 | C8: =(C2-$C$6)/$C$7 -> -2
B9: z2 | C9: =(C3-$C$6)/$C$7 -> 2
A10: AND | B10: ="P("&$C$2&$C$5&" x "&$C$5&$C$3&")" -> P(8<= x <=16) | C10: =_xlfn.NORM.DIST(C3,C6,C7,1)-_xlfn.NORM.DIST(C2,C6,C7,1) -> 0.9544997361
A11: AND | B11: ="P("&($C$2-C6)/C7&$C$5&" z "&$C$5&($C$3-C6)/C7&")" -> P(-2<= z <=2) | C11: =_xlfn.NORM.S.DIST(C9,1)-_xlfn.NORM.S.DIST(C8,1) -> 0.9544997361
A12: OR | B12: ="P(x < "&C2&" OR x > "&C3&") = " -> P(x < 8 OR x > 16) = | C12: =1-C10 -> 0.0455002639
B13: =IF(C10<>"","Based on past data it would be reasonable to assume that "&TEXT(C10,"0.00%")&" of all the scores on the next text will be between "&C2&" and "&C3&".","") -> Based on past data it would be reasonable to assume that 95.45% of all the scores on the next text will be between 8 and 16.
H14: To see how to create charts with labels like seen in this video see video title "Excel 2010 Statistics 58: Normal Distribution Bell Curve Area Chart With X and Z Values – Many Tricks"
F15: Height of curve
E16: x = Test Score | F16: =B12&ROUND(C12,4) -> P(x < 8 OR x > 16) = 0.0455 | G16: =B10&" = "&ROUND(C10,4) -> P(8<= x <=16) = 0.9545
E17: 0 | F17: =_xlfn.NORM.DIST(E17,$C$6,$C$7,0) -> 3.037941425e-09 | G17: =IF(AND(E17>=$C$2,E17<=$C$3),F17,"") ->  | I17: F17 has the formula: =NORM.DIST(E17,$C$6,$C$7,0) G17 has the formula: =IF(AND(E17>=$C$2,E17<=$C$3),F17,"")
B18: ="Note: Because we are dealing with continuous random variables and we are calculating probability from area and because the area of a line is zero, P("&C4&C2&") = P("&LEFT(C4,1)&C2&")" -> Note: Because we are dealing with continuous random variables and we are calculating probability from area and because the area of a line is zero, P(>=8) = P(>8) | E18: 0.1 | F18: =_xlfn.NORM.DIST(E18,$C$6,$C$7,0) -> 4.095669202e-09 | G18: =IF(AND(E18>=$C$2,E18<=$C$3),F18,"") -> 
E19: 0.2 | F19: 5.507881812e-09
E20: 0.3 | F20: 7.388539793e-09
E21: 0.4 | F21: 9.886598203e-09
E22: 0.5 | F22: 1.319621602e-08
E23: 0.6 | F23: 1.756977547e-08
E24: 0.7 | F24: 2.333443399e-08
E25: 0.8 | F25: 3.09131025e-08
E26: 0.9 | F26: 4.085095189e-08
E27: 1 | F27: 5.384880021e-08
E28: 1.1 | F28: 7.080503565e-08
E29: 1.2 | F29: 9.286809223e-08
E30: 1.3 | F30: 1.215019271e-07
E31: 1.4 | F31: 1.585674608e-07
E32: 1.5 | F32: 2.064235494e-07
E33: 1.6 | F33: 2.680517672e-07
E34: 1.7 | F34: 3.472101177e-07
E35: 1.8 | F35: 4.486217581e-07
E36: 1.9 | F36: 5.782059518e-07
E37: 2 | F37: 7.433597574e-07
E38: 2.1 | F38: 9.533004516e-07
E39: 2.2 | F39: 1.219480373e-06
E40: 2.3 | F40: 1.55608779e-06
E41: 2.4 | F41: 1.980649546e-06
E42: 2.5 | F42: 2.514753644e-06
E43: 2.6 | F43: 3.184912589e-06
E44: 2.7 | F44: 4.023591228e-06
E45: 2.8 | F45: 5.070426033e-06
E46: 2.9 | F46: 6.373666191e-06
E47: 3 | F47: 7.991870553e-06
E48: 3.1 | F48: 9.995898353e-06
E49: 3.2 | F49: 1.247123565e-05
E50: 3.3 | F50: 1.552070353e-05
E51: 3.4 | F51: 1.926759837e-05
E52: 3.5 | F52: 2.385931827e-05
E53: 3.6 | F53: 2.947153388e-05
E54: 3.7 | F54: 3.631296515e-05
E55: 3.8 | F55: 4.463082859e-05
E56: 3.9 | F56: 5.471702172e-05
E57: 4 | F57: 6.691511288e-05
E58: 4.1 | F58: 8.162820438e-05
E59: 4.2 | F59: 9.93277357e-05
E60: 4.3 | F60: 0.0001205632901
E61: 4.4 | F61: 0.0001459734629
E62: 4.5 | F62: 0.0001762978412
E63: 4.6 | F63: 0.0002123901353
E64: 4.7 | F64: 0.0002552324872
E65: 4.8 | F65: 0.0003059509651
E66: 4.9 | F66: 0.0003658322314
E67: 5 | F67: 0.0004363413475
E68: 5.1 | F68: 0.0005191406478
E69: 5.2 | F69: 0.0006161095842
E70: 5.3 | F70: 0.0007293654023
E71: 5.4 | F71: 0.0008612844695
E72: 5.5 | F72: 0.001014524029
E73: 5.6 | F73: 0.001192044101
E74: 5.7 | F74: 0.001397129207
E75: 5.8 | F75: 0.001633409528
E76: 5.9 | F76: 0.001904881049
E77: 6 | F77: 0.002215924206
E78: 6.1 | F78: 0.002571320462
E79: 6.2 | F79: 0.00297626621
E80: 6.3 | F80: 0.003436383345
E81: 6.4 | F81: 0.003957725791
E82: 6.5 | F82: =_xlfn.NORM.DIST(E82,$C$6,$C$7,0) -> 0.004546781251 | G82: =IF(AND(E82>=$C$2,E82<=$C$3),F82,"") -> 
E83: 6.6 | F83: 0.005210467407
E84: 6.7 | F84: 0.005956121804
E85: 6.8 | F85: 0.006791484617
E86: 6.9 | F86: 0.007724673567
E87: 7 | F87: 0.008764150247
E88: 7.1 | F88: 0.009918677196
E89: 7.2 | F89: 0.01119726515
E90: 7.3 | F90: 0.01260910996
E91: 7.4 | F91: 0.01416351887
E92: 7.5 | F92: 0.01586982592
E93: 7.6 | F93: 0.01773729642
E94: 7.7 | F94: 0.01977502079
E95: 7.8 | F95: 0.02199179799
E96: 7.9 | F96: 0.02439600929
E97: 8 | F97: 0.02699548326 | G97: 0.02699548326
E98: 8.1 | F98: 0.02979735303 | G98: 0.02979735303
E99: 8.2 | F99: 0.03280790739 | G99: 0.03280790739
E100: 8.3 | F100: 0.03603243717 | G100: 0.03603243717
E101: 8.4 | F101: 0.03947507915 | G101: 0.03947507915
E102: 8.5 | F102: 0.04313865941 | G102: 0.04313865941
E103: 8.6 | F103: 0.04702453869 | G103: 0.04702453869
E104: 8.7 | F104: 0.05113246228 | G104: 0.05113246228
E105: 8.8 | F105: 0.05546041734 | G105: 0.05546041734
E106: 8.9 | F106: 0.06000450035 | G106: 0.06000450035
E107: 9 | F107: 0.06475879783 | G107: 0.06475879783
E108: 9.1 | F108: 0.06971528322 | G108: 0.06971528322
E109: 9.2 | F109: 0.07486373282 | G109: 0.07486373282
E110: 9.3 | F110: 0.08019166367 | G110: 0.08019166367
E111: 9.4 | F111: 0.08568429602 | G111: 0.08568429602
E112: 9.5 | F112: 0.09132454269 | G112: 0.09132454269
E113: 9.6 | F113: 0.09709302749 | G113: 0.09709302749
E114: 9.7 | F114: 0.1029681344 | G114: 0.1029681344
E115: 9.8 | F115: 0.1089260885 | G115: 0.1089260885
E116: 9.9 | F116: 0.1149410703 | G116: 0.1149410703
E117: 10 | F117: 0.1209853623 | G117: 0.1209853623
E118: 10.1 | F118: 0.1270295282 | G118: 0.1270295282
E119: 10.2 | F119: 0.1330426249 | G119: 0.1330426249
E120: 10.3 | F120: 0.1389924431 | G120: 0.1389924431
E121: 10.4 | F121: 0.1448457764 | G121: 0.1448457764
E122: 10.5 | F122: 0.1505687161 | G122: 0.1505687161
E123: 10.6 | F123: 0.1561269667 | G123: 0.1561269667
E124: 10.7 | F124: 0.1614861798 | G124: 0.1614861798
E125: 10.8 | F125: 0.1666123014 | G125: 0.1666123014
E126: 10.9 | F126: 0.1714719275 | G126: 0.1714719275
E127: 11 | F127: 0.1760326634 | G127: 0.1760326634
E128: 11.1 | F128: 0.1802634812 | G128: 0.1802634812
E129: 11.2 | F129: 0.1841350702 | G129: 0.1841350702
E130: 11.3 | F130: 0.1876201735 | G130: 0.1876201735
E131: 11.4 | F131: 0.1906939077 | G131: 0.1906939077
E132: 11.5 | F132: 0.1933340584 | G132: 0.1933340584
E133: 11.6 | F133: 0.195521347 | G133: 0.195521347
E134: 11.7 | F134: 0.1972396655 | G134: 0.1972396655
E135: 11.8 | F135: 0.1984762737 | G135: 0.1984762737
E136: 11.9 | F136: 0.199221957 | G136: 0.199221957
E137: 12 | F137: 0.1994711402 | G137: 0.1994711402
E138: 12.1 | F138: 0.199221957 | G138: 0.199221957
E139: 12.2 | F139: 0.1984762737 | G139: 0.1984762737
E140: 12.3 | F140: 0.1972396655 | G140: 0.1972396655
E141: 12.4 | F141: 0.195521347 | G141: 0.195521347
E142: 12.5 | F142: 0.1933340584 | G142: 0.1933340584
E143: 12.6 | F143: 0.1906939077 | G143: 0.1906939077
E144: 12.7 | F144: 0.1876201735 | G144: 0.1876201735
E145: 12.8 | F145: 0.1841350702 | G145: 0.1841350702
E146: 12.9 | F146: =_xlfn.NORM.DIST(E146,$C$6,$C$7,0) -> 0.1802634812 | G146: =IF(AND(E146>=$C$2,E146<=$C$3),F146,"") -> 0.1802634812
E147: 13 | F147: 0.1760326634 | G147: 0.1760326634
E148: 13.1 | F148: 0.1714719275 | G148: 0.1714719275
E149: 13.2 | F149: 0.1666123014 | G149: 0.1666123014
E150: 13.3 | F150: 0.1614861798 | G150: 0.1614861798
E151: 13.4 | F151: 0.1561269667 | G151: 0.1561269667
E152: 13.5 | F152: 0.1505687161 | G152: 0.1505687161
E153: 13.6 | F153: 0.1448457764 | G153: 0.1448457764
E154: 13.7 | F154: 0.1389924431 | G154: 0.1389924431
E155: 13.8 | F155: 0.1330426249 | G155: 0.1330426249
E156: 13.9 | F156: 0.1270295282 | G156: 0.1270295282
E157: 14 | F157: 0.1209853623 | G157: 0.1209853623
E158: 14.1 | F158: 0.1149410703 | G158: 0.1149410703
E159: 14.2 | F159: 0.1089260885 | G159: 0.1089260885
E160: 14.3 | F160: 0.1029681344 | G160: 0.1029681344
E161: 14.4 | F161: 0.09709302749 | G161: 0.09709302749
E162: 14.5 | F162: 0.09132454269 | G162: 0.09132454269
E163: 14.6 | F163: 0.08568429602 | G163: 0.08568429602
E164: 14.7 | F164: 0.08019166367 | G164: 0.08019166367
E165: 14.8 | F165: 0.07486373282 | G165: 0.07486373282
E166: 14.9 | F166: 0.06971528322 | G166: 0.06971528322
E167: 15 | F167: 0.06475879783 | G167: 0.06475879783
E168: 15.1 | F168: 0.06000450035 | G168: 0.06000450035
E169: 15.2 | F169: 0.05546041734 | G169: 0.05546041734
E170: 15.3 | F170: 0.05113246228 | G170: 0.05113246228
E171: 15.4 | F171: 0.04702453869 | G171: 0.04702453869
E172: 15.5 | F172: 0.04313865941 | G172: 0.04313865941
E173: 15.6 | F173: 0.03947507915 | G173: 0.03947507915
E174: 15.7 | F174: 0.03603243717 | G174: 0.03603243717
E175: 15.8 | F175: 0.03280790739 | G175: 0.03280790739
E176: 15.9 | F176: 0.02979735303 | G176: 0.02979735303
E177: 16 | F177: 0.02699548326 | G177: 0.02699548326
E178: 16.1 | F178: 0.02439600929
E179: 16.2 | F179: 0.02199179799
E180: 16.3 | F180: 0.01977502079
E181: 16.4 | F181: 0.01773729642
E182: 16.5 | F182: 0.01586982592
E183: 16.6 | F183: 0.01416351887
E184: 16.7 | F184: 0.01260910996
E185: 16.8 | F185: 0.01119726515
E186: 16.9 | F186: 0.009918677196
E187: 17 | F187: 0.008764150247
E188: 17.1 | F188: 0.007724673567
E189: 17.2 | F189: 0.006791484617
E190: 17.3 | F190: 0.005956121804
E191: 17.4 | F191: 0.005210467407
E192: 17.5 | F192: 0.004546781251
E193: 17.6 | F193: 0.003957725791
E194: 17.7 | F194: 0.003436383345
E195: 17.8 | F195: 0.00297626621
E196: 17.9 | F196: 0.002571320462
E197: 18 | F197: 0.002215924206
E198: 18.1 | F198: 0.001904881049
E199: 18.2 | F199: 0.001633409528
E200: 18.3 | F200: 0.001397129207
... 57 more rows

Sheet Find X
A1: ="If the professor grades with a bell curve and assigns a grade of A for the top "&TEXT(Y6,"0.00%")&" of the scores, what score would you need to get to earn an A if the mean (from past data) was "&Y4&" and the standard deviation (from past data) was "&Y5&"?" -> If the professor grades with a bell curve and assigns a grade of A for the top 5.00% of the scores, what score would you need to get to earn an A if the mean (from past data) was 79 and the standard deviation (from past data) was 6?
A3: What is x? | B3: Scores | Y3: Data For Questions
A4: Mean | B4: 79 | Y4: 79
A5: SD | B5: 6 | Y5: 6
A6: Probability | B6: 0.05 | E6: z = (x-mu)/sigma | Y6: 0.05
A7: X = Score Needed | E7: =>
A8: z | E8: x = z*sigma+mu
A9: =A7 -> X = Score Needed | E9: =B4+B5*B8
A11: ="From past population data that has a normal shaped distribution, if the employees on average produced "&Y14&" boomerangs per day with a standard deviation of "&Y15&" how many boomerangs would have to be produced for the day's production level to be among the slowest "&TEXT(Y16,"0.00%")&" of days?" -> From past population data that has a normal shaped distribution, if the employees on average produced 1000 boomerangs per day with a standard deviation of 50 how many boomerangs would have to be produced for the day's production level to be among the slowest 10.00% of days?
A13: What is x? | B13: # units produced | Y13: Data For Questions
A14: Mean | B14: 1000 | Y14: 1000
A15: SD | B15: 50 | Y15: 50
A16: Probability | B16: 0.1 | E16: z = (x-mu)/sigma | Y16: 0.1
A17: X = Units Needed | E17: =>
A18: z | E18: x = z*sigma+mu
A19: =A17 -> X = Units Needed | E19: =B14+B18*B15
A23: Test Scores | B23: f(x) | C23: Above 5% | E23: Test Scores | F23: f(x) | G23: Below 10%
A24: 43 | B24: =_xlfn.NORM.DIST(A24,$B$4,$B$5,0) -> 1.012647142e-09 | C24: =IF(_xlfn.NORM.INV(1-$B$6,$B$4,$B$5)<=A24,B24,"") ->  | E24: 700 | F24: =_xlfn.NORM.DIST(E24,$B$14,$B$15,0) -> 1.21517657e-10 | G24: =IF(_xlfn.NORM.INV($B$16,$B$14,$B$15)>=E24,F24,"") -> 1.21517657e-10
A25: 43.1 | B25: =_xlfn.NORM.DIST(A25,$B$4,$B$5,0) -> 1.118992745e-09 | C25: =IF(_xlfn.NORM.INV(1-$B$6,$B$4,$B$5)<=A25,B25,"") ->  | E25: 700.1 | F25: =_xlfn.NORM.DIST(E25,$B$14,$B$15,0) -> 1.229844073e-10 | G25: =IF(_xlfn.NORM.INV($B$16,$B$14,$B$15)>=E25,F25,"") -> 1.229844073e-10
A26: 43.2 | B26: 1.236163064e-09 | E26: 700.2 | F26: 1.244683638e-10 | G26: 1.244683638e-10
A27: 43.3 | B27: 1.365223067e-09 | E27: 700.3 | F27: 1.259697221e-10 | G27: 1.259697221e-10
A28: 43.4 | B28: 1.50733865e-09 | E28: 700.4 | F28: 1.274886801e-10 | G28: 1.274886801e-10
A29: 43.5 | B29: 1.663785807e-09 | E29: 700.5 | F29: 1.290254378e-10 | G29: 1.290254378e-10
A30: 43.6 | B30: 1.835960604e-09 | E30: 700.6 | F30: 1.305801974e-10 | G30: 1.305801974e-10
A31: 43.7 | B31: 2.025390009e-09 | E31: 700.7 | F31: 1.321531632e-10 | G31: 1.321531632e-10
A32: 43.8 | B32: 2.233743652e-09 | E32: 700.8 | F32: 1.33744542e-10 | G32: 1.33744542e-10
A33: 43.9 | B33: 2.462846598e-09 | E33: 700.9 | F33: 1.353545426e-10 | G33: 1.353545426e-10
A34: 44 | B34: 2.714693201e-09 | E34: 701 | F34: 1.369833763e-10 | G34: 1.369833763e-10
A35: 44.1 | B35: 2.991462143e-09 | E35: 701.1 | F35: 1.386312565e-10 | G35: 1.386312565e-10
A36: 44.2 | B36: 3.295532734e-09 | E36: 701.2 | F36: 1.402983992e-10 | G36: 1.402983992e-10
A37: 44.3 | B37: 3.629502593e-09 | E37: 701.3 | F37: 1.419850226e-10 | G37: 1.419850226e-10
A38: 44.4 | B38: 3.996206804e-09 | E38: 701.4 | F38: 1.436913473e-10 | G38: 1.436913473e-10
A39: 44.5 | B39: 4.398738673e-09 | E39: 701.5 | F39: 1.454175962e-10 | G39: 1.454175962e-10
A40: 44.6 | B40: 4.840472205e-09 | E40: 701.6 | F40: 1.47163995e-10 | G40: 1.47163995e-10
A41: 44.7 | B41: 5.325086447e-09 | E41: 701.7 | F41: 1.489307715e-10 | G41: 1.489307715e-10
A42: 44.8 | B42: 5.856591825e-09 | E42: 701.8 | F42: 1.507181562e-10 | G42: 1.507181562e-10
A43: 44.9 | B43: 6.439358643e-09 | E43: 701.9 | F43: 1.525263819e-10 | G43: 1.525263819e-10
A44: 45 | B44: 7.078147911e-09 | E44: 702 | F44: 1.543556843e-10 | G44: 1.543556843e-10
A45: 45.1 | B45: 7.778144663e-09 | E45: 702.1 | F45: 1.562063012e-10 | G45: 1.562063012e-10
A46: 45.2 | B46: 8.544993982e-09 | E46: 702.2 | F46: 1.580784735e-10 | G46: 1.580784735e-10
A47: 45.3 | B47: 9.384839914e-09 | E47: 702.3 | F47: 1.599724443e-10 | G47: 1.599724443e-10
A48: 45.4 | B48: 1.03043675e-08 | E48: 702.4 | F48: 1.618884596e-10 | G48: 1.618884596e-10
A49: 45.5 | B49: 1.131084816e-08 | E49: 702.5 | F49: 1.638267681e-10 | G49: 1.638267681e-10
A50: 45.6 | B50: 1.241218865e-08 | E50: 702.6 | F50: 1.657876209e-10 | G50: 1.657876209e-10
A51: 45.7 | B51: 1.361698396e-08 | E51: 702.7 | F51: 1.677712723e-10 | G51: 1.677712723e-10
A52: 45.8 | B52: 1.493457427e-08 | E52: 702.8 | F52: 1.697779789e-10 | G52: 1.697779789e-10
A53: 45.9 | B53: 1.63751064e-08 | E53: 702.9 | F53: 1.718080005e-10 | G53: 1.718080005e-10
A54: 46 | B54: 1.794960007e-08 | E54: 703 | F54: 1.738615995e-10 | G54: 1.738615995e-10
A55: 46.1 | B55: 1.967001927e-08 | E55: 703.1 | F55: 1.75939041e-10 | G55: 1.75939041e-10
A56: 46.2 | B56: 2.154934911e-08 | E56: 703.2 | F56: 1.780405934e-10 | G56: 1.780405934e-10
A57: 46.3 | B57: 2.360167855e-08 | E57: 703.3 | F57: 1.801665277e-10 | G57: 1.801665277e-10
A58: 46.4 | B58: 2.584228953e-08 | E58: 703.4 | F58: 1.82317118e-10 | G58: 1.82317118e-10
A59: 46.5 | B59: 2.828775274e-08 | E59: 703.5 | F59: 1.844926411e-10 | G59: 1.844926411e-10
A60: 46.6 | B60: 3.095603074e-08 | E60: 703.6 | F60: 1.866933773e-10 | G60: 1.866933773e-10
A61: 46.7 | B61: 3.386658874e-08 | E61: 703.7 | F61: 1.889196094e-10 | G61: 1.889196094e-10
A62: 46.8 | B62: 3.704051372e-08 | E62: 703.8 | F62: 1.911716236e-10 | G62: 1.911716236e-10
A63: 46.9 | B63: 4.050064235e-08 | E63: 703.9 | F63: 1.934497091e-10 | G63: 1.934497091e-10
A64: 47 | B64: 4.427169848e-08 | E64: 704 | F64: 1.957541582e-10 | G64: 1.957541582e-10
A65: 47.1 | B65: 4.83804406e-08 | E65: 704.1 | F65: 1.980852666e-10 | G65: 1.980852666e-10
A66: 47.2 | B66: 5.285582028e-08 | E66: 704.2 | F66: 2.004433328e-10 | G66: 2.004433328e-10
A67: 47.3 | B67: 5.772915195e-08 | E67: 704.3 | F67: 2.028286588e-10 | G67: 2.028286588e-10
A68: 47.4 | B68: 6.303429514e-08 | E68: 704.4 | F68: 2.052415498e-10 | G68: 2.052415498e-10
A69: 47.5 | B69: 6.880784981e-08 | E69: 704.5 | F69: 2.076823144e-10 | G69: 2.076823144e-10
A70: 47.6 | B70: 7.508936561e-08 | E70: 704.6 | F70: 2.101512642e-10 | G70: 2.101512642e-10
A71: 47.7 | B71: 8.192156613e-08 | E71: 704.7 | F71: 2.126487147e-10 | G71: 2.126487147e-10
A72: 47.8 | B72: 8.935058908e-08 | E72: 704.8 | F72: 2.151749842e-10 | G72: 2.151749842e-10
A73: 47.9 | B73: 9.742624325e-08 | E73: 704.9 | F73: 2.17730395e-10 | G73: 2.17730395e-10
A74: 48 | B74: 1.062022837e-07 | E74: 705 | F74: 2.203152725e-10 | G74: 2.203152725e-10
A75: 48.1 | B75: 1.157367059e-07 | E75: 705.1 | F75: 2.229299457e-10 | G75: 2.229299457e-10
A76: 48.2 | B76: 1.260920605e-07 | E76: 705.2 | F76: 2.255747472e-10 | G76: 2.255747472e-10
A77: 48.3 | B77: 1.373357896e-07 | E77: 705.3 | F77: 2.282500132e-10 | G77: 2.282500132e-10
A78: 48.4 | B78: 1.49540586e-07 | E78: 705.4 | F78: 2.309560834e-10 | G78: 2.309560834e-10
A79: 48.5 | B79: 1.627847776e-07 | E79: 705.5 | F79: 2.336933013e-10 | G79: 2.336933013e-10
A80: 48.6 | B80: 1.771527366e-07 | E80: 705.6 | F80: 2.364620139e-10 | G80: 2.364620139e-10
A81: 48.7 | B81: 1.927353173e-07 | E81: 705.7 | F81: 2.392625722e-10 | G81: 2.392625722e-10
A82: 48.8 | B82: 2.096303229e-07 | E82: 705.8 | F82: 2.420953307e-10 | G82: 2.420953307e-10
A83: 48.9 | B83: 2.279430033e-07 | E83: 705.9 | F83: 2.44960648e-10 | G83: 2.44960648e-10
A84: 49 | B84: 2.477865858e-07 | E84: 706 | F84: 2.478588863e-10 | G84: 2.478588863e-10
A85: 49.1 | B85: 2.692828405e-07 | E85: 706.1 | F85: 2.507904117e-10 | G85: 2.507904117e-10
A86: 49.2 | B86: 2.925626833e-07 | E86: 706.2 | F86: 2.537555945e-10 | G86: 2.537555945e-10
A87: 49.3 | B87: 3.177668172e-07 | E87: 706.3 | F87: 2.567548086e-10 | G87: 2.567548086e-10
A88: 49.4 | B88: 3.450464155e-07 | E88: 706.4 | F88: 2.597884322e-10 | G88: 2.597884322e-10
A89: 49.5 | B89: =_xlfn.NORM.DIST(A89,$B$4,$B$5,0) -> 3.745638487e-07 | C89: =IF(_xlfn.NORM.INV(1-$B$6,$B$4,$B$5)<=A89,B89,"") ->  | E89: 706.5 | F89: =_xlfn.NORM.DIST(E89,$B$14,$B$15,0) -> 2.628568473e-10 | G89: =IF(_xlfn.NORM.INV($B$16,$B$14,$B$15)>=E89,F89,"") -> 2.628568473e-10
A90: 49.6 | B90: 4.064934576e-07 | E90: 706.6 | F90: 2.659604404e-10 | G90: 2.659604404e-10
A91: 49.7 | B91: 4.410223755e-07 | E91: 706.7 | F91: 2.690996016e-10 | G91: 2.690996016e-10
A92: 49.8 | B92: 4.783514016e-07 | E92: 706.8 | F92: 2.722747256e-10 | G92: 2.722747256e-10
A93: 49.9 | B93: 5.186959299e-07 | E93: 706.9 | F93: 2.754862112e-10 | G93: 2.754862112e-10
A94: 50 | B94: 5.622869344e-07 | E94: 707 | F94: 2.787344614e-10 | G94: 2.787344614e-10
A95: 50.1 | B95: 6.093720164e-07 | E95: 707.1 | F95: 2.820198835e-10 | G95: 2.820198835e-10
A96: 50.2 | B96: 6.602165152e-07 | E96: 707.2 | F96: 2.853428893e-10 | G96: 2.853428893e-10
A97: 50.3 | B97: 7.151046858e-07 | E97: 707.3 | F97: 2.887038948e-10 | G97: 2.887038948e-10
A98: 50.4 | B98: 7.743409488e-07 | E98: 707.4 | F98: 2.921033206e-10 | G98: 2.921033206e-10
A99: 50.5 | B99: 8.382512148e-07 | E99: 707.5 | F99: 2.955415917e-10 | G99: 2.955415917e-10
A100: 50.6 | B100: 9.071842868e-07 | E100: 707.6 | F100: 2.990191378e-10 | G100: 2.990191378e-10
A101: 50.7 | B101: 9.815133471e-07 | E101: 707.7 | F101: 3.025363929e-10 | G101: 3.025363929e-10
A102: 50.8 | B102: 1.06163753e-06 | E102: 707.8 | F102: 3.060937958e-10 | G102: 3.060937958e-10
A103: 50.9 | B103: 1.147983586e-06 | E103: 707.9 | F103: 3.096917901e-10 | G103: 3.096917901e-10
A104: 51 | B104: 1.241007645e-06 | E104: 708 | F104: 3.133308238e-10 | G104: 3.133308238e-10
A105: 51.1 | B105: 1.341197076e-06 | E105: 708.1 | F105: 3.170113499e-10 | G105: 3.170113499e-10
A106: 51.2 | B106: 1.449072457e-06 | E106: 708.2 | F106: 3.207338262e-10 | G106: 3.207338262e-10
A107: 51.3 | B107: 1.565189652e-06 | E107: 708.3 | F107: 3.244987154e-10 | G107: 3.244987154e-10
A108: 51.4 | B108: 1.690142011e-06 | E108: 708.4 | F108: 3.283064849e-10 | G108: 3.283064849e-10
A109: 51.5 | B109: 1.824562684e-06 | E109: 708.5 | F109: 3.321576074e-10 | G109: 3.321576074e-10
A110: 51.6 | B110: 1.969127071e-06 | E110: 708.6 | F110: 3.360525603e-10 | G110: 3.360525603e-10
A111: 51.7 | B111: 2.124555397e-06 | E111: 708.7 | F111: 3.399918264e-10 | G111: 3.399918264e-10
A112: 51.8 | B112: 2.291615437e-06 | E112: 708.8 | F112: 3.439758933e-10 | G112: 3.439758933e-10
A113: 51.9 | B113: 2.471125381e-06 | E113: 708.9 | F113: 3.48005254e-10 | G113: 3.48005254e-10
A114: 52 | B114: 2.663956851e-06 | E114: 709 | F114: 3.520804066e-10 | G114: 3.520804066e-10
A115: 52.1 | B115: 2.871038086e-06 | E115: 709.1 | F115: 3.562018545e-10 | G115: 3.562018545e-10
A116: 52.2 | B116: 3.093357282e-06 | E116: 709.2 | F116: 3.603701066e-10 | G116: 3.603701066e-10
A117: 52.3 | B117: 3.331966118e-06 | E117: 709.3 | F117: 3.64585677e-10 | G117: 3.64585677e-10
A118: 52.4 | B118: 3.587983456e-06 | E118: 709.4 | F118: 3.688490852e-10 | G118: 3.688490852e-10
A119: 52.5 | B119: 3.862599233e-06 | E119: 709.5 | F119: 3.731608565e-10 | G119: 3.731608565e-10
A120: 52.6 | B120: 4.157078548e-06 | E120: 709.6 | F120: 3.775215214e-10 | G120: 3.775215214e-10
A121: 52.7 | B121: 4.472765959e-06 | E121: 709.7 | F121: 3.819316162e-10 | G121: 3.819316162e-10
A122: 52.8 | B122: 4.811089985e-06 | E122: 709.8 | F122: 3.863916828e-10 | G122: 3.863916828e-10
A123: 52.9 | B123: 5.173567843e-06 | E123: 709.9 | F123: 3.90902269e-10 | G123: 3.90902269e-10
A124: 53 | B124: 5.561810399e-06 | E124: 710 | F124: 3.954639281e-10 | G124: 3.954639281e-10
A125: 53.1 | B125: 5.977527375e-06 | E125: 710.1 | F125: 4.000772195e-10 | G125: 4.000772195e-10
A126: 53.2 | B126: 6.42253279e-06 | E126: 710.2 | F126: 4.047427084e-10 | G126: 4.047427084e-10
A127: 53.3 | B127: 6.898750673e-06 | E127: 710.3 | F127: 4.094609659e-10 | G127: 4.094609659e-10
A128: 53.4 | B128: 7.408221028e-06 | E128: 710.4 | F128: 4.142325691e-10 | G128: 4.142325691e-10
A129: 53.5 | B129: 7.95310609e-06 | E129: 710.5 | F129: 4.190581015e-10 | G129: 4.190581015e-10
A130: 53.6 | B130: 8.535696858e-06 | E130: 710.6 | F130: 4.239381523e-10 | G130: 4.239381523e-10
A131: 53.7 | B131: 9.158419926e-06 | E131: 710.7 | F131: 4.288733171e-10 | G131: 4.288733171e-10
A132: 53.8 | B132: 9.823844626e-06 | E132: 710.8 | F132: 4.33864198e-10 | G132: 4.33864198e-10
A133: 53.9 | B133: 1.053469048e-05 | E133: 710.9 | F133: 4.38911403e-10 | G133: 4.38911403e-10
A134: 54 | B134: 1.129383498e-05 | E134: 711 | F134: 4.440155469e-10 | G134: 4.440155469e-10
A135: 54.1 | B135: 1.210432172e-05 | E135: 711.1 | F135: 4.491772506e-10 | G135: 4.491772506e-10
A136: 54.2 | B136: 1.296936883e-05 | E136: 711.2 | F136: 4.543971418e-10 | G136: 4.543971418e-10
A137: 54.3 | B137: 1.389237785e-05 | E137: 711.3 | F137: 4.596758547e-10 | G137: 4.596758547e-10
A138: 54.4 | B138: 1.487694286e-05 | E138: 711.4 | F138: 4.650140301e-10 | G138: 4.650140301e-10
A139: 54.5 | B139: 1.592686013e-05 | E139: 711.5 | F139: 4.704123156e-10 | G139: 4.704123156e-10
A140: 54.6 | B140: 1.704613798e-05 | E140: 711.6 | F140: 4.758713656e-10 | G140: 4.758713656e-10
A141: 54.7 | B141: 1.823900724e-05 | E141: 711.7 | F141: 4.813918413e-10 | G141: 4.813918413e-10
A142: 54.8 | B142: 1.950993195e-05 | E142: 711.8 | F142: 4.869744109e-10 | G142: 4.869744109e-10
A143: 54.9 | B143: 2.086362058e-05 | E143: 711.9 | F143: 4.926197495e-10 | G143: 4.926197495e-10
A144: 55 | B144: 2.230503763e-05 | E144: 712 | F144: 4.983285395e-10 | G144: 4.983285395e-10
A145: 55.1 | B145: 2.383941572e-05 | E145: 712.1 | F145: 5.041014701e-10 | G145: 5.041014701e-10
A146: 55.2 | B146: 2.547226806e-05 | E146: 712.2 | F146: 5.099392379e-10 | G146: 5.099392379e-10
A147: 55.3 | B147: 2.720940146e-05 | E147: 712.3 | F147: 5.158425469e-10 | G147: 5.158425469e-10
A148: 55.4 | B148: 2.905692974e-05 | E148: 712.4 | F148: 5.218121083e-10 | G148: 5.218121083e-10
A149: 55.5 | B149: 3.102128763e-05 | E149: 712.5 | F149: 5.278486407e-10 | G149: 5.278486407e-10
A150: 55.6 | B150: 3.310924523e-05 | E150: 712.6 | F150: 5.339528704e-10 | G150: 5.339528704e-10
A151: 55.7 | B151: 3.532792284e-05 | E151: 712.7 | F151: 5.40125531e-10 | G151: 5.40125531e-10
A152: 55.8 | B152: 3.76848064e-05 | E152: 712.8 | F152: 5.46367364e-10 | G152: 5.46367364e-10
A153: 55.9 | B153: =_xlfn.NORM.DIST(A153,$B$4,$B$5,0) -> 4.018776337e-05 | C153: =IF(_xlfn.NORM.INV(1-$B$6,$B$4,$B$5)<=A153,B153,"") ->  | E153: 712.9 | F153: =_xlfn.NORM.DIST(E153,$B$14,$B$15,0) -> 5.526791185e-10 | G153: =IF(_xlfn.NORM.INV($B$16,$B$14,$B$15)>=E153,F153,"") -> 5.526791185e-10
A154: 56 | B154: 4.284505918e-05 | E154: 713 | F154: 5.590615516e-10 | G154: 5.590615516e-10
A155: 56.1 | B155: 4.566537414e-05 | E155: 713.1 | F155: 5.65515428e-10 | G155: 5.65515428e-10
A156: 56.2 | B156: 4.865782097e-05 | E156: 713.2 | F156: 5.720415207e-10 | G156: 5.720415207e-10
A157: 56.3 | B157: 5.183196272e-05 | E157: 713.3 | F157: 5.786406103e-10 | G157: 5.786406103e-10
A158: 56.4 | B158: 5.519783142e-05 | E158: 713.4 | F158: 5.853134861e-10 | G158: 5.853134861e-10
A159: 56.5 | B159: 5.876594706e-05 | E159: 713.5 | F159: 5.92060945e-10 | G159: 5.92060945e-10
A160: 56.6 | B160: 6.254733729e-05 | E160: 713.6 | F160: 5.988837928e-10 | G160: 5.988837928e-10
A161: 56.7 | B161: 6.655355753e-05 | E161: 713.7 | F161: 6.057828432e-10 | G161: 6.057828432e-10
A162: 56.8 | B162: 7.079671176e-05 | E162: 713.8 | F162: 6.127589186e-10 | G162: 6.127589186e-10
A163: 56.9 | B163: 7.528947368e-05 | E163: 713.9 | F163: 6.198128498e-10 | G163: 6.198128498e-10
A164: 57 | B164: 8.00451086e-05 | E164: 714 | F164: 6.269454764e-10 | G164: 6.269454764e-10
A165: 57.1 | B165: 8.507749572e-05 | E165: 714.1 | F165: 6.341576465e-10 | G165: 6.341576465e-10
A166: 57.2 | B166: 9.040115103e-05 | E166: 714.2 | F166: 6.414502172e-10 | G166: 6.414502172e-10
A167: 57.3 | B167: 9.60312507e-05 | E167: 714.3 | F167: 6.488240544e-10 | G167: 6.488240544e-10
A168: 57.4 | B168: 0.000101983655 | E168: 714.4 | F168: 6.562800329e-10 | G168: 6.562800329e-10
A169: 57.5 | B169: 0.0001082749328 | E169: 714.5 | F169: 6.638190367e-10 | G169: 6.638190367e-10
A170: 57.6 | B170: 0.0001149223864 | E170: 714.6 | F170: 6.714419589e-10 | G170: 6.714419589e-10
A171: 57.7 | B171: 0.0001219440771 | E171: 714.7 | F171: 6.791497019e-10 | G171: 6.791497019e-10
A172: 57.8 | B172: 0.000129358851 | E172: 714.8 | F172: 6.869431772e-10 | G172: 6.869431772e-10
A173: 57.9 | B173: 0.0001371863655 | E173: 714.9 | F173: 6.94823306e-10 | G173: 6.94823306e-10
A174: 58 | B174: 0.0001454471158 | E174: 715 | F174: 7.02791019e-10 | G174: 7.02791019e-10
A175: 58.1 | B175: 0.0001541624629 | E175: 715.1 | F175: 7.108472563e-10 | G175: 7.108472563e-10
A176: 58.2 | B176: 0.0001633546602 | E176: 715.2 | F176: 7.189929679e-10 | G176: 7.189929679e-10
A177: 58.3 | B177: 0.0001730468826 | E177: 715.3 | F177: 7.272291136e-10 | G177: 7.272291136e-10
A178: 58.4 | B178: 0.0001832632542 | E178: 715.4 | F178: 7.355566631e-10 | G178: 7.355566631e-10
A179: 58.5 | B179: 0.0001940288773 | E179: 715.5 | F179: 7.43976596e-10 | G179: 7.43976596e-10
A180: 58.6 | B180: 0.0002053698614 | E180: 715.6 | F180: 7.52489902e-10 | G180: 7.52489902e-10
A181: 58.7 | B181: 0.0002173133526 | E181: 715.7 | F181: 7.610975812e-10 | G181: 7.610975812e-10
A182: 58.8 | B182: 0.0002298875631 | E182: 715.8 | F182: 7.698006439e-10 | G182: 7.698006439e-10
A183: 58.9 | B183: 0.0002431218008 | E183: 715.9 | F183: 7.786001107e-10 | G183: 7.786001107e-10
A184: 59 | B184: 0.0002570464994 | E184: 716 | F184: 7.874970127e-10 | G184: 7.874970127e-10
A185: 59.1 | B185: 0.0002716932484 | E185: 716.1 | F185: 7.964923918e-10 | G185: 7.964923918e-10
A186: 59.2 | B186: 0.0002870948232 | E186: 716.2 | F186: 8.055873005e-10 | G186: 8.055873005e-10
A187: 59.3 | B187: 0.0003032852151 | E187: 716.3 | F187: 8.147828022e-10 | G187: 8.147828022e-10
A188: 59.4 | B188: 0.0003202996616 | E188: 716.4 | F188: 8.240799709e-10 | G188: 8.240799709e-10
A189: 59.5 | B189: 0.0003381746762 | E189: 716.5 | F189: 8.334798921e-10 | G189: 8.334798921e-10
A190: 59.6 | B190: 0.0003569480787 | E190: 716.6 | F190: 8.429836622e-10 | G190: 8.429836622e-10
A191: 59.7 | B191: 0.0003766590243 | E191: 716.7 | F191: 8.525923888e-10 | G191: 8.525923888e-10
A192: 59.8 | B192: 0.0003973480336 | E192: 716.8 | F192: 8.62307191e-10 | G192: 8.62307191e-10
A193: 59.9 | B193: 0.0004190570214 | E193: 716.9 | F193: 8.721291993e-10 | G193: 8.721291993e-10
A194: 60 | B194: 0.0004418293257 | E194: 717 | F194: 8.820595558e-10 | G194: 8.820595558e-10
A195: 60.1 | B195: 0.0004657097358 | E195: 717.1 | F195: 8.920994142e-10 | G195: 8.920994142e-10
A196: 60.2 | B196: 0.0004907445201 | E196: 717.2 | F196: 9.022499402e-10 | G196: 9.022499402e-10
A197: 60.3 | B197: 0.0005169814532 | E197: 717.3 | F197: 9.125123114e-10 | G197: 9.125123114e-10
A198: 60.4 | B198: 0.0005444698427 | E198: 717.4 | F198: 9.228877172e-10 | G198: 9.228877172e-10
A199: 60.5 | B199: 0.0005732605545 | E199: 717.5 | F199: 9.333773595e-10 | G199: 9.333773595e-10
A200: 60.6 | B200: 0.000603406038 | E200: 717.6 | F200: 9.439824523e-10 | G200: 9.439824523e-10
A201: 60.7 | B201: 0.0006349603497 | E201: 717.7 | F201: 9.54704222e-10 | G201: 9.54704222e-10
A202: 60.8 | B202: 0.0006679791764 | E202: 717.8 | F202: 9.655439075e-10 | G202: 9.655439075e-10
A203: 60.9 | B203: 0.0007025198567 | E203: 717.9 | F203: 9.765027605e-10 | G203: 9.765027605e-10
A204: 61 | B204: 0.000738641402 | E204: 718 | F204: 9.875820454e-10 | G204: 9.875820454e-10
A205: 61.1 | B205: 0.000776404515 | E205: 718.1 | F205: 9.987830394e-10 | G205: 9.987830394e-10
A206: 61.2 | B206: 0.0008158716084 | E206: 718.2 | F206: 1.010107033e-09 | G206: 1.010107033e-09
... 5818 more rows

Sheet Find X (an)
A1: ="If the professor grades with a bell curve and assigns a grade of A for the top "&TEXT(Y6,"0.00%")&" of the scores, what score would you need to get to earn an A if the mean (from past data) was "&Y4&" and the standard deviation (from past data) was "&Y5&"?" -> If the professor grades with a bell curve and assigns a grade of A for the top 5.00% of the scores, what score would you need to get to earn an A if the mean (from past data) was 79 and the standard deviation (from past data) was 6?
A3: What is x? | B3: Scores | Y3: Data For Questions
A4: Mean | B4: 79 | Y4: 79
A5: SD | B5: 6 | Y5: 6
A6: Probability | B6: 0.05 | E6: z = (x-mu)/sigma | Y6: 0.05
A7: X = Score Needed | B7: =_xlfn.NORM.INV(1-B6,B4,B5) -> 88.86912176 | E7: =>
A8: z | B8: =_xlfn.NORM.S.INV(1-B6) -> 1.644853627 | E8: x = z*sigma+mu
A9: =A7 -> X = Score Needed | B9: =B4+B5*B8 -> 88.86912176 | E9: =B4+B5*B8
A11: ="From past population data that has a normal shaped distribution, if the employees on average produced "&Y14&" boomerangs per day with a standard deviation of "&Y15&" how many boomerangs would have to be produced for the day's production level to be among the slowest "&TEXT(Y16,"0.00%")&" of days?" -> From past population data that has a normal shaped distribution, if the employees on average produced 1000 boomerangs per day with a standard deviation of 50 how many boomerangs would have to be produced for the day's production level to be among the slowest 10.00% of days?
A13: What is x? | B13: # units produced | Y13: Data For Questions
A14: Mean | B14: 1000 | Y14: 1000
A15: SD | B15: 50 | Y15: 50
A16: Probability | B16: 0.1 | E16: z = (x-mu)/sigma | Y16: 0.1
A17: X = Units Needed | B17: =_xlfn.NORM.INV(B16,B14,B15) -> 935.9224217 | E17: =>
A18: z | B18: =_xlfn.NORM.S.INV(B16) -> -1.281551566 | E18: x = z*sigma+mu
A19: =A17 -> X = Units Needed | B19: =B14+B15*B18 -> 935.9224217 | E19: =B14+B18*B15
A23: Test Scores | B23: f(x) | C23: Above 5% | E23: Test Scores | F23: f(x) | G23: Below 10%
A24: 43 | B24: =_xlfn.NORM.DIST(A24,$B$4,$B$5,0) -> 1.012647142e-09 | C24: =IF(_xlfn.NORM.INV(1-$B$6,$B$4,$B$5)<=A24,B24,"") ->  | E24: 700 | F24: =_xlfn.NORM.DIST(E24,$B$14,$B$15,0) -> 1.21517657e-10 | G24: =IF(_xlfn.NORM.INV($B$16,$B$14,$B$15)>=E24,F24,"") -> 1.21517657e-10
A25: 43.1 | B25: =_xlfn.NORM.DIST(A25,$B$4,$B$5,0) -> 1.118992745e-09 | C25: =IF(_xlfn.NORM.INV(1-$B$6,$B$4,$B$5)<=A25,B25,"") ->  | E25: 700.1 | F25: =_xlfn.NORM.DIST(E25,$B$14,$B$15,0) -> 1.229844073e-10 | G25: =IF(_xlfn.NORM.INV($B$16,$B$14,$B$15)>=E25,F25,"") -> 1.229844073e-10
A26: 43.2 | B26: 1.236163064e-09 | E26: 700.2 | F26: 1.244683638e-10 | G26: 1.244683638e-10
A27: 43.3 | B27: 1.365223067e-09 | E27: 700.3 | F27: 1.259697221e-10 | G27: 1.259697221e-10
A28: 43.4 | B28: 1.50733865e-09 | E28: 700.4 | F28: 1.274886801e-10 | G28: 1.274886801e-10
A29: 43.5 | B29: 1.663785807e-09 | E29: 700.5 | F29: 1.290254378e-10 | G29: 1.290254378e-10
A30: 43.6 | B30: 1.835960604e-09 | E30: 700.6 | F30: 1.305801974e-10 | G30: 1.305801974e-10
A31: 43.7 | B31: 2.025390009e-09 | E31: 700.7 | F31: 1.321531632e-10 | G31: 1.321531632e-10
A32: 43.8 | B32: 2.233743652e-09 | E32: 700.8 | F32: 1.33744542e-10 | G32: 1.33744542e-10
A33: 43.9 | B33: 2.462846598e-09 | E33: 700.9 | F33: 1.353545426e-10 | G33: 1.353545426e-10
A34: 44 | B34: 2.714693201e-09 | E34: 701 | F34: 1.369833763e-10 | G34: 1.369833763e-10
A35: 44.1 | B35: 2.991462143e-09 | E35: 701.1 | F35: 1.386312565e-10 | G35: 1.386312565e-10
A36: 44.2 | B36: 3.295532734e-09 | E36: 701.2 | F36: 1.402983992e-10 | G36: 1.402983992e-10
A37: 44.3 | B37: 3.629502593e-09 | E37: 701.3 | F37: 1.419850226e-10 | G37: 1.419850226e-10
A38: 44.4 | B38: 3.996206804e-09 | E38: 701.4 | F38: 1.436913473e-10 | G38: 1.436913473e-10
A39: 44.5 | B39: 4.398738673e-09 | E39: 701.5 | F39: 1.454175962e-10 | G39: 1.454175962e-10
A40: 44.6 | B40: 4.840472205e-09 | E40: 701.6 | F40: 1.47163995e-10 | G40: 1.47163995e-10
A41: 44.7 | B41: 5.325086447e-09 | E41: 701.7 | F41: 1.489307715e-10 | G41: 1.489307715e-10
A42: 44.8 | B42: 5.856591825e-09 | E42: 701.8 | F42: 1.507181562e-10 | G42: 1.507181562e-10
A43: 44.9 | B43: 6.439358643e-09 | E43: 701.9 | F43: 1.525263819e-10 | G43: 1.525263819e-10
A44: 45 | B44: 7.078147911e-09 | E44: 702 | F44: 1.543556843e-10 | G44: 1.543556843e-10
A45: 45.1 | B45: 7.778144663e-09 | E45: 702.1 | F45: 1.562063012e-10 | G45: 1.562063012e-10
A46: 45.2 | B46: 8.544993982e-09 | E46: 702.2 | F46: 1.580784735e-10 | G46: 1.580784735e-10
A47: 45.3 | B47: 9.384839914e-09 | E47: 702.3 | F47: 1.599724443e-10 | G47: 1.599724443e-10
A48: 45.4 | B48: 1.03043675e-08 | E48: 702.4 | F48: 1.618884596e-10 | G48: 1.618884596e-10
A49: 45.5 | B49: 1.131084816e-08 | E49: 702.5 | F49: 1.638267681e-10 | G49: 1.638267681e-10
A50: 45.6 | B50: 1.241218865e-08 | E50: 702.6 | F50: 1.657876209e-10 | G50: 1.657876209e-10
A51: 45.7 | B51: 1.361698396e-08 | E51: 702.7 | F51: 1.677712723e-10 | G51: 1.677712723e-10
A52: 45.8 | B52: 1.493457427e-08 | E52: 702.8 | F52: 1.697779789e-10 | G52: 1.697779789e-10
A53: 45.9 | B53: 1.63751064e-08 | E53: 702.9 | F53: 1.718080005e-10 | G53: 1.718080005e-10
A54: 46 | B54: 1.794960007e-08 | E54: 703 | F54: 1.738615995e-10 | G54: 1.738615995e-10
A55: 46.1 | B55: 1.967001927e-08 | E55: 703.1 | F55: 1.75939041e-10 | G55: 1.75939041e-10
A56: 46.2 | B56: 2.154934911e-08 | E56: 703.2 | F56: 1.780405934e-10 | G56: 1.780405934e-10
A57: 46.3 | B57: 2.360167855e-08 | E57: 703.3 | F57: 1.801665277e-10 | G57: 1.801665277e-10
A58: 46.4 | B58: 2.584228953e-08 | E58: 703.4 | F58: 1.82317118e-10 | G58: 1.82317118e-10
A59: 46.5 | B59: 2.828775274e-08 | E59: 703.5 | F59: 1.844926411e-10 | G59: 1.844926411e-10
A60: 46.6 | B60: 3.095603074e-08 | E60: 703.6 | F60: 1.866933773e-10 | G60: 1.866933773e-10
A61: 46.7 | B61: 3.386658874e-08 | E61: 703.7 | F61: 1.889196094e-10 | G61: 1.889196094e-10
A62: 46.8 | B62: 3.704051372e-08 | E62: 703.8 | F62: 1.911716236e-10 | G62: 1.911716236e-10
A63: 46.9 | B63: 4.050064235e-08 | E63: 703.9 | F63: 1.934497091e-10 | G63: 1.934497091e-10
A64: 47 | B64: 4.427169848e-08 | E64: 704 | F64: 1.957541582e-10 | G64: 1.957541582e-10
A65: 47.1 | B65: 4.83804406e-08 | E65: 704.1 | F65: 1.980852666e-10 | G65: 1.980852666e-10
A66: 47.2 | B66: 5.285582028e-08 | E66: 704.2 | F66: 2.004433328e-10 | G66: 2.004433328e-10
A67: 47.3 | B67: 5.772915195e-08 | E67: 704.3 | F67: 2.028286588e-10 | G67: 2.028286588e-10
A68: 47.4 | B68: 6.303429514e-08 | E68: 704.4 | F68: 2.052415498e-10 | G68: 2.052415498e-10
A69: 47.5 | B69: 6.880784981e-08 | E69: 704.5 | F69: 2.076823144e-10 | G69: 2.076823144e-10
A70: 47.6 | B70: 7.508936561e-08 | E70: 704.6 | F70: 2.101512642e-10 | G70: 2.101512642e-10
A71: 47.7 | B71: 8.192156613e-08 | E71: 704.7 | F71: 2.126487147e-10 | G71: 2.126487147e-10
A72: 47.8 | B72: 8.935058908e-08 | E72: 704.8 | F72: 2.151749842e-10 | G72: 2.151749842e-10
A73: 47.9 | B73: 9.742624325e-08 | E73: 704.9 | F73: 2.17730395e-10 | G73: 2.17730395e-10
A74: 48 | B74: 1.062022837e-07 | E74: 705 | F74: 2.203152725e-10 | G74: 2.203152725e-10
A75: 48.1 | B75: 1.157367059e-07 | E75: 705.1 | F75: 2.229299457e-10 | G75: 2.229299457e-10
A76: 48.2 | B76: 1.260920605e-07 | E76: 705.2 | F76: 2.255747472e-10 | G76: 2.255747472e-10
A77: 48.3 | B77: 1.373357896e-07 | E77: 705.3 | F77: 2.282500132e-10 | G77: 2.282500132e-10
A78: 48.4 | B78: 1.49540586e-07 | E78: 705.4 | F78: 2.309560834e-10 | G78: 2.309560834e-10
A79: 48.5 | B79: 1.627847776e-07 | E79: 705.5 | F79: 2.336933013e-10 | G79: 2.336933013e-10
A80: 48.6 | B80: 1.771527366e-07 | E80: 705.6 | F80: 2.364620139e-10 | G80: 2.364620139e-10
A81: 48.7 | B81: 1.927353173e-07 | E81: 705.7 | F81: 2.392625722e-10 | G81: 2.392625722e-10
A82: 48.8 | B82: 2.096303229e-07 | E82: 705.8 | F82: 2.420953307e-10 | G82: 2.420953307e-10
A83: 48.9 | B83: 2.279430033e-07 | E83: 705.9 | F83: 2.44960648e-10 | G83: 2.44960648e-10
A84: 49 | B84: 2.477865858e-07 | E84: 706 | F84: 2.478588863e-10 | G84: 2.478588863e-10
A85: 49.1 | B85: 2.692828405e-07 | E85: 706.1 | F85: 2.507904117e-10 | G85: 2.507904117e-10
A86: 49.2 | B86: 2.925626833e-07 | E86: 706.2 | F86: 2.537555945e-10 | G86: 2.537555945e-10
A87: 49.3 | B87: 3.177668172e-07 | E87: 706.3 | F87: 2.567548086e-10 | G87: 2.567548086e-10
A88: 49.4 | B88: 3.450464155e-07 | E88: 706.4 | F88: 2.597884322e-10 | G88: 2.597884322e-10
A89: 49.5 | B89: =_xlfn.NORM.DIST(A89,$B$4,$B$5,0) -> 3.745638487e-07 | C89: =IF(_xlfn.NORM.INV(1-$B$6,$B$4,$B$5)<=A89,B89,"") ->  | E89: 706.5 | F89: =_xlfn.NORM.DIST(E89,$B$14,$B$15,0) -> 2.628568473e-10 | G89: =IF(_xlfn.NORM.INV($B$16,$B$14,$B$15)>=E89,F89,"") -> 2.628568473e-10
A90: 49.6 | B90: 4.064934576e-07 | E90: 706.6 | F90: 2.659604404e-10 | G90: 2.659604404e-10
A91: 49.7 | B91: 4.410223755e-07 | E91: 706.7 | F91: 2.690996016e-10 | G91: 2.690996016e-10
A92: 49.8 | B92: 4.783514016e-07 | E92: 706.8 | F92: 2.722747256e-10 | G92: 2.722747256e-10
A93: 49.9 | B93: 5.186959299e-07 | E93: 706.9 | F93: 2.754862112e-10 | G93: 2.754862112e-10
A94: 50 | B94: 5.622869344e-07 | E94: 707 | F94: 2.787344614e-10 | G94: 2.787344614e-10
A95: 50.1 | B95: 6.093720164e-07 | E95: 707.1 | F95: 2.820198835e-10 | G95: 2.820198835e-10
A96: 50.2 | B96: 6.602165152e-07 | E96: 707.2 | F96: 2.853428893e-10 | G96: 2.853428893e-10
A97: 50.3 | B97: 7.151046858e-07 | E97: 707.3 | F97: 2.887038948e-10 | G97: 2.887038948e-10
A98: 50.4 | B98: 7.743409488e-07 | E98: 707.4 | F98: 2.921033206e-10 | G98: 2.921033206e-10
A99: 50.5 | B99: 8.382512148e-07 | E99: 707.5 | F99: 2.955415917e-10 | G99: 2.955415917e-10
A100: 50.6 | B100: 9.071842868e-07 | E100: 707.6 | F100: 2.990191378e-10 | G100: 2.990191378e-10
A101: 50.7 | B101: 9.815133471e-07 | E101: 707.7 | F101: 3.025363929e-10 | G101: 3.025363929e-10
A102: 50.8 | B102: 1.06163753e-06 | E102: 707.8 | F102: 3.060937958e-10 | G102: 3.060937958e-10
A103: 50.9 | B103: 1.147983586e-06 | E103: 707.9 | F103: 3.096917901e-10 | G103: 3.096917901e-10
A104: 51 | B104: 1.241007645e-06 | E104: 708 | F104: 3.133308238e-10 | G104: 3.133308238e-10
A105: 51.1 | B105: 1.341197076e-06 | E105: 708.1 | F105: 3.170113499e-10 | G105: 3.170113499e-10
A106: 51.2 | B106: 1.449072457e-06 | E106: 708.2 | F106: 3.207338262e-10 | G106: 3.207338262e-10
A107: 51.3 | B107: 1.565189652e-06 | E107: 708.3 | F107: 3.244987154e-10 | G107: 3.244987154e-10
A108: 51.4 | B108: 1.690142011e-06 | E108: 708.4 | F108: 3.283064849e-10 | G108: 3.283064849e-10
A109: 51.5 | B109: 1.824562684e-06 | E109: 708.5 | F109: 3.321576074e-10 | G109: 3.321576074e-10
A110: 51.6 | B110: 1.969127071e-06 | E110: 708.6 | F110: 3.360525603e-10 | G110: 3.360525603e-10
A111: 51.7 | B111: 2.124555397e-06 | E111: 708.7 | F111: 3.399918264e-10 | G111: 3.399918264e-10
A112: 51.8 | B112: 2.291615437e-06 | E112: 708.8 | F112: 3.439758933e-10 | G112: 3.439758933e-10
A113: 51.9 | B113: 2.471125381e-06 | E113: 708.9 | F113: 3.48005254e-10 | G113: 3.48005254e-10
A114: 52 | B114: 2.663956851e-06 | E114: 709 | F114: 3.520804066e-10 | G114: 3.520804066e-10
A115: 52.1 | B115: 2.871038086e-06 | E115: 709.1 | F115: 3.562018545e-10 | G115: 3.562018545e-10
A116: 52.2 | B116: 3.093357282e-06 | E116: 709.2 | F116: 3.603701066e-10 | G116: 3.603701066e-10
A117: 52.3 | B117: 3.331966118e-06 | E117: 709.3 | F117: 3.64585677e-10 | G117: 3.64585677e-10
A118: 52.4 | B118: 3.587983456e-06 | E118: 709.4 | F118: 3.688490852e-10 | G118: 3.688490852e-10
A119: 52.5 | B119: 3.862599233e-06 | E119: 709.5 | F119: 3.731608565e-10 | G119: 3.731608565e-10
A120: 52.6 | B120: 4.157078548e-06 | E120: 709.6 | F120: 3.775215214e-10 | G120: 3.775215214e-10
A121: 52.7 | B121: 4.472765959e-06 | E121: 709.7 | F121: 3.819316162e-10 | G121: 3.819316162e-10
A122: 52.8 | B122: 4.811089985e-06 | E122: 709.8 | F122: 3.863916828e-10 | G122: 3.863916828e-10
A123: 52.9 | B123: 5.173567843e-06 | E123: 709.9 | F123: 3.90902269e-10 | G123: 3.90902269e-10
A124: 53 | B124: 5.561810399e-06 | E124: 710 | F124: 3.954639281e-10 | G124: 3.954639281e-10
A125: 53.1 | B125: 5.977527375e-06 | E125: 710.1 | F125: 4.000772195e-10 | G125: 4.000772195e-10
A126: 53.2 | B126: 6.42253279e-06 | E126: 710.2 | F126: 4.047427084e-10 | G126: 4.047427084e-10
A127: 53.3 | B127: 6.898750673e-06 | E127: 710.3 | F127: 4.094609659e-10 | G127: 4.094609659e-10
A128: 53.4 | B128: 7.408221028e-06 | E128: 710.4 | F128: 4.142325691e-10 | G128: 4.142325691e-10
A129: 53.5 | B129: 7.95310609e-06 | E129: 710.5 | F129: 4.190581015e-10 | G129: 4.190581015e-10
A130: 53.6 | B130: 8.535696858e-06 | E130: 710.6 | F130: 4.239381523e-10 | G130: 4.239381523e-10
A131: 53.7 | B131: 9.158419926e-06 | E131: 710.7 | F131: 4.288733171e-10 | G131: 4.288733171e-10
A132: 53.8 | B132: 9.823844626e-06 | E132: 710.8 | F132: 4.33864198e-10 | G132: 4.33864198e-10
A133: 53.9 | B133: 1.053469048e-05 | E133: 710.9 | F133: 4.38911403e-10 | G133: 4.38911403e-10
A134: 54 | B134: 1.129383498e-05 | E134: 711 | F134: 4.440155469e-10 | G134: 4.440155469e-10
A135: 54.1 | B135: 1.210432172e-05 | E135: 711.1 | F135: 4.491772506e-10 | G135: 4.491772506e-10
A136: 54.2 | B136: 1.296936883e-05 | E136: 711.2 | F136: 4.543971418e-10 | G136: 4.543971418e-10
A137: 54.3 | B137: 1.389237785e-05 | E137: 711.3 | F137: 4.596758547e-10 | G137: 4.596758547e-10
A138: 54.4 | B138: 1.487694286e-05 | E138: 711.4 | F138: 4.650140301e-10 | G138: 4.650140301e-10
A139: 54.5 | B139: 1.592686013e-05 | E139: 711.5 | F139: 4.704123156e-10 | G139: 4.704123156e-10
A140: 54.6 | B140: 1.704613798e-05 | E140: 711.6 | F140: 4.758713656e-10 | G140: 4.758713656e-10
A141: 54.7 | B141: 1.823900724e-05 | E141: 711.7 | F141: 4.813918413e-10 | G141: 4.813918413e-10
A142: 54.8 | B142: 1.950993195e-05 | E142: 711.8 | F142: 4.869744109e-10 | G142: 4.869744109e-10
A143: 54.9 | B143: 2.086362058e-05 | E143: 711.9 | F143: 4.926197495e-10 | G143: 4.926197495e-10
A144: 55 | B144: 2.230503763e-05 | E144: 712 | F144: 4.983285395e-10 | G144: 4.983285395e-10
A145: 55.1 | B145: 2.383941572e-05 | E145: 712.1 | F145: 5.041014701e-10 | G145: 5.041014701e-10
A146: 55.2 | B146: 2.547226806e-05 | E146: 712.2 | F146: 5.099392379e-10 | G146: 5.099392379e-10
A147: 55.3 | B147: 2.720940146e-05 | E147: 712.3 | F147: 5.158425469e-10 | G147: 5.158425469e-10
A148: 55.4 | B148: 2.905692974e-05 | E148: 712.4 | F148: 5.218121083e-10 | G148: 5.218121083e-10
A149: 55.5 | B149: 3.102128763e-05 | E149: 712.5 | F149: 5.278486407e-10 | G149: 5.278486407e-10
A150: 55.6 | B150: 3.310924523e-05 | E150: 712.6 | F150: 5.339528704e-10 | G150: 5.339528704e-10
A151: 55.7 | B151: 3.532792284e-05 | E151: 712.7 | F151: 5.40125531e-10 | G151: 5.40125531e-10
A152: 55.8 | B152: 3.76848064e-05 | E152: 712.8 | F152: 5.46367364e-10 | G152: 5.46367364e-10
A153: 55.9 | B153: =_xlfn.NORM.DIST(A153,$B$4,$B$5,0) -> 4.018776337e-05 | C153: =IF(_xlfn.NORM.INV(1-$B$6,$B$4,$B$5)<=A153,B153,"") ->  | E153: 712.9 | F153: =_xlfn.NORM.DIST(E153,$B$14,$B$15,0) -> 5.526791185e-10 | G153: =IF(_xlfn.NORM.INV($B$16,$B$14,$B$15)>=E153,F153,"") -> 5.526791185e-10
A154: 56 | B154: 4.284505918e-05 | E154: 713 | F154: 5.590615516e-10 | G154: 5.590615516e-10
A155: 56.1 | B155: 4.566537414e-05 | E155: 713.1 | F155: 5.65515428e-10 | G155: 5.65515428e-10
A156: 56.2 | B156: 4.865782097e-05 | E156: 713.2 | F156: 5.720415207e-10 | G156: 5.720415207e-10
A157: 56.3 | B157: 5.183196272e-05 | E157: 713.3 | F157: 5.786406103e-10 | G157: 5.786406103e-10
A158: 56.4 | B158: 5.519783142e-05 | E158: 713.4 | F158: 5.853134861e-10 | G158: 5.853134861e-10
A159: 56.5 | B159: 5.876594706e-05 | E159: 713.5 | F159: 5.92060945e-10 | G159: 5.92060945e-10
A160: 56.6 | B160: 6.254733729e-05 | E160: 713.6 | F160: 5.988837928e-10 | G160: 5.988837928e-10
A161: 56.7 | B161: 6.655355753e-05 | E161: 713.7 | F161: 6.057828432e-10 | G161: 6.057828432e-10
A162: 56.8 | B162: 7.079671176e-05 | E162: 713.8 | F162: 6.127589186e-10 | G162: 6.127589186e-10
A163: 56.9 | B163: 7.528947368e-05 | E163: 713.9 | F163: 6.198128498e-10 | G163: 6.198128498e-10
A164: 57 | B164: 8.00451086e-05 | E164: 714 | F164: 6.269454764e-10 | G164: 6.269454764e-10
A165: 57.1 | B165: 8.507749572e-05 | E165: 714.1 | F165: 6.341576465e-10 | G165: 6.341576465e-10
A166: 57.2 | B166: 9.040115103e-05 | E166: 714.2 | F166: 6.414502172e-10 | G166: 6.414502172e-10
A167: 57.3 | B167: 9.60312507e-05 | E167: 714.3 | F167: 6.488240544e-10 | G167: 6.488240544e-10
A168: 57.4 | B168: 0.000101983655 | E168: 714.4 | F168: 6.562800329e-10 | G168: 6.562800329e-10
A169: 57.5 | B169: 0.0001082749328 | E169: 714.5 | F169: 6.638190367e-10 | G169: 6.638190367e-10
A170: 57.6 | B170: 0.0001149223864 | E170: 714.6 | F170: 6.714419589e-10 | G170: 6.714419589e-10
A171: 57.7 | B171: 0.0001219440771 | E171: 714.7 | F171: 6.791497019e-10 | G171: 6.791497019e-10
A172: 57.8 | B172: 0.000129358851 | E172: 714.8 | F172: 6.869431772e-10 | G172: 6.869431772e-10
A173: 57.9 | B173: 0.0001371863655 | E173: 714.9 | F173: 6.94823306e-10 | G173: 6.94823306e-10
A174: 58 | B174: 0.0001454471158 | E174: 715 | F174: 7.02791019e-10 | G174: 7.02791019e-10
A175: 58.1 | B175: 0.0001541624629 | E175: 715.1 | F175: 7.108472563e-10 | G175: 7.108472563e-10
A176: 58.2 | B176: 0.0001633546602 | E176: 715.2 | F176: 7.189929679e-10 | G176: 7.189929679e-10
A177: 58.3 | B177: 0.0001730468826 | E177: 715.3 | F177: 7.272291136e-10 | G177: 7.272291136e-10
A178: 58.4 | B178: 0.0001832632542 | E178: 715.4 | F178: 7.355566631e-10 | G178: 7.355566631e-10
A179: 58.5 | B179: 0.0001940288773 | E179: 715.5 | F179: 7.43976596e-10 | G179: 7.43976596e-10
A180: 58.6 | B180: 0.0002053698614 | E180: 715.6 | F180: 7.52489902e-10 | G180: 7.52489902e-10
A181: 58.7 | B181: 0.0002173133526 | E181: 715.7 | F181: 7.610975812e-10 | G181: 7.610975812e-10
A182: 58.8 | B182: 0.0002298875631 | E182: 715.8 | F182: 7.698006439e-10 | G182: 7.698006439e-10
A183: 58.9 | B183: 0.0002431218008 | E183: 715.9 | F183: 7.786001107e-10 | G183: 7.786001107e-10
A184: 59 | B184: 0.0002570464994 | E184: 716 | F184: 7.874970127e-10 | G184: 7.874970127e-10
A185: 59.1 | B185: 0.0002716932484 | E185: 716.1 | F185: 7.964923918e-10 | G185: 7.964923918e-10
A186: 59.2 | B186: 0.0002870948232 | E186: 716.2 | F186: 8.055873005e-10 | G186: 8.055873005e-10
A187: 59.3 | B187: 0.0003032852151 | E187: 716.3 | F187: 8.147828022e-10 | G187: 8.147828022e-10
A188: 59.4 | B188: 0.0003202996616 | E188: 716.4 | F188: 8.240799709e-10 | G188: 8.240799709e-10
A189: 59.5 | B189: 0.0003381746762 | E189: 716.5 | F189: 8.334798921e-10 | G189: 8.334798921e-10
A190: 59.6 | B190: 0.0003569480787 | E190: 716.6 | F190: 8.429836622e-10 | G190: 8.429836622e-10
A191: 59.7 | B191: 0.0003766590243 | E191: 716.7 | F191: 8.525923888e-10 | G191: 8.525923888e-10
A192: 59.8 | B192: 0.0003973480336 | E192: 716.8 | F192: 8.62307191e-10 | G192: 8.62307191e-10
A193: 59.9 | B193: 0.0004190570214 | E193: 716.9 | F193: 8.721291993e-10 | G193: 8.721291993e-10
A194: 60 | B194: 0.0004418293257 | E194: 717 | F194: 8.820595558e-10 | G194: 8.820595558e-10
A195: 60.1 | B195: 0.0004657097358 | E195: 717.1 | F195: 8.920994142e-10 | G195: 8.920994142e-10
A196: 60.2 | B196: 0.0004907445201 | E196: 717.2 | F196: 9.022499402e-10 | G196: 9.022499402e-10
A197: 60.3 | B197: 0.0005169814532 | E197: 717.3 | F197: 9.125123114e-10 | G197: 9.125123114e-10
A198: 60.4 | B198: 0.0005444698427 | E198: 717.4 | F198: 9.228877172e-10 | G198: 9.228877172e-10
A199: 60.5 | B199: 0.0005732605545 | E199: 717.5 | F199: 9.333773595e-10 | G199: 9.333773595e-10
A200: 60.6 | B200: 0.000603406038 | E200: 717.6 | F200: 9.439824523e-10 | G200: 9.439824523e-10
A201: 60.7 | B201: 0.0006349603497 | E201: 717.7 | F201: 9.54704222e-10 | G201: 9.54704222e-10
A202: 60.8 | B202: 0.0006679791764 | E202: 717.8 | F202: 9.655439075e-10 | G202: 9.655439075e-10
A203: 60.9 | B203: 0.0007025198567 | E203: 717.9 | F203: 9.765027605e-10 | G203: 9.765027605e-10
A204: 61 | B204: 0.000738641402 | E204: 718 | F204: 9.875820454e-10 | G204: 9.875820454e-10
A205: 61.1 | B205: 0.000776404515 | E205: 718.1 | F205: 9.987830394e-10 | G205: 9.987830394e-10
A206: 61.2 | B206: 0.0008158716084 | E206: 718.2 | F206: 1.010107033e-09 | G206: 1.010107033e-09
... 5818 more rows

Sheet Bell(9Ex)
A1: **http://swz.salary.com July, 2011 | I1: =A2 -> USA | J1: f(x) | K1: =A7 -> P(x>=$90,000) = | M1: =A9 -> Seattle, WA | N1: f(x) | O1: =A14 -> P(x<=$75,000) = | Q1: =A16 -> Oakland, CA | R1: f(x) | S1: =A22 -> P($80,000 <= x <= $100,000) =
A2: USA | B2: Pop Data approximately Bell Shaped | I2: 23000 | J2: =_xlfn.NORM.DIST(I2,$B$3,$B$4,0) -> 6.07588285e-13 | K2: =IF(I2>=$B$5,J2,"") ->  | M2: 23000 | N2: =_xlfn.NORM.DIST(M2,$B$10,$B$11,0) -> 2.464917932e-14 | O2: =IF(M2<=$B$12,N2,"") -> 2.464917932e-14 | Q2: 23000 | R2: =_xlfn.NORM.DIST(Q2,$B$17,$B$18,0) -> 2.42686965e-14 | S2: =IF(AND(Q2>=$B$19,Q2<=$B$20),R2,"") -> 
A3: =A2&" Accounting Manager Average Annual Salary" -> USA Accounting Manager Average Annual Salary | B3: 83000 | I3: 23050 | J3: =_xlfn.NORM.DIST(I3,$B$3,$B$4,0) -> 6.260842769e-13 | K3: =IF(I3>=$B$5,J3,"") ->  | M3: 23050 | N3: =_xlfn.NORM.DIST(M3,$B$10,$B$11,0) -> 2.542434871e-14 | O3: =IF(M3<=$B$12,N3,"") -> 2.542434871e-14 | Q3: 23050 | R3: =_xlfn.NORM.DIST(Q3,$B$10,$B$11,0) -> 2.542434871e-14 | S3: =IF(AND(Q3>=$B$19,Q3<=$B$20),R3,"") -> 
A4: Sigma | B4: 10000 | I4: 23100 | J4: 6.451271891e-13 | M4: 23100 | N4: 2.622330105e-14 | O4: 2.622330105e-14 | Q4: 23100 | R4: 2.622330105e-14
A5: x | B5: 90000 | I5: 23150 | J5: 6.647326899e-13 | M5: 23150 | N5: 2.704674691e-14 | O5: 2.704674691e-14 | Q5: 23150 | R5: 2.704674691e-14
A6: Comparative Operator | B6: x>= | I6: 23200 | J6: 6.849168813e-13 | M6: 23200 | N6: 2.789541749e-14 | O6: 2.789541749e-14 | Q6: 23200 | R6: 2.789541749e-14
A7: ="P("&B6&DOLLAR(B5,0)&") = " -> P(x>=$90,000) = | I7: 23250 | J7: 7.056963104e-13 | M7: 23250 | N7: 2.877006519e-14 | O7: 2.877006519e-14 | Q7: 23250 | R7: 2.877006519e-14
I8: 23300 | J8: 7.270879812e-13 | M8: 23300 | N8: 2.967146423e-14 | O8: 2.967146423e-14 | Q8: 23300 | R8: 2.967146423e-14
A9: Seattle, WA | B9: Pop Data approximately Bell Shaped | I9: 23350 | J9: 7.491093666e-13 | M9: 23350 | N9: 3.060041124e-14 | O9: 3.060041124e-14 | Q9: 23350 | R9: 3.060041124e-14
A10: =A9&" Accounting Manager Average Annual Salary" -> Seattle, WA Accounting Manager Average Annual Salary | B10: 91300 | I10: 23400 | J10: 7.717784213e-13 | M10: 23400 | N10: 3.155772589e-14 | O10: 3.155772589e-14 | Q10: 23400 | R10: 3.155772589e-14
A11: Sigma | B11: 10500 | I11: 23450 | J11: 7.951135938e-13 | M11: 23450 | N11: 3.254425156e-14 | O11: 3.254425156e-14 | Q11: 23450 | R11: 3.254425156e-14
A12: x | B12: 75000 | I12: 23500 | J12: 8.191338403e-13 | M12: 23500 | N12: 3.356085596e-14 | O12: 3.356085596e-14 | Q12: 23500 | R12: 3.356085596e-14
A13: Comparative Operator | B13: x<= | I13: 23550 | J13: 8.438586377e-13 | M13: 23550 | N13: 3.460843188e-14 | O13: 3.460843188e-14 | Q13: 23550 | R13: 3.460843188e-14
A14: ="P("&B13&DOLLAR(B12,0)&") = " -> P(x<=$75,000) = | I14: 23600 | J14: 8.693079973e-13 | M14: 23600 | N14: 3.568789779e-14 | O14: 3.568789779e-14 | Q14: 23600 | R14: 3.568789779e-14
I15: 23650 | J15: 8.95502479e-13 | M15: 23650 | N15: 3.680019867e-14 | O15: 3.680019867e-14 | Q15: 23650 | R15: 3.680019867e-14
A16: Oakland, CA | B16: Pop Data approximately Bell Shaped | I16: 23700 | J16: 9.224632057e-13 | M16: 23700 | N16: 3.794630667e-14 | O16: 3.794630667e-14 | Q16: 23700 | R16: 3.794630667e-14
A17: =A16&" Accounting Manager Average Annual Salary" -> Oakland, CA Accounting Manager Average Annual Salary | B17: 94500 | I17: 23750 | J17: 9.502118785e-13 | M17: 23750 | N17: 3.912722189e-14 | O17: 3.912722189e-14 | Q17: 23750 | R17: 3.912722189e-14
A18: Sigma | B18: 11000 | I18: 23800 | J18: 9.787707912e-13 | M18: 23800 | N18: 4.034397316e-14 | O18: 4.034397316e-14 | Q18: 23800 | R18: 4.034397316e-14
A19: Upper x | B19: 80000 | I19: 23850 | J19: 1.008162847e-12 | M19: 23850 | N19: 4.159761885e-14 | O19: 4.159761885e-14 | Q19: 23850 | R19: 4.159761885e-14
A20: Lower x | B20: 100000 | I20: 23900 | J20: 1.038411572e-12 | M20: 23900 | N20: 4.288924768e-14 | O20: 4.288924768e-14 | Q20: 23900 | R20: 4.288924768e-14
A21: Comparative Operator | B21: <= x <= | I21: 23950 | J21: 1.069541135e-12 | M21: 23950 | N21: 4.421997957e-14 | O21: 4.421997957e-14 | Q21: 23950 | R21: 4.421997957e-14
A22: ="P("&DOLLAR(B19,0)&B21&DOLLAR(B20,0)&") = " -> P($80,000 <= x <= $100,000) = | I22: 24000 | J22: 1.101576362e-12 | M22: 24000 | N22: 4.559096647e-14 | O22: 4.559096647e-14 | Q22: 24000 | R22: 4.559096647e-14
I23: 24050 | J23: 1.134542755e-12 | M23: 24050 | N23: 4.700339331e-14 | O23: 4.700339331e-14 | Q23: 24050 | R23: 4.700339331e-14
A24: Frozen Corn Bag Filling Machine weight follows a normal distribution | I24: 24100 | J24: 1.168466506e-12 | M24: 24100 | N24: 4.845847887e-14 | O24: 4.845847887e-14 | Q24: 24100 | R24: 4.845847887e-14
A25: Mean weight of package | B25: 16 | C25: oz. | I25: 24150 | J25: 1.203374521e-12 | M25: 24150 | N25: 4.995747673e-14 | O25: 4.995747673e-14 | Q25: 24150 | R25: 4.995747673e-14
A26: Sigma | B26: 0.3 | C26: oz. | I26: 24200 | J26: 1.239294431e-12 | M26: 24200 | N26: 5.150167622e-14 | O26: 5.150167622e-14 | Q26: 24200 | R26: 5.150167622e-14
A27: What is probability of getting between +/- 1.96 Standard Deviations? | B27: 1.96 | I27: 24250 | J27: 1.27625462e-12 | M27: 24250 | N27: 5.309240342e-14 | O27: 5.309240342e-14 | Q27: 24250 | R27: 5.309240342e-14
A28: What are the two x values of weight that bookend the +/- 1.96 Standard Deviations? | I28: 24300 | J28: 1.314284237e-12 | M28: 24300 | N28: 5.473102217e-14 | O28: 5.473102217e-14 | Q28: 24300 | R28: 5.473102217e-14
A29: Lower | I29: 24350 | J29: 1.353413217e-12 | M29: 24350 | N29: 5.641893512e-14 | O29: 5.641893512e-14 | Q29: 24350 | R29: 5.641893512e-14
A30: Upper | I30: 24400 | J30: 1.393672307e-12 | M30: 24400 | N30: 5.815758478e-14 | O30: 5.815758478e-14 | Q30: 24400 | R30: 5.815758478e-14
A31: =A27 -> What is probability of getting between +/- 1.96 Standard Deviations? | I31: 24450 | J31: 1.435093079e-12 | M31: 24450 | N31: 5.994845462e-14 | O31: 5.994845462e-14 | Q31: 24450 | R31: 5.994845462e-14
A32: What is probability of NOT getting between +/- 1.96 Standard Deviations? | D32: =1-(_xlfn.NORM.DIST(B30,B25,B26,1)-_xlfn.NORM.DIST(B29,B25,B26,1)) -> 1 | I32: 24500 | J32: 1.477707959e-12 | M32: 24500 | N32: 6.179307022e-14 | O32: 6.179307022e-14 | Q32: 24500 | R32: 6.179307022e-14
I33: 24550 | J33: 1.521550241e-12 | M33: 24550 | N33: 6.369300039e-14 | O33: 6.369300039e-14 | Q33: 24550 | R33: 6.369300039e-14
A34: Nielsen Reports | I34: 24600 | J34: 1.566654119e-12 | M34: 24600 | N34: 6.564985838e-14 | O34: 6.564985838e-14 | Q34: 24600 | R34: 6.564985838e-14
A35: Mean daily TV watched per household | B35: 8.4 | C35: hours | I35: 24650 | J35: 1.6130547e-12 | M35: 24650 | N35: 6.766530308e-14 | O35: 6.766530308e-14 | Q35: 24650 | R35: 6.766530308e-14
A36: ="If distribution normal with SD of "&B36&" hours" -> If distribution normal with SD of 2.5 hours | B36: 2.5 | C36: hours | I36: 24700 | J36: 1.660788037e-12 | M36: 24700 | N36: 6.974104032e-14 | O36: 6.974104032e-14 | Q36: 24700 | R36: 6.974104032e-14
A37: ="P(Hours Watched Per Day "&D37&C37&" hours) = " -> P(Hours Watched Per Day >=10 hours) = | C37: 10 | D37: >= | I37: 24750 | J37: 1.709891145e-12 | M37: 24750 | N37: 7.187882406e-14 | O37: 7.187882406e-14 | Q37: 24750 | R37: 7.187882406e-14
A38: ="# Hours Watched per Day to be in lowest "&TEXT(C38,"0%") -> # Hours Watched per Day to be in lowest 1% | C38: 0.01 | I38: 24800 | J38: 1.760402033e-12 | M38: 24800 | N38: 7.408045779e-14 | O38: 7.408045779e-14 | Q38: 24800 | R38: 7.408045779e-14
A39: ="P(x"&D39&C39&") = " -> P(x<=1) = | C39: 1 | D39: <= | I39: 24850 | J39: 1.812359723e-12 | M39: 24850 | N39: 7.634779586e-14 | O39: 7.634779586e-14 | Q39: 24850 | R39: 7.634779586e-14
I40: 24900 | J40: 1.865804282e-12 | M40: 24900 | N40: 7.868274483e-14 | O40: 7.868274483e-14 | Q40: 24900 | R40: 7.868274483e-14
I41: 24950 | J41: 1.920776845e-12 | M41: 24950 | N41: 8.108726494e-14 | O41: 8.108726494e-14 | Q41: 24950 | R41: 8.108726494e-14
I42: 25000 | J42: 1.977319641e-12 | M42: 25000 | N42: 8.356337155e-14 | O42: 8.356337155e-14 | Q42: 25000 | R42: 8.356337155e-14
I43: 25050 | J43: 2.035476026e-12 | M43: 25050 | N43: 8.611313665e-14 | O43: 8.611313665e-14 | Q43: 25050 | R43: 8.611313665e-14
I44: 25100 | J44: 2.095290507e-12 | M44: 25100 | N44: 8.873869036e-14 | O44: 8.873869036e-14 | Q44: 25100 | R44: 8.873869036e-14
I45: 25150 | J45: 2.156808776e-12 | M45: 25150 | N45: 9.144222257e-14 | O45: 9.144222257e-14 | Q45: 25150 | R45: 9.144222257e-14
I46: 25200 | J46: 2.220077734e-12 | M46: 25200 | N46: 9.422598452e-14 | O46: 9.422598452e-14 | Q46: 25200 | R46: 9.422598452e-14
I47: 25250 | J47: 2.285145528e-12 | M47: 25250 | N47: 9.709229045e-14 | O47: 9.709229045e-14 | Q47: 25250 | R47: 9.709229045e-14
I48: 25300 | J48: 2.352061578e-12 | M48: 25300 | N48: 1.000435193e-13 | O48: 1.000435193e-13 | Q48: 25300 | R48: 1.000435193e-13
I49: 25350 | J49: 2.420876612e-12 | M49: 25350 | N49: 1.030821167e-13 | O49: 1.030821167e-13 | Q49: 25350 | R49: 1.030821167e-13
I50: 25400 | J50: 2.491642697e-12 | M50: 25400 | N50: 1.062105961e-13 | O50: 1.062105961e-13 | Q50: 25400 | R50: 1.062105961e-13
I51: 25450 | J51: 2.564413278e-12 | M51: 25450 | N51: 1.094315415e-13 | O51: 1.094315415e-13 | Q51: 25450 | R51: 1.094315415e-13
I52: 25500 | J52: 2.639243204e-12 | M52: 25500 | N52: 1.127476088e-13 | O52: 1.127476088e-13 | Q52: 25500 | R52: 1.127476088e-13
I53: 25550 | J53: 2.716188771e-12 | M53: 25550 | N53: 1.161615276e-13 | O53: 1.161615276e-13 | Q53: 25550 | R53: 1.161615276e-13
I54: 25600 | J54: 2.795307758e-12 | M54: 25600 | N54: 1.196761038e-13 | O54: 1.196761038e-13 | Q54: 25600 | R54: 1.196761038e-13
I55: 25650 | J55: 2.876659459e-12 | M55: 25650 | N55: 1.232942209e-13 | O55: 1.232942209e-13 | Q55: 25650 | R55: 1.232942209e-13
I56: 25700 | J56: 2.960304725e-12 | M56: 25700 | N56: 1.270188427e-13 | O56: 1.270188427e-13 | Q56: 25700 | R56: 1.270188427e-13
I57: 25750 | J57: 3.046306005e-12 | M57: 25750 | N57: 1.308530153e-13 | O57: 1.308530153e-13 | Q57: 25750 | R57: 1.308530153e-13
I58: 25800 | J58: 3.134727382e-12 | M58: 25800 | N58: 1.347998689e-13 | O58: 1.347998689e-13 | Q58: 25800 | R58: 1.347998689e-13
I59: 25850 | J59: 3.225634615e-12 | M59: 25850 | N59: 1.388626206e-13 | O59: 1.388626206e-13 | Q59: 25850 | R59: 1.388626206e-13
I60: 25900 | J60: 3.319095184e-12 | M60: 25900 | N60: 1.430445765e-13 | O60: 1.430445765e-13 | Q60: 25900 | R60: 1.430445765e-13
I61: 25950 | J61: 3.415178328e-12 | M61: 25950 | N61: 1.473491339e-13 | O61: 1.473491339e-13 | Q61: 25950 | R61: 1.473491339e-13
I62: 26000 | J62: 3.513955095e-12 | M62: 26000 | N62: 1.517797841e-13 | O62: 1.517797841e-13 | Q62: 26000 | R62: 1.517797841e-13
I63: 26050 | J63: 3.615498381e-12 | M63: 26050 | N63: 1.563401147e-13 | O63: 1.563401147e-13 | Q63: 26050 | R63: 1.563401147e-13
I64: 26100 | J64: 3.71988298e-12 | M64: 26100 | N64: 1.610338119e-13 | O64: 1.610338119e-13 | Q64: 26100 | R64: 1.610338119e-13
I65: 26150 | J65: 3.82718563e-12 | M65: 26150 | N65: 1.658646639e-13 | O65: 1.658646639e-13 | Q65: 26150 | R65: 1.658646639e-13
I66: 26200 | J66: 3.937485063e-12 | M66: 26200 | N66: 1.708365627e-13 | O66: 1.708365627e-13 | Q66: 26200 | R66: 1.708365627e-13
I67: 26250 | J67: =_xlfn.NORM.DIST(I67,$B$3,$B$4,0) -> 4.050862052e-12 | K67: =IF(I67>=$B$5,J67,"") ->  | M67: 26250 | N67: =_xlfn.NORM.DIST(M67,$B$10,$B$11,0) -> 1.759535073e-13 | O67: =IF(M67<=$B$12,N67,"") -> 1.759535073e-13 | Q67: 26250 | R67: =_xlfn.NORM.DIST(Q67,$B$10,$B$11,0) -> 1.759535073e-13 | S67: =IF(AND(Q67>=$B$19,Q67<=$B$20),R67,"") -> 
I68: 26300 | J68: 4.167399461e-12 | M68: 26300 | N68: 1.812196068e-13 | O68: 1.812196068e-13 | Q68: 26300 | R68: 1.812196068e-13
I69: 26350 | J69: 4.287182301e-12 | M69: 26350 | N69: 1.866390828e-13 | O69: 1.866390828e-13 | Q69: 26350 | R69: 1.866390828e-13
I70: 26400 | J70: 4.410297779e-12 | M70: 26400 | N70: 1.922162726e-13 | O70: 1.922162726e-13 | Q70: 26400 | R70: 1.922162726e-13
I71: 26450 | J71: 4.536835356e-12 | M71: 26450 | N71: 1.979556323e-13 | O71: 1.979556323e-13 | Q71: 26450 | R71: 1.979556323e-13
I72: 26500 | J72: 4.666886798e-12 | M72: 26500 | N72: 2.038617401e-13 | O72: 2.038617401e-13 | Q72: 26500 | R72: 2.038617401e-13
I73: 26550 | J73: 4.800546237e-12 | M73: 26550 | N73: 2.09939299e-13 | O73: 2.09939299e-13 | Q73: 26550 | R73: 2.09939299e-13
I74: 26600 | J74: 4.937910227e-12 | M74: 26600 | N74: 2.161931407e-13 | O74: 2.161931407e-13 | Q74: 26600 | R74: 2.161931407e-13
I75: 26650 | J75: 5.079077805e-12 | M75: 26650 | N75: 2.226282286e-13 | O75: 2.226282286e-13 | Q75: 26650 | R75: 2.226282286e-13
I76: 26700 | J76: 5.224150551e-12 | M76: 26700 | N76: 2.292496614e-13 | O76: 2.292496614e-13 | Q76: 26700 | R76: 2.292496614e-13
I77: 26750 | J77: 5.373232651e-12 | M77: 26750 | N77: 2.360626765e-13 | O77: 2.360626765e-13 | Q77: 26750 | R77: 2.360626765e-13
I78: 26800 | J78: 5.526430958e-12 | M78: 26800 | N78: 2.430726541e-13 | O78: 2.430726541e-13 | Q78: 26800 | R78: 2.430726541e-13
I79: 26850 | J79: 5.683855063e-12 | M79: 26850 | N79: 2.502851204e-13 | O79: 2.502851204e-13 | Q79: 26850 | R79: 2.502851204e-13
I80: 26900 | J80: 5.845617357e-12 | M80: 26900 | N80: 2.577057517e-13 | O80: 2.577057517e-13 | Q80: 26900 | R80: 2.577057517e-13
I81: 26950 | J81: 6.011833102e-12 | M81: 26950 | N81: 2.653403782e-13 | O81: 2.653403782e-13 | Q81: 26950 | R81: 2.653403782e-13
I82: 27000 | J82: 6.1826205e-12 | M82: 27000 | N82: 2.731949884e-13 | O82: 2.731949884e-13 | Q82: 27000 | R82: 2.731949884e-13
I83: 27050 | J83: 6.358100764e-12 | M83: 27050 | N83: 2.812757327e-13 | O83: 2.812757327e-13 | Q83: 27050 | R83: 2.812757327e-13
I84: 27100 | J84: 6.538398192e-12 | M84: 27100 | N84: 2.89588928e-13 | O84: 2.89588928e-13 | Q84: 27100 | R84: 2.89588928e-13
I85: 27150 | J85: 6.723640243e-12 | M85: 27150 | N85: 2.981410617e-13 | O85: 2.981410617e-13 | Q85: 27150 | R85: 2.981410617e-13
I86: 27200 | J86: 6.913957612e-12 | M86: 27200 | N86: 3.069387968e-13 | O86: 3.069387968e-13 | Q86: 27200 | R86: 3.069387968e-13
I87: 27250 | J87: 7.109484309e-12 | M87: 27250 | N87: 3.159889756e-13 | O87: 3.159889756e-13 | Q87: 27250 | R87: 3.159889756e-13
I88: 27300 | J88: 7.310357738e-12 | M88: 27300 | N88: 3.25298625e-13 | O88: 3.25298625e-13 | Q88: 27300 | R88: 3.25298625e-13
I89: 27350 | J89: 7.516718783e-12 | M89: 27350 | N89: 3.348749613e-13 | O89: 3.348749613e-13 | Q89: 27350 | R89: 3.348749613e-13
I90: 27400 | J90: 7.728711889e-12 | M90: 27400 | N90: 3.447253944e-13 | O90: 3.447253944e-13 | Q90: 27400 | R90: 3.447253944e-13
I91: 27450 | J91: 7.946485145e-12 | M91: 27450 | N91: 3.548575339e-13 | O91: 3.548575339e-13 | Q91: 27450 | R91: 3.548575339e-13
I92: 27500 | J92: 8.170190379e-12 | M92: 27500 | N92: 3.652791932e-13 | O92: 3.652791932e-13 | Q92: 27500 | R92: 3.652791932e-13
I93: 27550 | J93: 8.399983241e-12 | M93: 27550 | N93: 3.759983957e-13 | O93: 3.759983957e-13 | Q93: 27550 | R93: 3.759983957e-13
I94: 27600 | J94: 8.636023301e-12 | M94: 27600 | N94: 3.870233795e-13 | O94: 3.870233795e-13 | Q94: 27600 | R94: 3.870233795e-13
I95: 27650 | J95: 8.878474136e-12 | M95: 27650 | N95: 3.983626034e-13 | O95: 3.983626034e-13 | Q95: 27650 | R95: 3.983626034e-13
I96: 27700 | J96: 9.127503434e-12 | M96: 27700 | N96: 4.100247524e-13 | O96: 4.100247524e-13 | Q96: 27700 | R96: 4.100247524e-13
I97: 27750 | J97: 9.383283084e-12 | M97: 27750 | N97: 4.220187436e-13 | O97: 4.220187436e-13 | Q97: 27750 | R97: 4.220187436e-13
I98: 27800 | J98: 9.645989284e-12 | M98: 27800 | N98: 4.343537321e-13 | O98: 4.343537321e-13 | Q98: 27800 | R98: 4.343537321e-13
I99: 27850 | J99: 9.91580264e-12 | M99: 27850 | N99: 4.470391171e-13 | O99: 4.470391171e-13 | Q99: 27850 | R99: 4.470391171e-13
I100: 27900 | J100: 1.019290827e-11 | M100: 27900 | N100: 4.600845484e-13 | O100: 4.600845484e-13 | Q100: 27900 | R100: 4.600845484e-13
I101: 27950 | J101: 1.047749591e-11 | M101: 27950 | N101: 4.734999325e-13 | O101: 4.734999325e-13 | Q101: 27950 | R101: 4.734999325e-13
I102: 28000 | J102: 1.076976004e-11 | M102: 28000 | N102: 4.872954394e-13 | O102: 4.872954394e-13 | Q102: 28000 | R102: 4.872954394e-13
I103: 28050 | J103: 1.106989997e-11 | M103: 28050 | N103: 5.014815093e-13 | O103: 5.014815093e-13 | Q103: 28050 | R103: 5.014815093e-13
I104: 28100 | J104: 1.137811998e-11 | M104: 28100 | N104: 5.160688596e-13 | O104: 5.160688596e-13 | Q104: 28100 | R104: 5.160688596e-13
I105: 28150 | J105: 1.16946294e-11 | M105: 28150 | N105: 5.310684916e-13 | O105: 5.310684916e-13 | Q105: 28150 | R105: 5.310684916e-13
I106: 28200 | J106: 1.201964279e-11 | M106: 28200 | N106: 5.464916984e-13 | O106: 5.464916984e-13 | Q106: 28200 | R106: 5.464916984e-13
I107: 28250 | J107: 1.235338001e-11 | M107: 28250 | N107: 5.623500716e-13 | O107: 5.623500716e-13 | Q107: 28250 | R107: 5.623500716e-13
I108: 28300 | J108: 1.269606637e-11 | M108: 28300 | N108: 5.786555095e-13 | O108: 5.786555095e-13 | Q108: 28300 | R108: 5.786555095e-13
I109: 28350 | J109: 1.304793274e-11 | M109: 28350 | N109: 5.954202247e-13 | O109: 5.954202247e-13 | Q109: 28350 | R109: 5.954202247e-13
I110: 28400 | J110: 1.340921572e-11 | M110: 28400 | N110: 6.12656752e-13 | O110: 6.12656752e-13 | Q110: 28400 | R110: 6.12656752e-13
I111: 28450 | J111: 1.378015772e-11 | M111: 28450 | N111: 6.303779565e-13 | O111: 6.303779565e-13 | Q111: 28450 | R111: 6.303779565e-13
I112: 28500 | J112: 1.416100713e-11 | M112: 28500 | N112: 6.485970424e-13 | O112: 6.485970424e-13 | Q112: 28500 | R112: 6.485970424e-13
I113: 28550 | J113: 1.455201847e-11 | M113: 28550 | N113: 6.673275613e-13 | O113: 6.673275613e-13 | Q113: 28550 | R113: 6.673275613e-13
I114: 28600 | J114: 1.495345252e-11 | M114: 28600 | N114: 6.865834207e-13 | O114: 6.865834207e-13 | Q114: 28600 | R114: 6.865834207e-13
I115: 28650 | J115: 1.536557643e-11 | M115: 28650 | N115: 7.063788936e-13 | O115: 7.063788936e-13 | Q115: 28650 | R115: 7.063788936e-13
I116: 28700 | J116: 1.578866395e-11 | M116: 28700 | N116: 7.267286274e-13 | O116: 7.267286274e-13 | Q116: 28700 | R116: 7.267286274e-13
I117: 28750 | J117: 1.62229955e-11 | M117: 28750 | N117: 7.476476534e-13 | O117: 7.476476534e-13 | Q117: 28750 | R117: 7.476476534e-13
I118: 28800 | J118: 1.666885838e-11 | M118: 28800 | N118: 7.691513963e-13 | O118: 7.691513963e-13 | Q118: 28800 | R118: 7.691513963e-13
I119: 28850 | J119: 1.712654691e-11 | M119: 28850 | N119: 7.912556846e-13 | O119: 7.912556846e-13 | Q119: 28850 | R119: 7.912556846e-13
I120: 28900 | J120: 1.759636261e-11 | M120: 28900 | N120: 8.139767601e-13 | O120: 8.139767601e-13 | Q120: 28900 | R120: 8.139767601e-13
I121: 28950 | J121: 1.807861433e-11 | M121: 28950 | N121: 8.373312888e-13 | O121: 8.373312888e-13 | Q121: 28950 | R121: 8.373312888e-13
I122: 29000 | J122: 1.857361845e-11 | M122: 29000 | N122: 8.613363714e-13 | O122: 8.613363714e-13 | Q122: 29000 | R122: 8.613363714e-13
I123: 29050 | J123: 1.908169905e-11 | M123: 29050 | N123: 8.860095539e-13 | O123: 8.860095539e-13 | Q123: 29050 | R123: 8.860095539e-13
I124: 29100 | J124: 1.960318809e-11 | M124: 29100 | N124: 9.113688393e-13 | O124: 9.113688393e-13 | Q124: 29100 | R124: 9.113688393e-13
I125: 29150 | J125: 2.013842559e-11 | M125: 29150 | N125: 9.374326988e-13 | O125: 9.374326988e-13 | Q125: 29150 | R125: 9.374326988e-13
I126: 29200 | J126: 2.068775979e-11 | M126: 29200 | N126: 9.64220083e-13 | O126: 9.64220083e-13 | Q126: 29200 | R126: 9.64220083e-13
I127: 29250 | J127: 2.125154738e-11 | M127: 29250 | N127: 9.917504349e-13 | O127: 9.917504349e-13 | Q127: 29250 | R127: 9.917504349e-13
I128: 29300 | J128: 2.183015369e-11 | M128: 29300 | N128: 1.020043701e-12 | O128: 1.020043701e-12 | Q128: 29300 | R128: 1.020043701e-12
I129: 29350 | J129: 2.242395284e-11 | M129: 29350 | N129: 1.049120345e-12 | O129: 1.049120345e-12 | Q129: 29350 | R129: 1.049120345e-12
I130: 29400 | J130: 2.3033328e-11 | M130: 29400 | N130: 1.07900136e-12 | O130: 1.07900136e-12 | Q130: 29400 | R130: 1.07900136e-12
I131: 29450 | J131: =_xlfn.NORM.DIST(I131,$B$3,$B$4,0) -> 2.365867158e-11 | K131: =IF(I131>=$B$5,J131,"") ->  | M131: 29450 | N131: =_xlfn.NORM.DIST(M131,$B$10,$B$11,0) -> 1.109708281e-12 | O131: =IF(M131<=$B$12,N131,"") -> 1.109708281e-12 | Q131: 29450 | R131: =_xlfn.NORM.DIST(Q131,$B$10,$B$11,0) -> 1.109708281e-12 | S131: =IF(AND(Q131>=$B$19,Q131<=$B$20),R131,"") -> 
I132: 29500 | J132: 2.430038541e-11 | M132: 29500 | N132: 1.141263201e-12 | O132: 1.141263201e-12 | Q132: 29500 | R132: 1.141263201e-12
I133: 29550 | J133: 2.4958881e-11 | M133: 29550 | N133: 1.173688781e-12 | O133: 1.173688781e-12 | Q133: 29550 | R133: 1.173688781e-12
I134: 29600 | J134: 2.563457973e-11 | M134: 29600 | N134: 1.207008266e-12 | O134: 1.207008266e-12 | Q134: 29600 | R134: 1.207008266e-12
I135: 29650 | J135: 2.632791309e-11 | M135: 29650 | N135: 1.241245501e-12 | O135: 1.241245501e-12 | Q135: 29650 | R135: 1.241245501e-12
I136: 29700 | J136: 2.703932292e-11 | M136: 29700 | N136: 1.276424944e-12 | O136: 1.276424944e-12 | Q136: 29700 | R136: 1.276424944e-12
I137: 29750 | J137: 2.776926159e-11 | M137: 29750 | N137: 1.312571681e-12 | O137: 1.312571681e-12 | Q137: 29750 | R137: 1.312571681e-12
I138: 29800 | J138: 2.851819232e-11 | M138: 29800 | N138: 1.349711441e-12 | O138: 1.349711441e-12 | Q138: 29800 | R138: 1.349711441e-12
I139: 29850 | J139: 2.928658938e-11 | M139: 29850 | N139: 1.387870615e-12 | O139: 1.387870615e-12 | Q139: 29850 | R139: 1.387870615e-12
I140: 29900 | J140: 3.007493831e-11 | M140: 29900 | N140: 1.427076268e-12 | O140: 1.427076268e-12 | Q140: 29900 | R140: 1.427076268e-12
I141: 29950 | J141: 3.088373626e-11 | M141: 29950 | N141: 1.46735616e-12 | O141: 1.46735616e-12 | Q141: 29950 | R141: 1.46735616e-12
I142: 30000 | J142: 3.171349217e-11 | M142: 30000 | N142: 1.508738758e-12 | O142: 1.508738758e-12 | Q142: 30000 | R142: 1.508738758e-12
I143: 30050 | J143: 3.256472707e-11 | M143: 30050 | N143: 1.551253258e-12 | O143: 1.551253258e-12 | Q143: 30050 | R143: 1.551253258e-12
I144: 30100 | J144: 3.343797435e-11 | M144: 30100 | N144: 1.5949296e-12 | O144: 1.5949296e-12 | Q144: 30100 | R144: 1.5949296e-12
I145: 30150 | J145: 3.433378005e-11 | M145: 30150 | N145: 1.639798489e-12 | O145: 1.639798489e-12 | Q145: 30150 | R145: 1.639798489e-12
I146: 30200 | J146: 3.525270313e-11 | M146: 30200 | N146: 1.685891409e-12 | O146: 1.685891409e-12 | Q146: 30200 | R146: 1.685891409e-12
I147: 30250 | J147: 3.619531573e-11 | M147: 30250 | N147: 1.733240648e-12 | O147: 1.733240648e-12 | Q147: 30250 | R147: 1.733240648e-12
I148: 30300 | J148: 3.716220353e-11 | M148: 30300 | N148: 1.781879311e-12 | O148: 1.781879311e-12 | Q148: 30300 | R148: 1.781879311e-12
I149: 30350 | J149: 3.815396601e-11 | M149: 30350 | N149: 1.831841346e-12 | O149: 1.831841346e-12 | Q149: 30350 | R149: 1.831841346e-12
I150: 30400 | J150: 3.917121676e-11 | M150: 30400 | N150: 1.883161562e-12 | O150: 1.883161562e-12 | Q150: 30400 | R150: 1.883161562e-12
I151: 30450 | J151: 4.021458379e-11 | M151: 30450 | N151: 1.93587565e-12 | O151: 1.93587565e-12 | Q151: 30450 | R151: 1.93587565e-12
I152: 30500 | J152: 4.128470989e-11 | M152: 30500 | N152: 1.990020202e-12 | O152: 1.990020202e-12 | Q152: 30500 | R152: 1.990020202e-12
I153: 30550 | J153: 4.238225289e-11 | M153: 30550 | N153: 2.045632737e-12 | O153: 2.045632737e-12 | Q153: 30550 | R153: 2.045632737e-12
I154: 30600 | J154: 4.350788608e-11 | M154: 30600 | N154: 2.102751723e-12 | O154: 2.102751723e-12 | Q154: 30600 | R154: 2.102751723e-12
I155: 30650 | J155: 4.466229846e-11 | M155: 30650 | N155: 2.161416595e-12 | O155: 2.161416595e-12 | Q155: 30650 | R155: 2.161416595e-12
I156: 30700 | J156: 4.584619516e-11 | M156: 30700 | N156: 2.221667787e-12 | O156: 2.221667787e-12 | Q156: 30700 | R156: 2.221667787e-12
I157: 30750 | J157: 4.706029777e-11 | M157: 30750 | N157: 2.283546745e-12 | O157: 2.283546745e-12 | Q157: 30750 | R157: 2.283546745e-12
I158: 30800 | J158: 4.830534469e-11 | M158: 30800 | N158: 2.347095964e-12 | O158: 2.347095964e-12 | Q158: 30800 | R158: 2.347095964e-12
I159: 30850 | J159: 4.958209153e-11 | M159: 30850 | N159: 2.412359002e-12 | O159: 2.412359002e-12 | Q159: 30850 | R159: 2.412359002e-12
I160: 30900 | J160: 5.089131146e-11 | M160: 30900 | N160: 2.479380513e-12 | O160: 2.479380513e-12 | Q160: 30900 | R160: 2.479380513e-12
I161: 30950 | J161: 5.22337956e-11 | M161: 30950 | N161: 2.54820627e-12 | O161: 2.54820627e-12 | Q161: 30950 | R161: 2.54820627e-12
I162: 31000 | J162: 5.361035345e-11 | M162: 31000 | N162: 2.618883194e-12 | O162: 2.618883194e-12 | Q162: 31000 | R162: 2.618883194e-12
I163: 31050 | J163: 5.502181323e-11 | M163: 31050 | N163: 2.691459377e-12 | O163: 2.691459377e-12 | Q163: 31050 | R163: 2.691459377e-12
I164: 31100 | J164: 5.646902235e-11 | M164: 31100 | N164: 2.765984117e-12 | O164: 2.765984117e-12 | Q164: 31100 | R164: 2.765984117e-12
I165: 31150 | J165: 5.795284779e-11 | M165: 31150 | N165: 2.842507941e-12 | O165: 2.842507941e-12 | Q165: 31150 | R165: 2.842507941e-12
I166: 31200 | J166: 5.947417655e-11 | M166: 31200 | N166: 2.921082638e-12 | O166: 2.921082638e-12 | Q166: 31200 | R166: 2.921082638e-12
I167: 31250 | J167: 6.103391607e-11 | M167: 31250 | N167: 3.001761287e-12 | O167: 3.001761287e-12 | Q167: 31250 | R167: 3.001761287e-12
I168: 31300 | J168: 6.263299468e-11 | M168: 31300 | N168: 3.084598288e-12 | O168: 3.084598288e-12 | Q168: 31300 | R168: 3.084598288e-12
I169: 31350 | J169: 6.427236205e-11 | M169: 31350 | N169: 3.169649395e-12 | O169: 3.169649395e-12 | Q169: 31350 | R169: 3.169649395e-12
I170: 31400 | J170: 6.595298969e-11 | M170: 31400 | N170: 3.256971747e-12 | O170: 3.256971747e-12 | Q170: 31400 | R170: 3.256971747e-12
I171: 31450 | J171: 6.767587134e-11 | M171: 31450 | N171: 3.3466239e-12 | O171: 3.3466239e-12 | Q171: 31450 | R171: 3.3466239e-12
I172: 31500 | J172: 6.944202354e-11 | M172: 31500 | N172: 3.438665864e-12 | O172: 3.438665864e-12 | Q172: 31500 | R172: 3.438665864e-12
I173: 31550 | J173: 7.125248607e-11 | M173: 31550 | N173: 3.533159133e-12 | O173: 3.533159133e-12 | Q173: 31550 | R173: 3.533159133e-12
I174: 31600 | J174: 7.310832247e-11 | M174: 31600 | N174: 3.630166726e-12 | O174: 3.630166726e-12 | Q174: 31600 | R174: 3.630166726e-12
I175: 31650 | J175: 7.501062054e-11 | M175: 31650 | N175: 3.729753215e-12 | O175: 3.729753215e-12 | Q175: 31650 | R175: 3.729753215e-12
I176: 31700 | J176: 7.696049288e-11 | M176: 31700 | N176: 3.83198477e-12 | O176: 3.83198477e-12 | Q176: 31700 | R176: 3.83198477e-12
I177: 31750 | J177: 7.895907741e-11 | M177: 31750 | N177: 3.936929191e-12 | O177: 3.936929191e-12 | Q177: 31750 | R177: 3.936929191e-12
I178: 31800 | J178: 8.100753789e-11 | M178: 31800 | N178: 4.044655949e-12 | O178: 4.044655949e-12 | Q178: 31800 | R178: 4.044655949e-12
I179: 31850 | J179: 8.310706454e-11 | M179: 31850 | N179: 4.155236226e-12 | O179: 4.155236226e-12 | Q179: 31850 | R179: 4.155236226e-12
I180: 31900 | J180: 8.525887453e-11 | M180: 31900 | N180: 4.268742953e-12 | O180: 4.268742953e-12 | Q180: 31900 | R180: 4.268742953e-12
I181: 31950 | J181: 8.746421259e-11 | M181: 31950 | N181: 4.385250853e-12 | O181: 4.385250853e-12 | Q181: 31950 | R181: 4.385250853e-12
I182: 32000 | J182: 8.972435162e-11 | M182: 32000 | N182: 4.50483648e-12 | O182: 4.50483648e-12 | Q182: 32000 | R182: 4.50483648e-12
I183: 32050 | J183: 9.204059325e-11 | M183: 32050 | N183: 4.627578269e-12 | O183: 4.627578269e-12 | Q183: 32050 | R183: 4.627578269e-12
I184: 32100 | J184: 9.441426847e-11 | M184: 32100 | N184: 4.753556571e-12 | O184: 4.753556571e-12 | Q184: 32100 | R184: 4.753556571e-12
I185: 32150 | J185: 9.684673823e-11 | M185: 32150 | N185: 4.882853704e-12 | O185: 4.882853704e-12 | Q185: 32150 | R185: 4.882853704e-12
I186: 32200 | J186: 9.933939413e-11 | M186: 32200 | N186: 5.015553997e-12 | O186: 5.015553997e-12 | Q186: 32200 | R186: 5.015553997e-12
I187: 32250 | J187: 1.01893659e-10 | M187: 32250 | N187: 5.151743837e-12 | O187: 5.151743837e-12 | Q187: 32250 | R187: 5.151743837e-12
I188: 32300 | J188: 1.045109876e-10 | M188: 32300 | N188: 5.291511718e-12 | O188: 5.291511718e-12 | Q188: 32300 | R188: 5.291511718e-12
I189: 32350 | J189: 1.071928674e-10 | M189: 32350 | N189: 5.434948287e-12 | O189: 5.434948287e-12 | Q189: 32350 | R189: 5.434948287e-12
I190: 32400 | J190: 1.099408189e-10 | M190: 32400 | N190: 5.582146399e-12 | O190: 5.582146399e-12 | Q190: 32400 | R190: 5.582146399e-12
I191: 32450 | J191: 1.127563968e-10 | M191: 32450 | N191: 5.733201164e-12 | O191: 5.733201164e-12 | Q191: 32450 | R191: 5.733201164e-12
I192: 32500 | J192: 1.156411904e-10 | M192: 32500 | N192: 5.88821e-12 | O192: 5.88821e-12 | Q192: 32500 | R192: 5.88821e-12
I193: 32550 | J193: 1.185968244e-10 | M193: 32550 | N193: 6.04727269e-12 | O193: 6.04727269e-12 | Q193: 32550 | R193: 6.04727269e-12
I194: 32600 | J194: 1.216249599e-10 | M194: 32600 | N194: 6.210491432e-12 | O194: 6.210491432e-12 | Q194: 32600 | R194: 6.210491432e-12
I195: 32650 | J195: =_xlfn.NORM.DIST(I195,$B$3,$B$4,0) -> 1.247272946e-10 | K195: =IF(I195>=$B$5,J195,"") ->  | M195: 32650 | N195: =_xlfn.NORM.DIST(M195,$B$10,$B$11,0) -> 6.377970898e-12 | O195: =IF(M195<=$B$12,N195,"") -> 6.377970898e-12 | Q195: 32650 | R195: =_xlfn.NORM.DIST(Q195,$B$10,$B$11,0) -> 6.377970898e-12 | S195: =IF(AND(Q195>=$B$19,Q195<=$B$20),R195,"") -> 
I196: 32700 | J196: 1.27905564e-10 | M196: 32700 | N196: 6.54981829e-12 | O196: 6.54981829e-12 | Q196: 32700 | R196: 6.54981829e-12
I197: 32750 | J197: 1.311615423e-10 | M197: 32750 | N197: 6.726143399e-12 | O197: 6.726143399e-12 | Q197: 32750 | R197: 6.726143399e-12
I198: 32800 | J198: 1.344970426e-10 | M198: 32800 | N198: 6.907058663e-12 | O198: 6.907058663e-12 | Q198: 32800 | R198: 6.907058663e-12
I199: 32850 | J199: 1.379139184e-10 | M199: 32850 | N199: 7.09267923e-12 | O199: 7.09267923e-12 | Q199: 32850 | R199: 7.09267923e-12
I200: 32900 | J200: 1.41414064e-10 | M200: 32900 | N200: 7.283123019e-12 | O200: 7.283123019e-12 | Q200: 32900 | R200: 7.283123019e-12
... 2202 more rows

Sheet Bell(9Ex) (an)
A1: **http://swz.salary.com July, 2011 | I1: =A2 -> USA | J1: f(x) | K1: =A7 -> P(x>=$90,000) = | M1: =A9 -> Seattle, WA | N1: f(x) | O1: =A14 -> P(x<=$75,000) = | Q1: =A16 -> Oakland, CA | R1: f(x) | S1: =A22 -> P($80,000 <= x <= $100,000) =
A2: USA | B2: Pop Data approximately Bell Shaped | I2: 23000 | J2: =_xlfn.NORM.DIST(I2,$B$3,$B$4,0) -> 6.07588285e-13 | K2: =IF(I2>=$B$5,J2,"") ->  | M2: 23000 | N2: =_xlfn.NORM.DIST(M2,$B$10,$B$11,0) -> 2.464917932e-14 | O2: =IF(M2<=$B$12,N2,"") -> 2.464917932e-14 | Q2: 23000 | R2: =_xlfn.NORM.DIST(Q2,$B$17,$B$18,0) -> 2.42686965e-14 | S2: =IF(AND(Q2>=$B$19,Q2<=$B$20),R2,"") -> 
A3: =A2&" Accounting Manager Average Annual Salary" -> USA Accounting Manager Average Annual Salary | B3: 83000 | I3: 23050 | J3: =_xlfn.NORM.DIST(I3,$B$3,$B$4,0) -> 6.260842769e-13 | K3: =IF(I3>=$B$5,J3,"") ->  | M3: 23050 | N3: =_xlfn.NORM.DIST(M3,$B$10,$B$11,0) -> 2.542434871e-14 | O3: =IF(M3<=$B$12,N3,"") -> 2.542434871e-14 | Q3: 23050 | R3: =_xlfn.NORM.DIST(Q3,$B$10,$B$11,0) -> 2.542434871e-14 | S3: =IF(AND(Q3>=$B$19,Q3<=$B$20),R3,"") -> 
A4: Sigma | B4: 10000 | I4: 23100 | J4: 6.451271891e-13 | M4: 23100 | N4: 2.622330105e-14 | O4: 2.622330105e-14 | Q4: 23100 | R4: 2.622330105e-14
A5: x | B5: 90000 | I5: 23150 | J5: 6.647326899e-13 | M5: 23150 | N5: 2.704674691e-14 | O5: 2.704674691e-14 | Q5: 23150 | R5: 2.704674691e-14
A6: Comparative Operator | B6: x>= | I6: 23200 | J6: 6.849168813e-13 | M6: 23200 | N6: 2.789541749e-14 | O6: 2.789541749e-14 | Q6: 23200 | R6: 2.789541749e-14
A7: ="P("&B6&DOLLAR(B5,0)&") = " -> P(x>=$90,000) = | B7: =1-_xlfn.NORM.DIST(B5,B3,B4,1) -> 0.2419636522 | I7: 23250 | J7: 7.056963104e-13 | M7: 23250 | N7: 2.877006519e-14 | O7: 2.877006519e-14 | Q7: 23250 | R7: 2.877006519e-14
I8: 23300 | J8: 7.270879812e-13 | M8: 23300 | N8: 2.967146423e-14 | O8: 2.967146423e-14 | Q8: 23300 | R8: 2.967146423e-14
A9: Seattle, WA | B9: Pop Data approximately Bell Shaped | I9: 23350 | J9: 7.491093666e-13 | M9: 23350 | N9: 3.060041124e-14 | O9: 3.060041124e-14 | Q9: 23350 | R9: 3.060041124e-14
A10: =A9&" Accounting Manager Average Annual Salary" -> Seattle, WA Accounting Manager Average Annual Salary | B10: 91300 | I10: 23400 | J10: 7.717784213e-13 | M10: 23400 | N10: 3.155772589e-14 | O10: 3.155772589e-14 | Q10: 23400 | R10: 3.155772589e-14
A11: Sigma | B11: 10500 | I11: 23450 | J11: 7.951135938e-13 | M11: 23450 | N11: 3.254425156e-14 | O11: 3.254425156e-14 | Q11: 23450 | R11: 3.254425156e-14
A12: x | B12: 75000 | I12: 23500 | J12: 8.191338403e-13 | M12: 23500 | N12: 3.356085596e-14 | O12: 3.356085596e-14 | Q12: 23500 | R12: 3.356085596e-14
A13: Comparative Operator | B13: x<= | I13: 23550 | J13: 8.438586377e-13 | M13: 23550 | N13: 3.460843188e-14 | O13: 3.460843188e-14 | Q13: 23550 | R13: 3.460843188e-14
A14: ="P("&B13&DOLLAR(B12,0)&") = " -> P(x<=$75,000) = | B14: =_xlfn.NORM.DIST(B12,B10,B11,1) -> 0.06028554916 | I14: 23600 | J14: 8.693079973e-13 | M14: 23600 | N14: 3.568789779e-14 | O14: 3.568789779e-14 | Q14: 23600 | R14: 3.568789779e-14
I15: 23650 | J15: 8.95502479e-13 | M15: 23650 | N15: 3.680019867e-14 | O15: 3.680019867e-14 | Q15: 23650 | R15: 3.680019867e-14
A16: Oakland, CA | B16: Pop Data approximately Bell Shaped | I16: 23700 | J16: 9.224632057e-13 | M16: 23700 | N16: 3.794630667e-14 | O16: 3.794630667e-14 | Q16: 23700 | R16: 3.794630667e-14
A17: =A16&" Accounting Manager Average Annual Salary" -> Oakland, CA Accounting Manager Average Annual Salary | B17: 94500 | I17: 23750 | J17: 9.502118785e-13 | M17: 23750 | N17: 3.912722189e-14 | O17: 3.912722189e-14 | Q17: 23750 | R17: 3.912722189e-14
A18: Sigma | B18: 11000 | I18: 23800 | J18: 9.787707912e-13 | M18: 23800 | N18: 4.034397316e-14 | O18: 4.034397316e-14 | Q18: 23800 | R18: 4.034397316e-14
A19: Upper x | B19: 80000 | I19: 23850 | J19: 1.008162847e-12 | M19: 23850 | N19: 4.159761885e-14 | O19: 4.159761885e-14 | Q19: 23850 | R19: 4.159761885e-14
A20: Lower x | B20: 100000 | I20: 23900 | J20: 1.038411572e-12 | M20: 23900 | N20: 4.288924768e-14 | O20: 4.288924768e-14 | Q20: 23900 | R20: 4.288924768e-14
A21: Comparative Operator | B21: <= x <= | I21: 23950 | J21: 1.069541135e-12 | M21: 23950 | N21: 4.421997957e-14 | O21: 4.421997957e-14 | Q21: 23950 | R21: 4.421997957e-14
A22: ="P("&DOLLAR(B19,0)&B21&DOLLAR(B20,0)&") = " -> P($80,000 <= x <= $100,000) = | B22: =_xlfn.NORM.DIST(B20,B17,B18,1)-_xlfn.NORM.DIST(B19,B17,B18,1) -> 0.597741066 | I22: 24000 | J22: 1.101576362e-12 | M22: 24000 | N22: 4.559096647e-14 | O22: 4.559096647e-14 | Q22: 24000 | R22: 4.559096647e-14
I23: 24050 | J23: 1.134542755e-12 | M23: 24050 | N23: 4.700339331e-14 | O23: 4.700339331e-14 | Q23: 24050 | R23: 4.700339331e-14
A24: Frozen Corn Bag Filling Machine weight follows a normal distribution | I24: 24100 | J24: 1.168466506e-12 | M24: 24100 | N24: 4.845847887e-14 | O24: 4.845847887e-14 | Q24: 24100 | R24: 4.845847887e-14
A25: Mean weight of package | B25: 16 | C25: oz. | I25: 24150 | J25: 1.203374521e-12 | M25: 24150 | N25: 4.995747673e-14 | O25: 4.995747673e-14 | Q25: 24150 | R25: 4.995747673e-14
A26: Sigma | B26: 0.3 | C26: oz. | I26: 24200 | J26: 1.239294431e-12 | M26: 24200 | N26: 5.150167622e-14 | O26: 5.150167622e-14 | Q26: 24200 | R26: 5.150167622e-14
A27: What is probability of getting between +/- 1.96 Standard Deviations? | B27: 1.96 | C27: =_xlfn.NORM.S.DIST(B27,1)-_xlfn.NORM.S.DIST(-B27,1) -> 0.9500042097 | I27: 24250 | J27: 1.27625462e-12 | M27: 24250 | N27: 5.309240342e-14 | O27: 5.309240342e-14 | Q27: 24250 | R27: 5.309240342e-14
A28: What are the two x values of weight that bookend the +/- 1.96 Standard Deviations? | I28: 24300 | J28: 1.314284237e-12 | M28: 24300 | N28: 5.473102217e-14 | O28: 5.473102217e-14 | Q28: 24300 | R28: 5.473102217e-14
A29: Lower | B29: =B25-B26*B27 -> 15.412 | I29: 24350 | J29: 1.353413217e-12 | M29: 24350 | N29: 5.641893512e-14 | O29: 5.641893512e-14 | Q29: 24350 | R29: 5.641893512e-14
A30: Upper | B30: =B25+B26*B27 -> 16.588 | I30: 24400 | J30: 1.393672307e-12 | M30: 24400 | N30: 5.815758478e-14 | O30: 5.815758478e-14 | Q30: 24400 | R30: 5.815758478e-14
A31: What is probability of getting between +/- 1.96 Standard Deviations? | B31: =_xlfn.NORM.DIST(B30,B25,B26,1)-_xlfn.NORM.DIST(B29,B25,B26,1) -> 0.9500042097 | I31: 24450 | J31: 1.435093079e-12 | M31: 24450 | N31: 5.994845462e-14 | O31: 5.994845462e-14 | Q31: 24450 | R31: 5.994845462e-14
A32: What is probability of NOT getting between +/- 1.96 Standard Deviations? | B32: =1-B31 -> 0.0499957903 | D32: =1-(_xlfn.NORM.DIST(B30,B25,B26,1)-_xlfn.NORM.DIST(B29,B25,B26,1)) -> 0.0499957903 | I32: 24500 | J32: 1.477707959e-12 | M32: 24500 | N32: 6.179307022e-14 | O32: 6.179307022e-14 | Q32: 24500 | R32: 6.179307022e-14
I33: 24550 | J33: 1.521550241e-12 | M33: 24550 | N33: 6.369300039e-14 | O33: 6.369300039e-14 | Q33: 24550 | R33: 6.369300039e-14
A34: Nielsen Reports | I34: 24600 | J34: 1.566654119e-12 | M34: 24600 | N34: 6.564985838e-14 | O34: 6.564985838e-14 | Q34: 24600 | R34: 6.564985838e-14
A35: Mean daily TV watched per household | B35: 8.4 | C35: hours | I35: 24650 | J35: 1.6130547e-12 | M35: 24650 | N35: 6.766530308e-14 | O35: 6.766530308e-14 | Q35: 24650 | R35: 6.766530308e-14
A36: ="If distribution normal with SD of "&B36&" hours" -> If distribution normal with SD of 2.5 hours | B36: 2.5 | C36: hours | I36: 24700 | J36: 1.660788037e-12 | M36: 24700 | N36: 6.974104032e-14 | O36: 6.974104032e-14 | Q36: 24700 | R36: 6.974104032e-14
A37: ="P(Hours Watched Per Day "&D37&C37&" hours) = " -> P(Hours Watched Per Day >=10 hours) = | B37: =1-_xlfn.NORM.DIST(C37,B35,B36,1) -> 0.2610862997 | C37: 10 | D37: >= | I37: 24750 | J37: 1.709891145e-12 | M37: 24750 | N37: 7.187882406e-14 | O37: 7.187882406e-14 | Q37: 24750 | R37: 7.187882406e-14
A38: ="# Hours Watched per Day to be in lowest "&TEXT(C38,"0%") -> # Hours Watched per Day to be in lowest 1% | B38: =_xlfn.NORM.INV(C38,B35,B36) -> 2.584130315 | C38: 0.01 | I38: 24800 | J38: 1.760402033e-12 | M38: 24800 | N38: 7.408045779e-14 | O38: 7.408045779e-14 | Q38: 24800 | R38: 7.408045779e-14
A39: ="P(x"&D39&C39&") = " -> P(x<=1) = | B39: =_xlfn.NORM.DIST(C39,B35,B36,1) -> 0.001538195212 | C39: 1 | D39: <= | I39: 24850 | J39: 1.812359723e-12 | M39: 24850 | N39: 7.634779586e-14 | O39: 7.634779586e-14 | Q39: 24850 | R39: 7.634779586e-14
I40: 24900 | J40: 1.865804282e-12 | M40: 24900 | N40: 7.868274483e-14 | O40: 7.868274483e-14 | Q40: 24900 | R40: 7.868274483e-14
I41: 24950 | J41: 1.920776845e-12 | M41: 24950 | N41: 8.108726494e-14 | O41: 8.108726494e-14 | Q41: 24950 | R41: 8.108726494e-14
I42: 25000 | J42: 1.977319641e-12 | M42: 25000 | N42: 8.356337155e-14 | O42: 8.356337155e-14 | Q42: 25000 | R42: 8.356337155e-14
I43: 25050 | J43: 2.035476026e-12 | M43: 25050 | N43: 8.611313665e-14 | O43: 8.611313665e-14 | Q43: 25050 | R43: 8.611313665e-14
I44: 25100 | J44: 2.095290507e-12 | M44: 25100 | N44: 8.873869036e-14 | O44: 8.873869036e-14 | Q44: 25100 | R44: 8.873869036e-14
I45: 25150 | J45: 2.156808776e-12 | M45: 25150 | N45: 9.144222257e-14 | O45: 9.144222257e-14 | Q45: 25150 | R45: 9.144222257e-14
I46: 25200 | J46: 2.220077734e-12 | M46: 25200 | N46: 9.422598452e-14 | O46: 9.422598452e-14 | Q46: 25200 | R46: 9.422598452e-14
I47: 25250 | J47: 2.285145528e-12 | M47: 25250 | N47: 9.709229045e-14 | O47: 9.709229045e-14 | Q47: 25250 | R47: 9.709229045e-14
I48: 25300 | J48: 2.352061578e-12 | M48: 25300 | N48: 1.000435193e-13 | O48: 1.000435193e-13 | Q48: 25300 | R48: 1.000435193e-13
I49: 25350 | J49: 2.420876612e-12 | M49: 25350 | N49: 1.030821167e-13 | O49: 1.030821167e-13 | Q49: 25350 | R49: 1.030821167e-13
I50: 25400 | J50: 2.491642697e-12 | M50: 25400 | N50: 1.062105961e-13 | O50: 1.062105961e-13 | Q50: 25400 | R50: 1.062105961e-13
I51: 25450 | J51: 2.564413278e-12 | M51: 25450 | N51: 1.094315415e-13 | O51: 1.094315415e-13 | Q51: 25450 | R51: 1.094315415e-13
I52: 25500 | J52: 2.639243204e-12 | M52: 25500 | N52: 1.127476088e-13 | O52: 1.127476088e-13 | Q52: 25500 | R52: 1.127476088e-13
I53: 25550 | J53: 2.716188771e-12 | M53: 25550 | N53: 1.161615276e-13 | O53: 1.161615276e-13 | Q53: 25550 | R53: 1.161615276e-13
I54: 25600 | J54: 2.795307758e-12 | M54: 25600 | N54: 1.196761038e-13 | O54: 1.196761038e-13 | Q54: 25600 | R54: 1.196761038e-13
I55: 25650 | J55: 2.876659459e-12 | M55: 25650 | N55: 1.232942209e-13 | O55: 1.232942209e-13 | Q55: 25650 | R55: 1.232942209e-13
I56: 25700 | J56: 2.960304725e-12 | M56: 25700 | N56: 1.270188427e-13 | O56: 1.270188427e-13 | Q56: 25700 | R56: 1.270188427e-13
I57: 25750 | J57: 3.046306005e-12 | M57: 25750 | N57: 1.308530153e-13 | O57: 1.308530153e-13 | Q57: 25750 | R57: 1.308530153e-13
I58: 25800 | J58: 3.134727382e-12 | M58: 25800 | N58: 1.347998689e-13 | O58: 1.347998689e-13 | Q58: 25800 | R58: 1.347998689e-13
I59: 25850 | J59: 3.225634615e-12 | M59: 25850 | N59: 1.388626206e-13 | O59: 1.388626206e-13 | Q59: 25850 | R59: 1.388626206e-13
I60: 25900 | J60: 3.319095184e-12 | M60: 25900 | N60: 1.430445765e-13 | O60: 1.430445765e-13 | Q60: 25900 | R60: 1.430445765e-13
I61: 25950 | J61: 3.415178328e-12 | M61: 25950 | N61: 1.473491339e-13 | O61: 1.473491339e-13 | Q61: 25950 | R61: 1.473491339e-13
I62: 26000 | J62: 3.513955095e-12 | M62: 26000 | N62: 1.517797841e-13 | O62: 1.517797841e-13 | Q62: 26000 | R62: 1.517797841e-13
I63: 26050 | J63: 3.615498381e-12 | M63: 26050 | N63: 1.563401147e-13 | O63: 1.563401147e-13 | Q63: 26050 | R63: 1.563401147e-13
I64: 26100 | J64: 3.71988298e-12 | M64: 26100 | N64: 1.610338119e-13 | O64: 1.610338119e-13 | Q64: 26100 | R64: 1.610338119e-13
I65: 26150 | J65: 3.82718563e-12 | M65: 26150 | N65: 1.658646639e-13 | O65: 1.658646639e-13 | Q65: 26150 | R65: 1.658646639e-13
I66: 26200 | J66: 3.937485063e-12 | M66: 26200 | N66: 1.708365627e-13 | O66: 1.708365627e-13 | Q66: 26200 | R66: 1.708365627e-13
I67: 26250 | J67: =_xlfn.NORM.DIST(I67,$B$3,$B$4,0) -> 4.050862052e-12 | K67: =IF(I67>=$B$5,J67,"") ->  | M67: 26250 | N67: =_xlfn.NORM.DIST(M67,$B$10,$B$11,0) -> 1.759535073e-13 | O67: =IF(M67<=$B$12,N67,"") -> 1.759535073e-13 | Q67: 26250 | R67: =_xlfn.NORM.DIST(Q67,$B$10,$B$11,0) -> 1.759535073e-13 | S67: =IF(AND(Q67>=$B$19,Q67<=$B$20),R67,"") -> 
I68: 26300 | J68: 4.167399461e-12 | M68: 26300 | N68: 1.812196068e-13 | O68: 1.812196068e-13 | Q68: 26300 | R68: 1.812196068e-13
I69: 26350 | J69: 4.287182301e-12 | M69: 26350 | N69: 1.866390828e-13 | O69: 1.866390828e-13 | Q69: 26350 | R69: 1.866390828e-13
I70: 26400 | J70: 4.410297779e-12 | M70: 26400 | N70: 1.922162726e-13 | O70: 1.922162726e-13 | Q70: 26400 | R70: 1.922162726e-13
I71: 26450 | J71: 4.536835356e-12 | M71: 26450 | N71: 1.979556323e-13 | O71: 1.979556323e-13 | Q71: 26450 | R71: 1.979556323e-13
I72: 26500 | J72: 4.666886798e-12 | M72: 26500 | N72: 2.038617401e-13 | O72: 2.038617401e-13 | Q72: 26500 | R72: 2.038617401e-13
I73: 26550 | J73: 4.800546237e-12 | M73: 26550 | N73: 2.09939299e-13 | O73: 2.09939299e-13 | Q73: 26550 | R73: 2.09939299e-13
I74: 26600 | J74: 4.937910227e-12 | M74: 26600 | N74: 2.161931407e-13 | O74: 2.161931407e-13 | Q74: 26600 | R74: 2.161931407e-13
I75: 26650 | J75: 5.079077805e-12 | M75: 26650 | N75: 2.226282286e-13 | O75: 2.226282286e-13 | Q75: 26650 | R75: 2.226282286e-13
I76: 26700 | J76: 5.224150551e-12 | M76: 26700 | N76: 2.292496614e-13 | O76: 2.292496614e-13 | Q76: 26700 | R76: 2.292496614e-13
I77: 26750 | J77: 5.373232651e-12 | M77: 26750 | N77: 2.360626765e-13 | O77: 2.360626765e-13 | Q77: 26750 | R77: 2.360626765e-13
I78: 26800 | J78: 5.526430958e-12 | M78: 26800 | N78: 2.430726541e-13 | O78: 2.430726541e-13 | Q78: 26800 | R78: 2.430726541e-13
I79: 26850 | J79: 5.683855063e-12 | M79: 26850 | N79: 2.502851204e-13 | O79: 2.502851204e-13 | Q79: 26850 | R79: 2.502851204e-13
I80: 26900 | J80: 5.845617357e-12 | M80: 26900 | N80: 2.577057517e-13 | O80: 2.577057517e-13 | Q80: 26900 | R80: 2.577057517e-13
I81: 26950 | J81: 6.011833102e-12 | M81: 26950 | N81: 2.653403782e-13 | O81: 2.653403782e-13 | Q81: 26950 | R81: 2.653403782e-13
I82: 27000 | J82: 6.1826205e-12 | M82: 27000 | N82: 2.731949884e-13 | O82: 2.731949884e-13 | Q82: 27000 | R82: 2.731949884e-13
I83: 27050 | J83: 6.358100764e-12 | M83: 27050 | N83: 2.812757327e-13 | O83: 2.812757327e-13 | Q83: 27050 | R83: 2.812757327e-13
I84: 27100 | J84: 6.538398192e-12 | M84: 27100 | N84: 2.89588928e-13 | O84: 2.89588928e-13 | Q84: 27100 | R84: 2.89588928e-13
I85: 27150 | J85: 6.723640243e-12 | M85: 27150 | N85: 2.981410617e-13 | O85: 2.981410617e-13 | Q85: 27150 | R85: 2.981410617e-13
I86: 27200 | J86: 6.913957612e-12 | M86: 27200 | N86: 3.069387968e-13 | O86: 3.069387968e-13 | Q86: 27200 | R86: 3.069387968e-13
I87: 27250 | J87: 7.109484309e-12 | M87: 27250 | N87: 3.159889756e-13 | O87: 3.159889756e-13 | Q87: 27250 | R87: 3.159889756e-13
I88: 27300 | J88: 7.310357738e-12 | M88: 27300 | N88: 3.25298625e-13 | O88: 3.25298625e-13 | Q88: 27300 | R88: 3.25298625e-13
I89: 27350 | J89: 7.516718783e-12 | M89: 27350 | N89: 3.348749613e-13 | O89: 3.348749613e-13 | Q89: 27350 | R89: 3.348749613e-13
I90: 27400 | J90: 7.728711889e-12 | M90: 27400 | N90: 3.447253944e-13 | O90: 3.447253944e-13 | Q90: 27400 | R90: 3.447253944e-13
I91: 27450 | J91: 7.946485145e-12 | M91: 27450 | N91: 3.548575339e-13 | O91: 3.548575339e-13 | Q91: 27450 | R91: 3.548575339e-13
I92: 27500 | J92: 8.170190379e-12 | M92: 27500 | N92: 3.652791932e-13 | O92: 3.652791932e-13 | Q92: 27500 | R92: 3.652791932e-13
I93: 27550 | J93: 8.399983241e-12 | M93: 27550 | N93: 3.759983957e-13 | O93: 3.759983957e-13 | Q93: 27550 | R93: 3.759983957e-13
I94: 27600 | J94: 8.636023301e-12 | M94: 27600 | N94: 3.870233795e-13 | O94: 3.870233795e-13 | Q94: 27600 | R94: 3.870233795e-13
I95: 27650 | J95: 8.878474136e-12 | M95: 27650 | N95: 3.983626034e-13 | O95: 3.983626034e-13 | Q95: 27650 | R95: 3.983626034e-13
I96: 27700 | J96: 9.127503434e-12 | M96: 27700 | N96: 4.100247524e-13 | O96: 4.100247524e-13 | Q96: 27700 | R96: 4.100247524e-13
I97: 27750 | J97: 9.383283084e-12 | M97: 27750 | N97: 4.220187436e-13 | O97: 4.220187436e-13 | Q97: 27750 | R97: 4.220187436e-13
I98: 27800 | J98: 9.645989284e-12 | M98: 27800 | N98: 4.343537321e-13 | O98: 4.343537321e-13 | Q98: 27800 | R98: 4.343537321e-13
I99: 27850 | J99: 9.91580264e-12 | M99: 27850 | N99: 4.470391171e-13 | O99: 4.470391171e-13 | Q99: 27850 | R99: 4.470391171e-13
I100: 27900 | J100: 1.019290827e-11 | M100: 27900 | N100: 4.600845484e-13 | O100: 4.600845484e-13 | Q100: 27900 | R100: 4.600845484e-13
I101: 27950 | J101: 1.047749591e-11 | M101: 27950 | N101: 4.734999325e-13 | O101: 4.734999325e-13 | Q101: 27950 | R101: 4.734999325e-13
I102: 28000 | J102: 1.076976004e-11 | M102: 28000 | N102: 4.872954394e-13 | O102: 4.872954394e-13 | Q102: 28000 | R102: 4.872954394e-13
I103: 28050 | J103: 1.106989997e-11 | M103: 28050 | N103: 5.014815093e-13 | O103: 5.014815093e-13 | Q103: 28050 | R103: 5.014815093e-13
I104: 28100 | J104: 1.137811998e-11 | M104: 28100 | N104: 5.160688596e-13 | O104: 5.160688596e-13 | Q104: 28100 | R104: 5.160688596e-13
I105: 28150 | J105: 1.16946294e-11 | M105: 28150 | N105: 5.310684916e-13 | O105: 5.310684916e-13 | Q105: 28150 | R105: 5.310684916e-13
I106: 28200 | J106: 1.201964279e-11 | M106: 28200 | N106: 5.464916984e-13 | O106: 5.464916984e-13 | Q106: 28200 | R106: 5.464916984e-13
I107: 28250 | J107: 1.235338001e-11 | M107: 28250 | N107: 5.623500716e-13 | O107: 5.623500716e-13 | Q107: 28250 | R107: 5.623500716e-13
I108: 28300 | J108: 1.269606637e-11 | M108: 28300 | N108: 5.786555095e-13 | O108: 5.786555095e-13 | Q108: 28300 | R108: 5.786555095e-13
I109: 28350 | J109: 1.304793274e-11 | M109: 28350 | N109: 5.954202247e-13 | O109: 5.954202247e-13 | Q109: 28350 | R109: 5.954202247e-13
I110: 28400 | J110: 1.340921572e-11 | M110: 28400 | N110: 6.12656752e-13 | O110: 6.12656752e-13 | Q110: 28400 | R110: 6.12656752e-13
I111: 28450 | J111: 1.378015772e-11 | M111: 28450 | N111: 6.303779565e-13 | O111: 6.303779565e-13 | Q111: 28450 | R111: 6.303779565e-13
I112: 28500 | J112: 1.416100713e-11 | M112: 28500 | N112: 6.485970424e-13 | O112: 6.485970424e-13 | Q112: 28500 | R112: 6.485970424e-13
I113: 28550 | J113: 1.455201847e-11 | M113: 28550 | N113: 6.673275613e-13 | O113: 6.673275613e-13 | Q113: 28550 | R113: 6.673275613e-13
I114: 28600 | J114: 1.495345252e-11 | M114: 28600 | N114: 6.865834207e-13 | O114: 6.865834207e-13 | Q114: 28600 | R114: 6.865834207e-13
I115: 28650 | J115: 1.536557643e-11 | M115: 28650 | N115: 7.063788936e-13 | O115: 7.063788936e-13 | Q115: 28650 | R115: 7.063788936e-13
I116: 28700 | J116: 1.578866395e-11 | M116: 28700 | N116: 7.267286274e-13 | O116: 7.267286274e-13 | Q116: 28700 | R116: 7.267286274e-13
I117: 28750 | J117: 1.62229955e-11 | M117: 28750 | N117: 7.476476534e-13 | O117: 7.476476534e-13 | Q117: 28750 | R117: 7.476476534e-13
I118: 28800 | J118: 1.666885838e-11 | M118: 28800 | N118: 7.691513963e-13 | O118: 7.691513963e-13 | Q118: 28800 | R118: 7.691513963e-13
I119: 28850 | J119: 1.712654691e-11 | M119: 28850 | N119: 7.912556846e-13 | O119: 7.912556846e-13 | Q119: 28850 | R119: 7.912556846e-13
I120: 28900 | J120: 1.759636261e-11 | M120: 28900 | N120: 8.139767601e-13 | O120: 8.139767601e-13 | Q120: 28900 | R120: 8.139767601e-13
I121: 28950 | J121: 1.807861433e-11 | M121: 28950 | N121: 8.373312888e-13 | O121: 8.373312888e-13 | Q121: 28950 | R121: 8.373312888e-13
I122: 29000 | J122: 1.857361845e-11 | M122: 29000 | N122: 8.613363714e-13 | O122: 8.613363714e-13 | Q122: 29000 | R122: 8.613363714e-13
I123: 29050 | J123: 1.908169905e-11 | M123: 29050 | N123: 8.860095539e-13 | O123: 8.860095539e-13 | Q123: 29050 | R123: 8.860095539e-13
I124: 29100 | J124: 1.960318809e-11 | M124: 29100 | N124: 9.113688393e-13 | O124: 9.113688393e-13 | Q124: 29100 | R124: 9.113688393e-13
I125: 29150 | J125: 2.013842559e-11 | M125: 29150 | N125: 9.374326988e-13 | O125: 9.374326988e-13 | Q125: 29150 | R125: 9.374326988e-13
I126: 29200 | J126: 2.068775979e-11 | M126: 29200 | N126: 9.64220083e-13 | O126: 9.64220083e-13 | Q126: 29200 | R126: 9.64220083e-13
I127: 29250 | J127: 2.125154738e-11 | M127: 29250 | N127: 9.917504349e-13 | O127: 9.917504349e-13 | Q127: 29250 | R127: 9.917504349e-13
I128: 29300 | J128: 2.183015369e-11 | M128: 29300 | N128: 1.020043701e-12 | O128: 1.020043701e-12 | Q128: 29300 | R128: 1.020043701e-12
I129: 29350 | J129: 2.242395284e-11 | M129: 29350 | N129: 1.049120345e-12 | O129: 1.049120345e-12 | Q129: 29350 | R129: 1.049120345e-12
I130: 29400 | J130: 2.3033328e-11 | M130: 29400 | N130: 1.07900136e-12 | O130: 1.07900136e-12 | Q130: 29400 | R130: 1.07900136e-12
I131: 29450 | J131: =_xlfn.NORM.DIST(I131,$B$3,$B$4,0) -> 2.365867158e-11 | K131: =IF(I131>=$B$5,J131,"") ->  | M131: 29450 | N131: =_xlfn.NORM.DIST(M131,$B$10,$B$11,0) -> 1.109708281e-12 | O131: =IF(M131<=$B$12,N131,"") -> 1.109708281e-12 | Q131: 29450 | R131: =_xlfn.NORM.DIST(Q131,$B$10,$B$11,0) -> 1.109708281e-12 | S131: =IF(AND(Q131>=$B$19,Q131<=$B$20),R131,"") -> 
I132: 29500 | J132: 2.430038541e-11 | M132: 29500 | N132: 1.141263201e-12 | O132: 1.141263201e-12 | Q132: 29500 | R132: 1.141263201e-12
I133: 29550 | J133: 2.4958881e-11 | M133: 29550 | N133: 1.173688781e-12 | O133: 1.173688781e-12 | Q133: 29550 | R133: 1.173688781e-12
I134: 29600 | J134: 2.563457973e-11 | M134: 29600 | N134: 1.207008266e-12 | O134: 1.207008266e-12 | Q134: 29600 | R134: 1.207008266e-12
I135: 29650 | J135: 2.632791309e-11 | M135: 29650 | N135: 1.241245501e-12 | O135: 1.241245501e-12 | Q135: 29650 | R135: 1.241245501e-12
I136: 29700 | J136: 2.703932292e-11 | M136: 29700 | N136: 1.276424944e-12 | O136: 1.276424944e-12 | Q136: 29700 | R136: 1.276424944e-12
I137: 29750 | J137: 2.776926159e-11 | M137: 29750 | N137: 1.312571681e-12 | O137: 1.312571681e-12 | Q137: 29750 | R137: 1.312571681e-12
I138: 29800 | J138: 2.851819232e-11 | M138: 29800 | N138: 1.349711441e-12 | O138: 1.349711441e-12 | Q138: 29800 | R138: 1.349711441e-12
I139: 29850 | J139: 2.928658938e-11 | M139: 29850 | N139: 1.387870615e-12 | O139: 1.387870615e-12 | Q139: 29850 | R139: 1.387870615e-12
I140: 29900 | J140: 3.007493831e-11 | M140: 29900 | N140: 1.427076268e-12 | O140: 1.427076268e-12 | Q140: 29900 | R140: 1.427076268e-12
I141: 29950 | J141: 3.088373626e-11 | M141: 29950 | N141: 1.46735616e-12 | O141: 1.46735616e-12 | Q141: 29950 | R141: 1.46735616e-12
I142: 30000 | J142: 3.171349217e-11 | M142: 30000 | N142: 1.508738758e-12 | O142: 1.508738758e-12 | Q142: 30000 | R142: 1.508738758e-12
I143: 30050 | J143: 3.256472707e-11 | M143: 30050 | N143: 1.551253258e-12 | O143: 1.551253258e-12 | Q143: 30050 | R143: 1.551253258e-12
I144: 30100 | J144: 3.343797435e-11 | M144: 30100 | N144: 1.5949296e-12 | O144: 1.5949296e-12 | Q144: 30100 | R144: 1.5949296e-12
I145: 30150 | J145: 3.433378005e-11 | M145: 30150 | N145: 1.639798489e-12 | O145: 1.639798489e-12 | Q145: 30150 | R145: 1.639798489e-12
I146: 30200 | J146: 3.525270313e-11 | M146: 30200 | N146: 1.685891409e-12 | O146: 1.685891409e-12 | Q146: 30200 | R146: 1.685891409e-12
I147: 30250 | J147: 3.619531573e-11 | M147: 30250 | N147: 1.733240648e-12 | O147: 1.733240648e-12 | Q147: 30250 | R147: 1.733240648e-12
I148: 30300 | J148: 3.716220353e-11 | M148: 30300 | N148: 1.781879311e-12 | O148: 1.781879311e-12 | Q148: 30300 | R148: 1.781879311e-12
I149: 30350 | J149: 3.815396601e-11 | M149: 30350 | N149: 1.831841346e-12 | O149: 1.831841346e-12 | Q149: 30350 | R149: 1.831841346e-12
I150: 30400 | J150: 3.917121676e-11 | M150: 30400 | N150: 1.883161562e-12 | O150: 1.883161562e-12 | Q150: 30400 | R150: 1.883161562e-12
I151: 30450 | J151: 4.021458379e-11 | M151: 30450 | N151: 1.93587565e-12 | O151: 1.93587565e-12 | Q151: 30450 | R151: 1.93587565e-12
I152: 30500 | J152: 4.128470989e-11 | M152: 30500 | N152: 1.990020202e-12 | O152: 1.990020202e-12 | Q152: 30500 | R152: 1.990020202e-12
I153: 30550 | J153: 4.238225289e-11 | M153: 30550 | N153: 2.045632737e-12 | O153: 2.045632737e-12 | Q153: 30550 | R153: 2.045632737e-12
I154: 30600 | J154: 4.350788608e-11 | M154: 30600 | N154: 2.102751723e-12 | O154: 2.102751723e-12 | Q154: 30600 | R154: 2.102751723e-12
I155: 30650 | J155: 4.466229846e-11 | M155: 30650 | N155: 2.161416595e-12 | O155: 2.161416595e-12 | Q155: 30650 | R155: 2.161416595e-12
I156: 30700 | J156: 4.584619516e-11 | M156: 30700 | N156: 2.221667787e-12 | O156: 2.221667787e-12 | Q156: 30700 | R156: 2.221667787e-12
I157: 30750 | J157: 4.706029777e-11 | M157: 30750 | N157: 2.283546745e-12 | O157: 2.283546745e-12 | Q157: 30750 | R157: 2.283546745e-12
I158: 30800 | J158: 4.830534469e-11 | M158: 30800 | N158: 2.347095964e-12 | O158: 2.347095964e-12 | Q158: 30800 | R158: 2.347095964e-12
I159: 30850 | J159: 4.958209153e-11 | M159: 30850 | N159: 2.412359002e-12 | O159: 2.412359002e-12 | Q159: 30850 | R159: 2.412359002e-12
I160: 30900 | J160: 5.089131146e-11 | M160: 30900 | N160: 2.479380513e-12 | O160: 2.479380513e-12 | Q160: 30900 | R160: 2.479380513e-12
I161: 30950 | J161: 5.22337956e-11 | M161: 30950 | N161: 2.54820627e-12 | O161: 2.54820627e-12 | Q161: 30950 | R161: 2.54820627e-12
I162: 31000 | J162: 5.361035345e-11 | M162: 31000 | N162: 2.618883194e-12 | O162: 2.618883194e-12 | Q162: 31000 | R162: 2.618883194e-12
I163: 31050 | J163: 5.502181323e-11 | M163: 31050 | N163: 2.691459377e-12 | O163: 2.691459377e-12 | Q163: 31050 | R163: 2.691459377e-12
I164: 31100 | J164: 5.646902235e-11 | M164: 31100 | N164: 2.765984117e-12 | O164: 2.765984117e-12 | Q164: 31100 | R164: 2.765984117e-12
I165: 31150 | J165: 5.795284779e-11 | M165: 31150 | N165: 2.842507941e-12 | O165: 2.842507941e-12 | Q165: 31150 | R165: 2.842507941e-12
I166: 31200 | J166: 5.947417655e-11 | M166: 31200 | N166: 2.921082638e-12 | O166: 2.921082638e-12 | Q166: 31200 | R166: 2.921082638e-12
I167: 31250 | J167: 6.103391607e-11 | M167: 31250 | N167: 3.001761287e-12 | O167: 3.001761287e-12 | Q167: 31250 | R167: 3.001761287e-12
I168: 31300 | J168: 6.263299468e-11 | M168: 31300 | N168: 3.084598288e-12 | O168: 3.084598288e-12 | Q168: 31300 | R168: 3.084598288e-12
I169: 31350 | J169: 6.427236205e-11 | M169: 31350 | N169: 3.169649395e-12 | O169: 3.169649395e-12 | Q169: 31350 | R169: 3.169649395e-12
I170: 31400 | J170: 6.595298969e-11 | M170: 31400 | N170: 3.256971747e-12 | O170: 3.256971747e-12 | Q170: 31400 | R170: 3.256971747e-12
I171: 31450 | J171: 6.767587134e-11 | M171: 31450 | N171: 3.3466239e-12 | O171: 3.3466239e-12 | Q171: 31450 | R171: 3.3466239e-12
I172: 31500 | J172: 6.944202354e-11 | M172: 31500 | N172: 3.438665864e-12 | O172: 3.438665864e-12 | Q172: 31500 | R172: 3.438665864e-12
I173: 31550 | J173: 7.125248607e-11 | M173: 31550 | N173: 3.533159133e-12 | O173: 3.533159133e-12 | Q173: 31550 | R173: 3.533159133e-12
I174: 31600 | J174: 7.310832247e-11 | M174: 31600 | N174: 3.630166726e-12 | O174: 3.630166726e-12 | Q174: 31600 | R174: 3.630166726e-12
I175: 31650 | J175: 7.501062054e-11 | M175: 31650 | N175: 3.729753215e-12 | O175: 3.729753215e-12 | Q175: 31650 | R175: 3.729753215e-12
I176: 31700 | J176: 7.696049288e-11 | M176: 31700 | N176: 3.83198477e-12 | O176: 3.83198477e-12 | Q176: 31700 | R176: 3.83198477e-12
I177: 31750 | J177: 7.895907741e-11 | M177: 31750 | N177: 3.936929191e-12 | O177: 3.936929191e-12 | Q177: 31750 | R177: 3.936929191e-12
I178: 31800 | J178: 8.100753789e-11 | M178: 31800 | N178: 4.044655949e-12 | O178: 4.044655949e-12 | Q178: 31800 | R178: 4.044655949e-12
I179: 31850 | J179: 8.310706454e-11 | M179: 31850 | N179: 4.155236226e-12 | O179: 4.155236226e-12 | Q179: 31850 | R179: 4.155236226e-12
I180: 31900 | J180: 8.525887453e-11 | M180: 31900 | N180: 4.268742953e-12 | O180: 4.268742953e-12 | Q180: 31900 | R180: 4.268742953e-12
I181: 31950 | J181: 8.746421259e-11 | M181: 31950 | N181: 4.385250853e-12 | O181: 4.385250853e-12 | Q181: 31950 | R181: 4.385250853e-12
I182: 32000 | J182: 8.972435162e-11 | M182: 32000 | N182: 4.50483648e-12 | O182: 4.50483648e-12 | Q182: 32000 | R182: 4.50483648e-12
I183: 32050 | J183: 9.204059325e-11 | M183: 32050 | N183: 4.627578269e-12 | O183: 4.627578269e-12 | Q183: 32050 | R183: 4.627578269e-12
I184: 32100 | J184: 9.441426847e-11 | M184: 32100 | N184: 4.753556571e-12 | O184: 4.753556571e-12 | Q184: 32100 | R184: 4.753556571e-12
I185: 32150 | J185: 9.684673823e-11 | M185: 32150 | N185: 4.882853704e-12 | O185: 4.882853704e-12 | Q185: 32150 | R185: 4.882853704e-12
I186: 32200 | J186: 9.933939413e-11 | M186: 32200 | N186: 5.015553997e-12 | O186: 5.015553997e-12 | Q186: 32200 | R186: 5.015553997e-12
I187: 32250 | J187: 1.01893659e-10 | M187: 32250 | N187: 5.151743837e-12 | O187: 5.151743837e-12 | Q187: 32250 | R187: 5.151743837e-12
I188: 32300 | J188: 1.045109876e-10 | M188: 32300 | N188: 5.291511718e-12 | O188: 5.291511718e-12 | Q188: 32300 | R188: 5.291511718e-12
I189: 32350 | J189: 1.071928674e-10 | M189: 32350 | N189: 5.434948287e-12 | O189: 5.434948287e-12 | Q189: 32350 | R189: 5.434948287e-12
I190: 32400 | J190: 1.099408189e-10 | M190: 32400 | N190: 5.582146399e-12 | O190: 5.582146399e-12 | Q190: 32400 | R190: 5.582146399e-12
I191: 32450 | J191: 1.127563968e-10 | M191: 32450 | N191: 5.733201164e-12 | O191: 5.733201164e-12 | Q191: 32450 | R191: 5.733201164e-12
I192: 32500 | J192: 1.156411904e-10 | M192: 32500 | N192: 5.88821e-12 | O192: 5.88821e-12 | Q192: 32500 | R192: 5.88821e-12
I193: 32550 | J193: 1.185968244e-10 | M193: 32550 | N193: 6.04727269e-12 | O193: 6.04727269e-12 | Q193: 32550 | R193: 6.04727269e-12
I194: 32600 | J194: 1.216249599e-10 | M194: 32600 | N194: 6.210491432e-12 | O194: 6.210491432e-12 | Q194: 32600 | R194: 6.210491432e-12
I195: 32650 | J195: =_xlfn.NORM.DIST(I195,$B$3,$B$4,0) -> 1.247272946e-10 | K195: =IF(I195>=$B$5,J195,"") ->  | M195: 32650 | N195: =_xlfn.NORM.DIST(M195,$B$10,$B$11,0) -> 6.377970898e-12 | O195: =IF(M195<=$B$12,N195,"") -> 6.377970898e-12 | Q195: 32650 | R195: =_xlfn.NORM.DIST(Q195,$B$10,$B$11,0) -> 6.377970898e-12 | S195: =IF(AND(Q195>=$B$19,Q195<=$B$20),R195,"") -> 
I196: 32700 | J196: 1.27905564e-10 | M196: 32700 | N196: 6.54981829e-12 | O196: 6.54981829e-12 | Q196: 32700 | R196: 6.54981829e-12
I197: 32750 | J197: 1.311615423e-10 | M197: 32750 | N197: 6.726143399e-12 | O197: 6.726143399e-12 | Q197: 32750 | R197: 6.726143399e-12
I198: 32800 | J198: 1.344970426e-10 | M198: 32800 | N198: 6.907058663e-12 | O198: 6.907058663e-12 | Q198: 32800 | R198: 6.907058663e-12
I199: 32850 | J199: 1.379139184e-10 | M199: 32850 | N199: 7.09267923e-12 | O199: 7.09267923e-12 | Q199: 32850 | R199: 7.09267923e-12
I200: 32900 | J200: 1.41414064e-10 | M200: 32900 | N200: 7.283123019e-12 | O200: 7.283123019e-12 | Q200: 32900 | R200: 7.283123019e-12
... 2202 more rows

Sheet D
A1: For a particular Disney Ride, the mean time to wait in line is 22 minutes (Distribution follows an Exponential Distribution pattern).
A2: mu | B2: 22 | C2: time to stand in line
A3: x | B3: 15
A4: ="P(x<="&$B$3&")" -> P(x<=15) | C4: .
A5: ="P(x<="&$B$3&")" -> P(x<=15) | D5: =EXPON.DIST(B3,1/B2,1)
A6: x | B6: 25
A7: ="P(x>="&$B$6&")" -> P(x>=25) | C7: .
A8: ="P(x>="&$B$6&")" -> P(x>=25) | D8: =1-EXPON.DIST(B6,1/B2,1)
A9: ="P("&$B$3&"<=x<="&$B$6&")" -> P(15<=x<=25) | C9: .
A10: ="P("&$B$3&"<=x<="&$B$6&")" -> P(15<=x<=25) | D10: =EXPON.DIST(B6,1/B2,1)-EXPON.DIST(B3,1/B2,1)
A20: x | B20: f(x) | C20: =A4 -> P(x<=15) | D20: =A7 -> P(x>=25) | E20: =A10 -> P(15<=x<=25)
A21: 0 | B21: =_xlfn.EXPON.DIST(A21,1/$B$2,0) -> 0.04545454545 | C21: =IF($C$4<>"",IF(A21<=$B$3,B21,""),"") -> 0.04545454545 | D21: =IF($C$7<>"",IF(A21>=$B$6,B21,""),"") ->  | E21: =IF($C$9<>"",IF(AND(A21>=$B$3,A21<=$B$6),B21,""),"") -> 
A22: =A21+0.1 -> 0.1 | B22: =_xlfn.EXPON.DIST(A22,1/$B$2,0) -> 0.04524840275 | C22: =IF($C$4<>"",IF(A22<=$B$3,B22,""),"") -> 0.04524840275 | D22: =IF($C$7<>"",IF(A22>=$B$6,B22,""),"") ->  | E22: =IF($C$9<>"",IF(AND(A22>=$B$3,A22<=$B$6),B22,""),"") -> 
A23: =A22+0.1 -> 0.2 | B23: 0.04504319492 | C23: 0.04504319492
A24: 0.3 | B24: 0.04483891775 | C24: 0.04483891775
A25: 0.4 | B25: 0.04463556699 | C25: 0.04463556699
A26: 0.5 | B26: 0.04443313847 | C26: 0.04443313847
A27: 0.6 | B27: 0.04423162798 | C27: 0.04423162798
A28: 0.7 | B28: 0.04403103137 | C28: 0.04403103137
A29: 0.8 | B29: 0.0438313445 | C29: 0.0438313445
A30: 0.9 | B30: 0.04363256323 | C30: 0.04363256323
A31: 1 | B31: 0.04343468347 | C31: 0.04343468347
A32: 1.1 | B32: 0.04323770111 | C32: 0.04323770111
A33: 1.2 | B33: 0.0430416121 | C33: 0.0430416121
A34: 1.3 | B34: 0.04284641238 | C34: 0.04284641238
A35: 1.4 | B35: 0.04265209792 | C35: 0.04265209792
A36: 1.5 | B36: 0.0424586647 | C36: 0.0424586647
A37: 1.6 | B37: 0.04226610873 | C37: 0.04226610873
A38: 1.7 | B38: 0.04207442603 | C38: 0.04207442603
A39: 1.8 | B39: 0.04188361263 | C39: 0.04188361263
A40: 1.9 | B40: 0.0416936646 | C40: 0.0416936646
A41: 2 | B41: 0.04150457801 | C41: 0.04150457801
A42: 2.1 | B42: 0.04131634896 | C42: 0.04131634896
A43: 2.2 | B43: 0.04112897355 | C43: 0.04112897355
A44: 2.3 | B44: 0.04094244791 | C44: 0.04094244791
A45: 2.4 | B45: 0.04075676819 | C45: 0.04075676819
A46: 2.5 | B46: 0.04057193056 | C46: 0.04057193056
A47: 2.6 | B47: 0.04038793119 | C47: 0.04038793119
A48: 2.7 | B48: 0.04020476628 | C48: 0.04020476628
A49: 2.8 | B49: 0.04002243206 | C49: 0.04002243206
A50: 2.9 | B50: 0.03984092474 | C50: 0.03984092474
A51: 3 | B51: 0.03966024058 | C51: 0.03966024058
A52: 3.1 | B52: 0.03948037586 | C52: 0.03948037586
A53: 3.2 | B53: 0.03930132684 | C53: 0.03930132684
A54: 3.3 | B54: 0.03912308984 | C54: 0.03912308984
A55: 3.4 | B55: 0.03894566116 | C55: 0.03894566116
A56: 3.5 | B56: 0.03876903715 | C56: 0.03876903715
A57: 3.6 | B57: 0.03859321416 | C57: 0.03859321416
A58: 3.7 | B58: 0.03841818854 | C58: 0.03841818854
A59: 3.8 | B59: 0.0382439567 | C59: 0.0382439567
A60: 3.9 | B60: 0.03807051501 | C60: 0.03807051501
A61: 4 | B61: 0.03789785991 | C61: 0.03789785991
A62: 4.1 | B62: 0.03772598783 | C62: 0.03772598783
A63: 4.2 | B63: 0.03755489521 | C63: 0.03755489521
A64: 4.3 | B64: 0.03738457851 | C64: 0.03738457851
A65: 4.4 | B65: 0.03721503423 | C65: 0.03721503423
A66: 4.5 | B66: 0.03704625886 | C66: 0.03704625886
A67: 4.6 | B67: 0.0368782489 | C67: 0.0368782489
A68: 4.7 | B68: 0.03671100089 | C68: 0.03671100089
A69: 4.8 | B69: 0.03654451138 | C69: 0.03654451138
A70: 4.9 | B70: 0.03637877692 | C70: 0.03637877692
A71: 5 | B71: 0.03621379409 | C71: 0.03621379409
A72: 5.1 | B72: 0.03604955947 | C72: 0.03604955947
A73: 5.2 | B73: 0.03588606969 | C73: 0.03588606969
A74: 5.3 | B74: 0.03572332135 | C74: 0.03572332135
A75: 5.4 | B75: 0.0355613111 | C75: 0.0355613111
A76: 5.5 | B76: 0.03540003559 | C76: 0.03540003559
A77: 5.6 | B77: 0.03523949149 | C77: 0.03523949149
A78: 5.7 | B78: 0.03507967548 | C78: 0.03507967548
A79: 5.8 | B79: 0.03492058425 | C79: 0.03492058425
A80: 5.9 | B80: 0.03476221453 | C80: 0.03476221453
A81: 6 | B81: 0.03460456303 | C81: 0.03460456303
A82: 6.1 | B82: 0.03444762651 | C82: 0.03444762651
A83: 6.2 | B83: 0.03429140171 | C83: 0.03429140171
A84: 6.3 | B84: 0.03413588542 | C84: 0.03413588542
A85: 6.4 | B85: 0.03398107441 | C85: 0.03398107441
A86: 6.5 | B86: =_xlfn.EXPON.DIST(A86,1/$B$2,0) -> 0.0338269655 | C86: =IF($C$4<>"",IF(A86<=$B$3,B86,""),"") -> 0.0338269655 | D86: =IF($C$7<>"",IF(A86>=$B$6,B86,""),"") ->  | E86: =IF($C$9<>"",IF(AND(A86>=$B$3,A86<=$B$6),B86,""),"") -> 
A87: =A86+0.1 -> 6.6 | B87: 0.03367355549 | C87: 0.03367355549
A88: 6.7 | B88: 0.03352084121 | C88: 0.03352084121
A89: 6.8 | B89: 0.03336881952 | C89: 0.03336881952
A90: 6.9 | B90: 0.03321748726 | C90: 0.03321748726
A91: 7 | B91: 0.03306684132 | C91: 0.03306684132
A92: 7.1 | B92: 0.03291687858 | C92: 0.03291687858
A93: 7.2 | B93: 0.03276759594 | C93: 0.03276759594
A94: 7.3 | B94: 0.03261899032 | C94: 0.03261899032
A95: 7.4 | B95: 0.03247105864 | C95: 0.03247105864
A96: 7.5 | B96: 0.03232379786 | C96: 0.03232379786
A97: 7.6 | B97: 0.03217720492 | C97: 0.03217720492
A98: 7.7 | B98: 0.03203127681 | C98: 0.03203127681
A99: 7.8 | B99: 0.03188601049 | C99: 0.03188601049
A100: 7.9 | B100: 0.03174140298 | C100: 0.03174140298
A101: 8 | B101: 0.03159745129 | C101: 0.03159745129
A102: 8.1 | B102: 0.03145415244 | C102: 0.03145415244
A103: 8.2 | B103: 0.03131150347 | C103: 0.03131150347
A104: 8.3 | B104: 0.03116950143 | C104: 0.03116950143
A105: 8.4 | B105: 0.03102814339 | C105: 0.03102814339
A106: 8.5 | B106: 0.03088742642 | C106: 0.03088742642
A107: 8.6 | B107: 0.03074734763 | C107: 0.03074734763
A108: 8.7 | B108: 0.03060790412 | C108: 0.03060790412
A109: 8.8 | B109: 0.030469093 | C109: 0.030469093
A110: 8.9 | B110: 0.03033091141 | C110: 0.03033091141
A111: 9 | B111: 0.03019335649 | C111: 0.03019335649
A112: 9.1 | B112: 0.03005642541 | C112: 0.03005642541
A113: 9.2 | B113: 0.02992011532 | C113: 0.02992011532
A114: 9.3 | B114: 0.02978442342 | C114: 0.02978442342
A115: 9.4 | B115: 0.0296493469 | C115: 0.0296493469
A116: 9.5 | B116: 0.02951488298 | C116: 0.02951488298
A117: 9.6 | B117: 0.02938102886 | C117: 0.02938102886
A118: 9.7 | B118: 0.02924778179 | C118: 0.02924778179
A119: 9.8 | B119: 0.02911513902 | C119: 0.02911513902
A120: 9.9 | B120: 0.0289830978 | C120: 0.0289830978
A121: 10 | B121: 0.02885165541 | C121: 0.02885165541
A122: 10.1 | B122: 0.02872080912 | C122: 0.02872080912
A123: 10.2 | B123: 0.02859055624 | C123: 0.02859055624
A124: 10.3 | B124: 0.02846089408 | C124: 0.02846089408
A125: 10.4 | B125: 0.02833181995 | C125: 0.02833181995
A126: 10.5 | B126: 0.02820333119 | C126: 0.02820333119
A127: 10.6 | B127: 0.02807542515 | C127: 0.02807542515
A128: 10.7 | B128: 0.02794809918 | C128: 0.02794809918
A129: 10.8 | B129: 0.02782135064 | C129: 0.02782135064
A130: 10.9 | B130: 0.02769517694 | C130: 0.02769517694
A131: 11 | B131: 0.02756957544 | C131: 0.02756957544
A132: 11.1 | B132: 0.02744454357 | C132: 0.02744454357
A133: 11.2 | B133: 0.02732007873 | C133: 0.02732007873
A134: 11.3 | B134: 0.02719617836 | C134: 0.02719617836
A135: 11.4 | B135: 0.0270728399 | C135: 0.0270728399
A136: 11.5 | B136: 0.02695006079 | C136: 0.02695006079
A137: 11.6 | B137: 0.0268278385 | C137: 0.0268278385
A138: 11.7 | B138: 0.02670617051 | C138: 0.02670617051
A139: 11.8 | B139: 0.02658505429 | C139: 0.02658505429
A140: 11.9 | B140: 0.02646448736 | C140: 0.02646448736
A141: 12 | B141: 0.02634446722 | C141: 0.02634446722
A142: 12.1 | B142: 0.02622499138 | C142: 0.02622499138
A143: 12.2 | B143: 0.02610605738 | C143: 0.02610605738
A144: 12.3 | B144: 0.02598766277 | C144: 0.02598766277
A145: 12.4 | B145: 0.02586980509 | C145: 0.02586980509
A146: 12.5 | B146: 0.02575248191 | C146: 0.02575248191
A147: 12.6 | B147: 0.02563569081 | C147: 0.02563569081
A148: 12.7 | B148: 0.02551942938 | C148: 0.02551942938
A149: 12.8 | B149: 0.0254036952 | C149: 0.0254036952
A150: 12.9 | B150: =_xlfn.EXPON.DIST(A150,1/$B$2,0) -> 0.0252884859 | C150: =IF($C$4<>"",IF(A150<=$B$3,B150,""),"") -> 0.0252884859 | D150: =IF($C$7<>"",IF(A150>=$B$6,B150,""),"") ->  | E150: =IF($C$9<>"",IF(AND(A150>=$B$3,A150<=$B$6),B150,""),"") -> 
A151: =A150+0.1 -> 13 | B151: 0.02517379908 | C151: 0.02517379908
A152: 13.1 | B152: 0.02505963239 | C152: 0.02505963239
A153: 13.2 | B153: 0.02494598346 | C153: 0.02494598346
A154: 13.3 | B154: 0.02483284994 | C154: 0.02483284994
A155: 13.4 | B155: 0.0247202295 | C155: 0.0247202295
A156: 13.5 | B156: 0.02460811981 | C156: 0.02460811981
A157: 13.6 | B157: 0.02449651855 | C157: 0.02449651855
A158: 13.7 | B158: 0.02438542342 | C158: 0.02438542342
A159: 13.8 | B159: 0.02427483212 | C159: 0.02427483212
A160: 13.9 | B160: 0.02416474237 | C160: 0.02416474237
A161: 14 | B161: 0.02405515189 | C161: 0.02405515189
A162: 14.1 | B162: 0.02394605841 | C162: 0.02394605841
A163: 14.2 | B163: 0.0238374597 | C163: 0.0238374597
A164: 14.3 | B164: 0.02372935349 | C164: 0.02372935349
A165: 14.4 | B165: 0.02362173756 | C165: 0.02362173756
A166: 14.5 | B166: 0.02351460968 | C166: 0.02351460968
A167: 14.6 | B167: 0.02340796764 | C167: 0.02340796764
A168: 14.7 | B168: 0.02330180924 | C168: 0.02330180924
A169: 14.8 | B169: 0.02319613228 | C169: 0.02319613228
A170: 14.9 | B170: 0.02309093459 | C170: 0.02309093459
A171: 15 | B171: 0.02298621397 | C171: 0.02298621397 | E171: 0.02298621397
A172: 15.1 | B172: 0.02288196829 | E172: 0.02288196829
A173: 15.2 | B173: 0.02277819536 | E173: 0.02277819536
A174: 15.3 | B174: 0.02267489307 | E174: 0.02267489307
A175: 15.4 | B175: 0.02257205926 | E175: 0.02257205926
A176: 15.5 | B176: 0.02246969182 | E176: 0.02246969182
A177: 15.6 | B177: 0.02236778863 | E177: 0.02236778863
A178: 15.7 | B178: 0.02226634759 | E178: 0.02226634759
A179: 15.8 | B179: 0.0221653666 | E179: 0.0221653666
A180: 15.9 | B180: 0.02206484356 | E180: 0.02206484356
A181: 16 | B181: 0.02196477642 | E181: 0.02196477642
A182: 16.1 | B182: 0.02186516309 | E182: 0.02186516309
A183: 16.2 | B183: 0.02176600152 | E183: 0.02176600152
A184: 16.3 | B184: 0.02166728967 | E184: 0.02166728967
A185: 16.4 | B185: 0.02156902548 | E185: 0.02156902548
A186: 16.5 | B186: 0.02147120694 | E186: 0.02147120694
A187: 16.6 | B187: 0.02137383202 | E187: 0.02137383202
A188: 16.7 | B188: 0.02127689871 | E188: 0.02127689871
A189: 16.8 | B189: 0.021180405 | E189: 0.021180405
A190: 16.9 | B190: 0.02108434891 | E190: 0.02108434891
A191: 17 | B191: 0.02098872844 | E191: 0.02098872844
A192: 17.1 | B192: 0.02089354163 | E192: 0.02089354163
A193: 17.2 | B193: 0.0207987865 | E193: 0.0207987865
A194: 17.3 | B194: 0.0207044611 | E194: 0.0207044611
A195: 17.4 | B195: 0.02061056348 | E195: 0.02061056348
A196: 17.5 | B196: 0.0205170917 | E196: 0.0205170917
A197: 17.6 | B197: 0.02042404382 | E197: 0.02042404382
A198: 17.7 | B198: 0.02033141793 | E198: 0.02033141793
A199: 17.8 | B199: 0.02023921211 | E199: 0.02023921211
A200: 17.9 | B200: 0.02014742446 | E200: 0.02014742446
A201: 18 | B201: 0.02005605308 | E201: 0.02005605308
A202: 18.1 | B202: 0.01996509608 | E202: 0.01996509608
A203: 18.2 | B203: 0.01987455158 | E203: 0.01987455158
A204: 18.3 | B204: 0.01978441772 | E204: 0.01978441772
A205: 18.4 | B205: 0.01969469262 | E205: 0.01969469262
A206: 18.5 | B206: 0.01960537444 | E206: 0.01960537444
A207: 18.6 | B207: 0.01951646133 | E207: 0.01951646133
A208: 18.7 | B208: 0.01942795145 | E208: 0.01942795145
A209: 18.8 | B209: 0.01933984298 | E209: 0.01933984298
... 494 more rows

Sheet D (an)
A1: For a particular Disney Ride, the mean time to wait in line is 22 minutes (Distribution follows an Exponential Distribution pattern.
A2: mu | B2: 22 | C2: time to stand in line
A3: x | B3: 15
A4: ="P(x<="&$B$3&")" -> P(x<=15) | B4: =1-EXP(1)^(-B3/B2) -> 0.4943032926 | C4: .
A5: ="P(x<="&$B$3&")" -> P(x<=15) | B5: =_xlfn.EXPON.DIST(B3,1/B2,1) -> 0.4943032926 | D5: =EXPON.DIST(B3,1/B2,1)
A6: x | B6: 25
A7: ="P(x>="&$B$6&")" -> P(x>=25) | B7: =EXP(1)^-(B6/B2) -> 0.3209841171 | C7: .
A8: ="P(x>="&$B$6&")" -> P(x>=25) | B8: =1-_xlfn.EXPON.DIST(B6,1/B2,1) -> 0.3209841171 | D8: =1-EXPON.DIST(B6,1/B2,1)
A9: ="P("&$B$3&"<=x<="&$B$6&")" -> P(15<=x<=25) | B9: =1-B8-B5 -> 0.1847125903 | C9: .
A10: ="P("&$B$3&"<=x<="&$B$6&")" -> P(15<=x<=25) | B10: =_xlfn.EXPON.DIST(B6,1/B2,1)-EXPONDIST(B3,1/B2,1) -> 0.1847125903 | D10: =EXPON.DIST(B6,1/B2,1)-EXPON.DIST(B3,1/B2,1)
A20: x | B20: f(x) | C20: =A4 -> P(x<=15) | D20: =A7 -> P(x>=25) | E20: =A10 -> P(15<=x<=25)
A21: 0 | B21: =_xlfn.EXPON.DIST(A21,1/$B$2,0) -> 0.04545454545 | C21: =IF($C$4<>"",IF(A21<=$B$3,B21,""),"") -> 0.04545454545 | D21: =IF($C$7<>"",IF(A21>=$B$6,B21,""),"") ->  | E21: =IF($C$9<>"",IF(AND(A21>=$B$3,A21<=$B$6),B21,""),"") -> 
A22: =A21+0.1 -> 0.1 | B22: =_xlfn.EXPON.DIST(A22,1/$B$2,0) -> 0.04524840275 | C22: =IF($C$4<>"",IF(A22<=$B$3,B22,""),"") -> 0.04524840275 | D22: =IF($C$7<>"",IF(A22>=$B$6,B22,""),"") ->  | E22: =IF($C$9<>"",IF(AND(A22>=$B$3,A22<=$B$6),B22,""),"") -> 
A23: =A22+0.1 -> 0.2 | B23: 0.04504319492 | C23: 0.04504319492
A24: 0.3 | B24: 0.04483891775 | C24: 0.04483891775
A25: 0.4 | B25: 0.04463556699 | C25: 0.04463556699
A26: 0.5 | B26: 0.04443313847 | C26: 0.04443313847
A27: 0.6 | B27: 0.04423162798 | C27: 0.04423162798
A28: 0.7 | B28: 0.04403103137 | C28: 0.04403103137
A29: 0.8 | B29: 0.0438313445 | C29: 0.0438313445
A30: 0.9 | B30: 0.04363256323 | C30: 0.04363256323
A31: 1 | B31: 0.04343468347 | C31: 0.04343468347
A32: 1.1 | B32: 0.04323770111 | C32: 0.04323770111
A33: 1.2 | B33: 0.0430416121 | C33: 0.0430416121
A34: 1.3 | B34: 0.04284641238 | C34: 0.04284641238
A35: 1.4 | B35: 0.04265209792 | C35: 0.04265209792
A36: 1.5 | B36: 0.0424586647 | C36: 0.0424586647
A37: 1.6 | B37: 0.04226610873 | C37: 0.04226610873
A38: 1.7 | B38: 0.04207442603 | C38: 0.04207442603
A39: 1.8 | B39: 0.04188361263 | C39: 0.04188361263
A40: 1.9 | B40: 0.0416936646 | C40: 0.0416936646
A41: 2 | B41: 0.04150457801 | C41: 0.04150457801
A42: 2.1 | B42: 0.04131634896 | C42: 0.04131634896
A43: 2.2 | B43: 0.04112897355 | C43: 0.04112897355
A44: 2.3 | B44: 0.04094244791 | C44: 0.04094244791
A45: 2.4 | B45: 0.04075676819 | C45: 0.04075676819
A46: 2.5 | B46: 0.04057193056 | C46: 0.04057193056
A47: 2.6 | B47: 0.04038793119 | C47: 0.04038793119
A48: 2.7 | B48: 0.04020476628 | C48: 0.04020476628
A49: 2.8 | B49: 0.04002243206 | C49: 0.04002243206
A50: 2.9 | B50: 0.03984092474 | C50: 0.03984092474
A51: 3 | B51: 0.03966024058 | C51: 0.03966024058
A52: 3.1 | B52: 0.03948037586 | C52: 0.03948037586
A53: 3.2 | B53: 0.03930132684 | C53: 0.03930132684
A54: 3.3 | B54: 0.03912308984 | C54: 0.03912308984
A55: 3.4 | B55: 0.03894566116 | C55: 0.03894566116
A56: 3.5 | B56: 0.03876903715 | C56: 0.03876903715
A57: 3.6 | B57: 0.03859321416 | C57: 0.03859321416
A58: 3.7 | B58: 0.03841818854 | C58: 0.03841818854
A59: 3.8 | B59: 0.0382439567 | C59: 0.0382439567
A60: 3.9 | B60: 0.03807051501 | C60: 0.03807051501
A61: 4 | B61: 0.03789785991 | C61: 0.03789785991
A62: 4.1 | B62: 0.03772598783 | C62: 0.03772598783
A63: 4.2 | B63: 0.03755489521 | C63: 0.03755489521
A64: 4.3 | B64: 0.03738457851 | C64: 0.03738457851
A65: 4.4 | B65: 0.03721503423 | C65: 0.03721503423
A66: 4.5 | B66: 0.03704625886 | C66: 0.03704625886
A67: 4.6 | B67: 0.0368782489 | C67: 0.0368782489
A68: 4.7 | B68: 0.03671100089 | C68: 0.03671100089
A69: 4.8 | B69: 0.03654451138 | C69: 0.03654451138
A70: 4.9 | B70: 0.03637877692 | C70: 0.03637877692
A71: 5 | B71: 0.03621379409 | C71: 0.03621379409
A72: 5.1 | B72: 0.03604955947 | C72: 0.03604955947
A73: 5.2 | B73: 0.03588606969 | C73: 0.03588606969
A74: 5.3 | B74: 0.03572332135 | C74: 0.03572332135
A75: 5.4 | B75: 0.0355613111 | C75: 0.0355613111
A76: 5.5 | B76: 0.03540003559 | C76: 0.03540003559
A77: 5.6 | B77: 0.03523949149 | C77: 0.03523949149
A78: 5.7 | B78: 0.03507967548 | C78: 0.03507967548
A79: 5.8 | B79: 0.03492058425 | C79: 0.03492058425
A80: 5.9 | B80: 0.03476221453 | C80: 0.03476221453
A81: 6 | B81: 0.03460456303 | C81: 0.03460456303
A82: 6.1 | B82: 0.03444762651 | C82: 0.03444762651
A83: 6.2 | B83: 0.03429140171 | C83: 0.03429140171
A84: 6.3 | B84: 0.03413588542 | C84: 0.03413588542
A85: 6.4 | B85: 0.03398107441 | C85: 0.03398107441
A86: 6.5 | B86: =_xlfn.EXPON.DIST(A86,1/$B$2,0) -> 0.0338269655 | C86: =IF($C$4<>"",IF(A86<=$B$3,B86,""),"") -> 0.0338269655 | D86: =IF($C$7<>"",IF(A86>=$B$6,B86,""),"") ->  | E86: =IF($C$9<>"",IF(AND(A86>=$B$3,A86<=$B$6),B86,""),"") -> 
A87: =A86+0.1 -> 6.6 | B87: 0.03367355549 | C87: 0.03367355549
A88: 6.7 | B88: 0.03352084121 | C88: 0.03352084121
A89: 6.8 | B89: 0.03336881952 | C89: 0.03336881952
A90: 6.9 | B90: 0.03321748726 | C90: 0.03321748726
A91: 7 | B91: 0.03306684132 | C91: 0.03306684132
A92: 7.1 | B92: 0.03291687858 | C92: 0.03291687858
A93: 7.2 | B93: 0.03276759594 | C93: 0.03276759594
A94: 7.3 | B94: 0.03261899032 | C94: 0.03261899032
A95: 7.4 | B95: 0.03247105864 | C95: 0.03247105864
A96: 7.5 | B96: 0.03232379786 | C96: 0.03232379786
A97: 7.6 | B97: 0.03217720492 | C97: 0.03217720492
A98: 7.7 | B98: 0.03203127681 | C98: 0.03203127681
A99: 7.8 | B99: 0.03188601049 | C99: 0.03188601049
A100: 7.9 | B100: 0.03174140298 | C100: 0.03174140298
A101: 8 | B101: 0.03159745129 | C101: 0.03159745129
A102: 8.1 | B102: 0.03145415244 | C102: 0.03145415244
A103: 8.2 | B103: 0.03131150347 | C103: 0.03131150347
A104: 8.3 | B104: 0.03116950143 | C104: 0.03116950143
A105: 8.4 | B105: 0.03102814339 | C105: 0.03102814339
A106: 8.5 | B106: 0.03088742642 | C106: 0.03088742642
A107: 8.6 | B107: 0.03074734763 | C107: 0.03074734763
A108: 8.7 | B108: 0.03060790412 | C108: 0.03060790412
A109: 8.8 | B109: 0.030469093 | C109: 0.030469093
A110: 8.9 | B110: 0.03033091141 | C110: 0.03033091141
A111: 9 | B111: 0.03019335649 | C111: 0.03019335649
A112: 9.1 | B112: 0.03005642541 | C112: 0.03005642541
A113: 9.2 | B113: 0.02992011532 | C113: 0.02992011532
A114: 9.3 | B114: 0.02978442342 | C114: 0.02978442342
A115: 9.4 | B115: 0.0296493469 | C115: 0.0296493469
A116: 9.5 | B116: 0.02951488298 | C116: 0.02951488298
A117: 9.6 | B117: 0.02938102886 | C117: 0.02938102886
A118: 9.7 | B118: 0.02924778179 | C118: 0.02924778179
A119: 9.8 | B119: 0.02911513902 | C119: 0.02911513902
A120: 9.9 | B120: 0.0289830978 | C120: 0.0289830978
A121: 10 | B121: 0.02885165541 | C121: 0.02885165541
A122: 10.1 | B122: 0.02872080912 | C122: 0.02872080912
A123: 10.2 | B123: 0.02859055624 | C123: 0.02859055624
A124: 10.3 | B124: 0.02846089408 | C124: 0.02846089408
A125: 10.4 | B125: 0.02833181995 | C125: 0.02833181995
A126: 10.5 | B126: 0.02820333119 | C126: 0.02820333119
A127: 10.6 | B127: 0.02807542515 | C127: 0.02807542515
A128: 10.7 | B128: 0.02794809918 | C128: 0.02794809918
A129: 10.8 | B129: 0.02782135064 | C129: 0.02782135064
A130: 10.9 | B130: 0.02769517694 | C130: 0.02769517694
A131: 11 | B131: 0.02756957544 | C131: 0.02756957544
A132: 11.1 | B132: 0.02744454357 | C132: 0.02744454357
A133: 11.2 | B133: 0.02732007873 | C133: 0.02732007873
A134: 11.3 | B134: 0.02719617836 | C134: 0.02719617836
A135: 11.4 | B135: 0.0270728399 | C135: 0.0270728399
A136: 11.5 | B136: 0.02695006079 | C136: 0.02695006079
A137: 11.6 | B137: 0.0268278385 | C137: 0.0268278385
A138: 11.7 | B138: 0.02670617051 | C138: 0.02670617051
A139: 11.8 | B139: 0.02658505429 | C139: 0.02658505429
A140: 11.9 | B140: 0.02646448736 | C140: 0.02646448736
A141: 12 | B141: 0.02634446722 | C141: 0.02634446722
A142: 12.1 | B142: 0.02622499138 | C142: 0.02622499138
A143: 12.2 | B143: 0.02610605738 | C143: 0.02610605738
A144: 12.3 | B144: 0.02598766277 | C144: 0.02598766277
A145: 12.4 | B145: 0.02586980509 | C145: 0.02586980509
A146: 12.5 | B146: 0.02575248191 | C146: 0.02575248191
A147: 12.6 | B147: 0.02563569081 | C147: 0.02563569081
A148: 12.7 | B148: 0.02551942938 | C148: 0.02551942938
A149: 12.8 | B149: 0.0254036952 | C149: 0.0254036952
A150: 12.9 | B150: =_xlfn.EXPON.DIST(A150,1/$B$2,0) -> 0.0252884859 | C150: =IF($C$4<>"",IF(A150<=$B$3,B150,""),"") -> 0.0252884859 | D150: =IF($C$7<>"",IF(A150>=$B$6,B150,""),"") ->  | E150: =IF($C$9<>"",IF(AND(A150>=$B$3,A150<=$B$6),B150,""),"") -> 
A151: =A150+0.1 -> 13 | B151: 0.02517379908 | C151: 0.02517379908
A152: 13.1 | B152: 0.02505963239 | C152: 0.02505963239
A153: 13.2 | B153: 0.02494598346 | C153: 0.02494598346
A154: 13.3 | B154: 0.02483284994 | C154: 0.02483284994
A155: 13.4 | B155: 0.0247202295 | C155: 0.0247202295
A156: 13.5 | B156: 0.02460811981 | C156: 0.02460811981
A157: 13.6 | B157: 0.02449651855 | C157: 0.02449651855
A158: 13.7 | B158: 0.02438542342 | C158: 0.02438542342
A159: 13.8 | B159: 0.02427483212 | C159: 0.02427483212
A160: 13.9 | B160: 0.02416474237 | C160: 0.02416474237
A161: 14 | B161: 0.02405515189 | C161: 0.02405515189
A162: 14.1 | B162: 0.02394605841 | C162: 0.02394605841
A163: 14.2 | B163: 0.0238374597 | C163: 0.0238374597
A164: 14.3 | B164: 0.02372935349 | C164: 0.02372935349
A165: 14.4 | B165: 0.02362173756 | C165: 0.02362173756
A166: 14.5 | B166: 0.02351460968 | C166: 0.02351460968
A167: 14.6 | B167: 0.02340796764 | C167: 0.02340796764
A168: 14.7 | B168: 0.02330180924 | C168: 0.02330180924
A169: 14.8 | B169: 0.02319613228 | C169: 0.02319613228
A170: 14.9 | B170: 0.02309093459 | C170: 0.02309093459
A171: 15 | B171: 0.02298621397 | C171: 0.02298621397 | E171: 0.02298621397
A172: 15.1 | B172: 0.02288196829 | E172: 0.02288196829
A173: 15.2 | B173: 0.02277819536 | E173: 0.02277819536
A174: 15.3 | B174: 0.02267489307 | E174: 0.02267489307
A175: 15.4 | B175: 0.02257205926 | E175: 0.02257205926
A176: 15.5 | B176: 0.02246969182 | E176: 0.02246969182
A177: 15.6 | B177: 0.02236778863 | E177: 0.02236778863
A178: 15.7 | B178: 0.02226634759 | E178: 0.02226634759
A179: 15.8 | B179: 0.0221653666 | E179: 0.0221653666
A180: 15.9 | B180: 0.02206484356 | E180: 0.02206484356
A181: 16 | B181: 0.02196477642 | E181: 0.02196477642
A182: 16.1 | B182: 0.02186516309 | E182: 0.02186516309
A183: 16.2 | B183: 0.02176600152 | E183: 0.02176600152
A184: 16.3 | B184: 0.02166728967 | E184: 0.02166728967
A185: 16.4 | B185: 0.02156902548 | E185: 0.02156902548
A186: 16.5 | B186: 0.02147120694 | E186: 0.02147120694
A187: 16.6 | B187: 0.02137383202 | E187: 0.02137383202
A188: 16.7 | B188: 0.02127689871 | E188: 0.02127689871
A189: 16.8 | B189: 0.021180405 | E189: 0.021180405
A190: 16.9 | B190: 0.02108434891 | E190: 0.02108434891
A191: 17 | B191: 0.02098872844 | E191: 0.02098872844
A192: 17.1 | B192: 0.02089354163 | E192: 0.02089354163
A193: 17.2 | B193: 0.0207987865 | E193: 0.0207987865
A194: 17.3 | B194: 0.0207044611 | E194: 0.0207044611
A195: 17.4 | B195: 0.02061056348 | E195: 0.02061056348
A196: 17.5 | B196: 0.0205170917 | E196: 0.0205170917
A197: 17.6 | B197: 0.02042404382 | E197: 0.02042404382
A198: 17.7 | B198: 0.02033141793 | E198: 0.02033141793
A199: 17.8 | B199: 0.02023921211 | E199: 0.02023921211
A200: 17.9 | B200: 0.02014742446 | E200: 0.02014742446
A201: 18 | B201: 0.02005605308 | E201: 0.02005605308
A202: 18.1 | B202: 0.01996509608 | E202: 0.01996509608
A203: 18.2 | B203: 0.01987455158 | E203: 0.01987455158
A204: 18.3 | B204: 0.01978441772 | E204: 0.01978441772
A205: 18.4 | B205: 0.01969469262 | E205: 0.01969469262
A206: 18.5 | B206: 0.01960537444 | E206: 0.01960537444
A207: 18.6 | B207: 0.01951646133 | E207: 0.01951646133
A208: 18.7 | B208: 0.01942795145 | E208: 0.01942795145
A209: 18.8 | B209: 0.01933984298 | E209: 0.01933984298
... 494 more rows

Sheet Sheet5

Sheet Sheet8

Sheet Sheet7

Sheet Sheet6

Sheet Exp (hidden)
A1: Exponential Probability Distribution
A2: Continuous Random Variable
A3: X > = 0
A4: Mean = Standard Deviation
A5: Excel function: EXPON.DIST
A6: EXPON.DIST(x,1/mu, (0 = exact, 1 = cumulative)) | F6: or cumulative function = 1 - e^(-x/mu)
A8: According to a recent study, business people are interrupted 5.5 times per hour. Assume that the distribution follows an Exponential Distribution
A9: ="Mean for Poisson Distribution = "&B10&" = "&C10&" "&D10&" "&E10&" "&F10 -> Mean for Poisson Distribution = # interruptions = 5.5 per 1 hour
A10: x | B10: # interruptions | C10: 5.5 | D10: per | E10: 1 | F10: hour
E11: 60 | F11: minutes
A12: ="Mean for Exponetial Distribution = "&B13&" = "&C13&" "&D13&" "&E13&" "&F13 -> Mean for Exponetial Distribution = x = Time between interruptions = 0.181818181818182 hours
A13: x | B13: x = Time between interruptions | C13: =E10/C10 -> 0.1818181818 | D13: hours
C14: =C13*60 -> 10.90909091 | D14: minutes
A16: P(get interrupted in the next 10 minutes)
C17: x1 | D17: x2
C18: 0 | D18: 10 | E18: minutes
B19: ="P(x<"&$D$23&")" -> P(x<15) | C19: =_xlfn.EXPON.DIST(D18,1/$C$14,1) -> 0.6001503457 | E19: =EXPON.DIST(D18,1/$C$14,1)
B20: ="P(x<"&$D$23&")" -> P(x<15) | C20: =1-EXP(1)^(-D18/$C$14) -> 0.6001503457 | E20: =1-EXP(1)^(-D18/$C$14) | I20: 1 - e^(-x/mu)
A21: P(not interruptions during 15 minute)
C22: x1 | D22: x2
C23: 0 | D23: 15 | E23: minutes
B24: ="P(x>"&$D$23&")" -> P(x>15) | C24: =1-_xlfn.EXPON.DIST(D23,1/$C$14,1) -> 0.2528395958 | E24: =1-EXPON.DIST(D23,1/$C$14,1)
B25: ="P(x>"&$D$23&")" -> P(x>15) | C25: =EXP(1)^(-D23/$C$14) -> 0.2528395958 | E25: =EXP(1)^(-D23/$C$14)
A27: x (min) | B27: f(x) | C27: ="P(x<"&D18&") = "&TEXT(EXPONDIST(D18,1/$C$14,1),"0.0000") -> P(x<10) = 0.6002 | D27: ="P(x>"&D23&") = "&TEXT(1-EXPONDIST(D23,1/$C$14,1),"0.00%") -> P(x>15) = 25.28% | E27: .
A28: 0 | B28: =_xlfn.EXPON.DIST(A28,1/$C$14,0) -> 0.09166666667 | C28: =IF(A28<$D$18,B28,"") -> 0.09166666667 | D28: =IF(A28>$D$23,B28,"") -> 
A29: =A28+0.1 -> 0.1 | B29: =_xlfn.EXPON.DIST(A29,1/$C$14,0) -> 0.09083022842 | C29: =IF(A29<$D$18,B29,"") -> 0.09083022842 | D29: =IF(A29>$D$23,B29,"") -> 
A30: =A29+0.1 -> 0.2 | B30: 0.09000142249 | C30: 0.09000142249
A31: 0.3 | B31: 0.08918017923 | C31: 0.08918017923
A32: 0.4 | B32: 0.08836642964 | C32: 0.08836642964
A33: 0.5 | B33: 0.08756010534 | C33: 0.08756010534
A34: 0.6 | B34: 0.08676113856 | C34: 0.08676113856
A35: 0.7 | B35: 0.08596946219 | C35: 0.08596946219
A36: 0.8 | B36: 0.08518500968 | C36: 0.08518500968
A37: 0.9 | B37: 0.08440771514 | C37: 0.08440771514
A38: 1 | B38: 0.08363751323 | C38: 0.08363751323
A39: 1.1 | B39: 0.08287433925 | C39: 0.08287433925
A40: 1.2 | B40: 0.08211812907 | C40: 0.08211812907
A41: 1.3 | B41: 0.08136881914 | C41: 0.08136881914
A42: 1.4 | B42: 0.08062634649 | C42: 0.08062634649
A43: 1.5 | B43: 0.07989064875 | C43: 0.07989064875
A44: 1.6 | B44: 0.07916166409 | C44: 0.07916166409
A45: 1.7 | B45: 0.07843933125 | C45: 0.07843933125
A46: 1.8 | B46: 0.07772358954 | C46: 0.07772358954
A47: 1.9 | B47: 0.07701437882 | C47: 0.07701437882
A48: 2 | B48: 0.07631163949 | C48: 0.07631163949
A49: 2.1 | B49: 0.0756153125 | C49: 0.0756153125
A50: 2.2 | B50: 0.07492533935 | C50: 0.07492533935
A51: 2.3 | B51: 0.07424166204 | C51: 0.07424166204
A52: 2.4 | B52: 0.07356422315 | C52: 0.07356422315
A53: 2.5 | B53: 0.07289296573 | C53: 0.07289296573
A54: 2.6 | B54: 0.07222783339 | C54: 0.07222783339
A55: 2.7 | B55: 0.07156877024 | C55: 0.07156877024
A56: 2.8 | B56: 0.0709157209 | C56: 0.0709157209
A57: 2.9 | B57: 0.07026863048 | C57: 0.07026863048
A58: 3 | B58: 0.06962744463 | C58: 0.06962744463
A59: 3.1 | B59: 0.06899210945 | C59: 0.06899210945
A60: 3.2 | B60: 0.06836257158 | C60: 0.06836257158
A61: 3.3 | B61: 0.06773877809 | C61: 0.06773877809
A62: 3.4 | B62: 0.06712067658 | C62: 0.06712067658
A63: 3.5 | B63: 0.06650821512 | C63: 0.06650821512
A64: 3.6 | B64: 0.06590134223 | C64: 0.06590134223
A65: 3.7 | B65: 0.06530000693 | C65: 0.06530000693
A66: 3.8 | B66: 0.06470415867 | C66: 0.06470415867
A67: 3.9 | B67: 0.0641137474 | C67: 0.0641137474
A68: 4 | B68: 0.06352872351 | C68: 0.06352872351
A69: 4.1 | B69: 0.06294903783 | C69: 0.06294903783
A70: 4.2 | B70: 0.06237464165 | C70: 0.06237464165
A71: 4.3 | B71: 0.06180548672 | C71: 0.06180548672
A72: 4.4 | B72: 0.06124152519 | C72: 0.06124152519
A73: 4.5 | B73: 0.0606827097 | C73: 0.0606827097
A74: 4.6 | B74: 0.06012899327 | C74: 0.06012899327
A75: 4.7 | B75: 0.05958032938 | C75: 0.05958032938
A76: 4.8 | B76: 0.05903667193 | C76: 0.05903667193
A77: 4.9 | B77: 0.05849797524 | C77: 0.05849797524
A78: 5 | B78: 0.05796419403 | C78: 0.05796419403
A79: 5.1 | B79: 0.05743528347 | C79: 0.05743528347
A80: 5.2 | B80: 0.05691119909 | C80: 0.05691119909
A81: 5.3 | B81: 0.05639189687 | C81: 0.05639189687
A82: 5.4 | B82: 0.05587733317 | C82: 0.05587733317
A83: 5.5 | B83: 0.05536746475 | C83: 0.05536746475
A84: 5.6 | B84: 0.05486224877 | C84: 0.05486224877
A85: 5.7 | B85: 0.05436164277 | C85: 0.05436164277
A86: 5.8 | B86: 0.05386560469 | C86: 0.05386560469
A87: 5.9 | B87: 0.05337409285 | C87: 0.05337409285
A88: 6 | B88: 0.05288706595 | C88: 0.05288706595
A89: 6.1 | B89: 0.05240448306 | C89: 0.05240448306
A90: 6.2 | B90: 0.05192630364 | C90: 0.05192630364
A91: 6.3 | B91: 0.0514524875 | C91: 0.0514524875
A92: 6.4 | B92: 0.05098299483 | C92: 0.05098299483
A93: 6.5 | B93: =_xlfn.EXPON.DIST(A93,1/$C$14,0) -> 0.05051778617 | C93: =IF(A93<$D$18,B93,"") -> 0.05051778617 | D93: =IF(A93>$D$23,B93,"") -> 
A94: =A93+0.1 -> 6.6 | B94: 0.05005682244 | C94: 0.05005682244
A95: 6.7 | B95: 0.04960006491 | C95: 0.04960006491
A96: 6.8 | B96: 0.04914747518 | C96: 0.04914747518
A97: 6.9 | B97: 0.04869901524 | C97: 0.04869901524
A98: 7 | B98: 0.0482546474 | C98: 0.0482546474
A99: 7.1 | B99: 0.04781433432 | C99: 0.04781433432
A100: 7.2 | B100: 0.047378039 | C100: 0.047378039
A101: 7.3 | B101: 0.04694572477 | C101: 0.04694572477
A102: 7.4 | B102: 0.04651735532 | C102: 0.04651735532
A103: 7.5 | B103: 0.04609289465 | C103: 0.04609289465
A104: 7.6 | B104: 0.04567230708 | C104: 0.04567230708
A105: 7.7 | B105: 0.04525555729 | C105: 0.04525555729
A106: 7.8 | B106: 0.04484261025 | C106: 0.04484261025
A107: 7.9 | B107: 0.04443343126 | C107: 0.04443343126
A108: 8 | B108: 0.04402798593 | C108: 0.04402798593
A109: 8.1 | B109: 0.04362624021 | C109: 0.04362624021
A110: 8.2 | B110: 0.04322816033 | C110: 0.04322816033
A111: 8.3 | B111: 0.04283371284 | C111: 0.04283371284
A112: 8.4 | B112: 0.0424428646 | C112: 0.0424428646
A113: 8.5 | B113: 0.04205558276 | C113: 0.04205558276
A114: 8.6 | B114: 0.04167183478 | C114: 0.04167183478
A115: 8.7 | B115: 0.04129158842 | C115: 0.04129158842
A116: 8.8 | B116: 0.04091481172 | C116: 0.04091481172
A117: 8.9 | B117: 0.04054147303 | C117: 0.04054147303
A118: 9 | B118: 0.04017154098 | C118: 0.04017154098
A119: 9.1 | B119: 0.03980498447 | C119: 0.03980498447
A120: 9.2 | B120: 0.03944177271 | C120: 0.03944177271
A121: 9.3 | B121: 0.03908187517 | C121: 0.03908187517
A122: 9.4 | B122: 0.03872526163 | C122: 0.03872526163
A123: 9.5 | B123: 0.0383719021 | C123: 0.0383719021
A124: 9.6 | B124: 0.0380217669 | C124: 0.0380217669
A125: 9.7 | B125: 0.03767482661 | C125: 0.03767482661
A126: 9.8 | B126: 0.03733105208 | C126: 0.03733105208
A127: 9.9 | B127: 0.03699041441 | C127: 0.03699041441
A128: 10 | B128: 0.03665288498 | C128: 0.03665288498
A129: 10.1 | B129: 0.03631843544
A130: 10.2 | B130: 0.03598703767
A131: 10.3 | B131: 0.03565866384
A132: 10.4 | B132: 0.03533328635
A133: 10.5 | B133: 0.03501087785
A134: 10.6 | B134: 0.03469141126
A135: 10.7 | B135: 0.03437485974
A136: 10.8 | B136: 0.03406119668
A137: 10.9 | B137: 0.03375039572
A138: 11 | B138: 0.03344243076
A139: 11.1 | B139: 0.0331372759
A140: 11.2 | B140: 0.03283490552
A141: 11.3 | B141: 0.03253529421
A142: 11.4 | B142: 0.03223841678
A143: 11.5 | B143: 0.03194424829
A144: 11.6 | B144: 0.03165276402
A145: 11.7 | B145: 0.03136393949
A146: 11.8 | B146: 0.03107775041
A147: 11.9 | B147: 0.03079417275
A148: 12 | B148: 0.03051318267
A149: 12.1 | B149: 0.03023475657
A150: 12.2 | B150: 0.02995887104
A151: 12.3 | B151: 0.02968550291
A152: 12.4 | B152: 0.0294146292
A153: 12.5 | B153: 0.02914622715
A154: 12.6 | B154: 0.02888027422
A155: 12.7 | B155: 0.02861674804
A156: 12.8 | B156: 0.02835562649
A157: 12.9 | B157: =_xlfn.EXPON.DIST(A157,1/$C$14,0) -> 0.02809688761 | C157: =IF(A157<$D$18,B157,"") ->  | D157: =IF(A157>$D$23,B157,"") -> 
A158: =A157+0.1 -> 13 | B158: 0.02784050967
A159: 13.1 | B159: 0.02758647112
A160: 13.2 | B160: 0.02733475061
A161: 13.3 | B161: 0.02708532701
A162: 13.4 | B162: 0.02683817933
A163: 13.5 | B163: 0.02659328683
A164: 13.6 | B164: 0.02635062891
A165: 13.7 | B165: 0.0261101852
A166: 13.8 | B166: 0.02587193548
A167: 13.9 | B167: 0.02563585974
A168: 14 | B168: 0.02540193814
A169: 14.1 | B169: 0.02517015102
A170: 14.2 | B170: 0.0249404789
A171: 14.3 | B171: 0.0247129025
A172: 14.4 | B172: 0.02448740268
A173: 14.5 | B173: 0.0242639605
A174: 14.6 | B174: 0.02404255717
A175: 14.7 | B175: 0.02382317411
A176: 14.8 | B176: 0.02360579287
A177: 14.9 | B177: 0.02339039518
A178: 15 | B178: 0.02317696295
A179: 15.1 | B179: 0.02296547824 | D179: 0.02296547824
A180: 15.2 | B180: 0.02275592328 | D180: 0.02275592328
A181: 15.3 | B181: 0.02254828047 | D181: 0.02254828047
A182: 15.4 | B182: 0.02234253235 | D182: 0.02234253235
A183: 15.5 | B183: 0.02213866164 | D183: 0.02213866164
A184: 15.6 | B184: 0.02193665121 | D184: 0.02193665121
A185: 15.7 | B185: 0.02173648407 | D185: 0.02173648407
A186: 15.8 | B186: 0.02153814342 | D186: 0.02153814342
A187: 15.9 | B187: 0.02134161258 | D187: 0.02134161258
A188: 16 | B188: 0.02114687504 | D188: 0.02114687504
A189: 16.1 | B189: 0.02095391444 | D189: 0.02095391444
A190: 16.2 | B190: 0.02076271456 | D190: 0.02076271456
A191: 16.3 | B191: 0.02057325934 | D191: 0.02057325934
A192: 16.4 | B192: 0.02038553286 | D192: 0.02038553286
A193: 16.5 | B193: 0.02019951934 | D193: 0.02019951934
A194: 16.6 | B194: 0.02001520315 | D194: 0.02001520315
A195: 16.7 | B195: 0.01983256881 | D195: 0.01983256881
A196: 16.8 | B196: 0.01965160096 | D196: 0.01965160096
A197: 16.9 | B197: 0.01947228441 | D197: 0.01947228441
A198: 17 | B198: 0.01929460408 | D198: 0.01929460408
A199: 17.1 | B199: 0.01911854505 | D199: 0.01911854505
A200: 17.2 | B200: 0.01894409252 | D200: 0.01894409252
A201: 17.3 | B201: 0.01877123182 | D201: 0.01877123182
A202: 17.4 | B202: 0.01859994845 | D202: 0.01859994845
A203: 17.5 | B203: 0.01843022799 | D203: 0.01843022799
... 325 more rows

Sheet Ex v Po (hidden)
A1: Relationship between Poisson and Exponential Poisson is # of occurrences during per Interval Exponential is length between occurrences If occurrences follow a Poisson Distr., the length between occurrences must follow an Exponential Distribution | M1: Poisson Probability Distribution can be used to estimate the number of occurrences over a specified interval of time or space | R1: Exponential Probability Distribution can be used to estimate the length of the interval between occurrences (time or space)
A2: ="Mean for Poisson Distribution = "&B3&" = "&C3&" "&D3&" "&E3&" "&F3 -> Mean for Poisson Distribution = # interruptions = 5.5 per 1 hour | M2: Discrete Random Variable | R2: Continuous Random Variable
A3: x | B3: # interruptions | C3: =Exp!C10 -> 5.5 | D3: per | E3: 1 | F3: hour | M3: Properties of a Poisson Experiment: | R3: X > = 0
E4: 60 | F4: minutes | M4: The probability of an occurrence is the same for any two intervals of equal length | R4: Mean = Standard Deviation
A5: ="Mean for Exponetial Distribution = "&B6&" = "&C6&" "&D6&" "&E6&" "&F6 -> Mean for Exponetial Distribution = Time between interruptions = 0.181818181818182 hours | M5: The occurrence or nonoccurrence in any interval is independent of the occurrence or nonoccurrence in any other interval | R5: Excel function: EXPON.DIST
A6: x | B6: Time between interruptions | C6: =E3/C3 -> 0.1818181818 | D6: hours | M6: No upper limit for X: 0,1,2,3… , but as x increases past the mean, the probability decreases and gets quite small. | R6: EXPON.DIST(x,1/mu, (0 = exact, 1 = cumulative))
C7: =C6*E4 -> 10.90909091 | D7: minutes | M7: Mean = Var
M8: Excel function: POISSON.DIST
A9: P(no interruptions during 15 minute period 0 to 15) | M9: POISSON.DIST(x,mean,cumulative (0 = exact, 1 = cumulative))
C10: x1 | D10: x2
C11: 0 | D11: 15 | E11: minutes
B12: P(X>15) | C12: =1-_xlfn.EXPON.DIST(D11,1/C7,1) -> 0.2528395958 | D12: Exponential, x = time between occurrences | I12: =1-EXPON.DIST(D12,1/C7,1)
B14: x = | C14: 0 | D14: # of occurrences
B15: Time =
B16: ="Mean = # occurrences per "&D11&" "&E11 -> Mean = # occurrences per 15 minutes
B17: ="P(x<"&C14&")" -> P(x<0) | D17: Poisson, x = # of occurrences | I17: =POISSON.DIST(C15,C17,0)

Sheet Ex v Po (an) (hidden)
A1: Relationship between Poisson and Exponential Poisson is # of occurrences during per Interval Exponential is length between occurrences If occurrences follow a Poisson Distr., the length between occurrences must follow an Exponential Distribution | M1: Poisson Probability Distribution can be used to estimate the number of occurrences over a specified interval of time or space | R1: Exponential Probability Distribution can be used to estimate the length of the interval between occurrences (time or space)
A2: ="Mean for Poisson Distribution = "&B3&" = "&C3&" "&D3&" "&E3&" "&F3 -> Mean for Poisson Distribution = # interruptions = 5.5 per 1 hour | M2: Discrete Random Variable | R2: Continuous Random Variable
A3: x | B3: # interruptions | C3: =Exp!C10 -> 5.5 | D3: per | E3: 1 | F3: hour | M3: Properties of a Poisson Experiment: | R3: X > = 0
E4: 60 | F4: minutes | M4: The probability of an occurrence is the same for any two intervals of equal length | R4: Mean = Standard Deviation
A5: ="Mean for Exponetial Distribution = "&B6&" = "&C6&" "&D6&" "&E6&" "&F6 -> Mean for Exponetial Distribution = Time between interruptions = 0.181818181818182 hours | M5: The occurrence or nonoccurrence in any interval is independent of the occurrence or nonoccurrence in any other interval | R5: Excel function: EXPON.DIST
A6: x | B6: Time between interruptions | C6: =E3/C3 -> 0.1818181818 | D6: hours | M6: No upper limit for X: 0,1,2,3… , but as x increases past the mean, the probability decreases and gets quite small. | R6: EXPON.DIST(x,1/mu, (0 = exact, 1 = cumulative))
C7: =E4/C3 -> 10.90909091 | D7: minutes | M7: Mean = Var
M8: Excel function: POISSON.DIST
A9: P(no interruptions during 15 minute period 0 to 15) | M9: POISSON.DIST(x,mean,cumulative (0 = exact, 1 = cumulative))
C11: x1 | D11: x2
C12: 0 | D12: 15 | E12: minutes
B13: P(X>15) | C13: =1-_xlfn.EXPON.DIST(D12,1/C7,1) -> 0.2528395958 | D13: Exponential, x = time between occurrences | I13: =1-EXPON.DIST(D12,1/C7,1)
B15: x = | C15: 0 | D15: # of occurrences
B16: Time = | C16: =D12/E4 -> 0.25
B17: ="Mean = # occurrences per "&D12&" "&E12 -> Mean = # occurrences per 15 minutes | C17: =C16*C3 -> 1.375
B18: ="P(x<"&C15&")" -> P(x<0) | C18: =_xlfn.POISSON.DIST(C15,C17,1) -> 0.2528395958 | D18: Poisson, x = # of occurrences | I18: =POISSON.DIST(C15,C17,0)
